Directorate,Department,Expenditure Type,Ref.Doc.1,Vendor Name,Expenditure Amount (exc VAT),Payment Date
Delivery Units,Assurance,Translation Exp / Interpret,1026404402,PRIME PRODUCTION LTD,56.25,17/07/2023
Delivery Units,Assurance,Training,1026959901,ITS TRAINING (UK) LTD,"2,083.00",17/07/2023
Delivery Units,Strategy and Resources,Other Establishments - Third P,0080068350,GLA LEVIES,"50,633.80",26/07/2023
Delivery Units,Strategy and Resources,Other Establishments - Third P,1024648802,CITY OF LONDON,"89,772.00",12/07/2023
Delivery Units,Strategy and Resources,Grant Payments,1026595702,CITY OF LONDON,"73,886.00",12/07/2023
Delivery Units,Strategy and Resources,Grant Payments,1027277302,TRANSPORT FOR LONDON,"127,792.40",27/07/2023
Delivery Units,Strategy and Resources,Other Services,0080067975,North London Waste Authority ,"897,742.00",12/07/2023
Delivery Units,Strategy and Resources,Other Establishments - Third P,0080068167,LEE VALLEY REGIONAL PARK AUTH.,"32,407.20",18/07/2023
Delivery Units,Customer and Place,Other Services,1026466501,THE BARNETGROUP LIMITED,"640,496.67",04/07/2023
Delivery Units,Customer and Place,Other Awards,1027437301,THE BARNETGROUP LIMITED,"654,000.00",28/07/2023
Delivery Units,Customer and Place,Private Contractors - Third Pa,1027438301,THE BARNETGROUP LIMITED,"8,064,000.00",28/07/2023
Delivery Units,Customer and Place,Other Agencies - Third Party P,1027439501,THE BARNETGROUP LIMITED,"1,120,000.00",28/07/2023
Delivery Units,Customer and Place,Other Services,1027443401,THE BARNETGROUP LIMITED,"961,000.00",28/07/2023
Delivery Units,Customer and Place,Professional Services,1026453801,WSP (Real Estate and,217.45,04/07/2023
Delivery Units,Customer and Place,Professional Services,1027019101,PeopleScout Limited,849.86,18/07/2023
Delivery Units,Customer and Place,Professional Services,1027019401,PeopleScout Limited,324.71,18/07/2023
Delivery Units,Customer and Place,Professional Services,1027074401,PeopleScout Limited,590.45,19/07/2023
Delivery Units,Customer and Place,Professional Services,1027330501,PeopleScout Limited,698.01,26/07/2023
Delivery Units,Customer and Place,Professional Services,1026651101,CAPITA BUSINESS SERVICES LTD,"4,885.60",10/07/2023
Delivery Units,Customer and Place,Professional Services,1027207701,CAPITA BUSINESS SERVICES LTD,"5,473.05",25/07/2023
Delivery Units,Customer and Place,Professional Services,1027209701,CAPITA BUSINESS SERVICES LTD,"4,882.90",25/07/2023
Delivery Units,Customer and Place,Building Repairs & Maintenance,1023637601,Integrated Water Services Ltd,"-4,199.76",13/07/2023
Delivery Units,Customer and Place,Building Repairs & Maintenance,1023639401,Integrated Water Services Ltd,"-4,258.09",13/07/2023
Delivery Units,Customer and Place,Building Repairs & Maintenance,1023985803,Elite Entrance Systems Ltd,"19,020.00",03/07/2023
Delivery Units,Customer and Place,Building Repairs & Maintenance,1024428503,Integrated Water Services Ltd,354.00,13/07/2023
Delivery Units,Customer and Place,Building Repairs & Maintenance,1024466703,Integrated Water Services Ltd,400.00,13/07/2023
Delivery Units,Customer and Place,Building Repairs & Maintenance,1024471503,Integrated Water Services Ltd,217.64,13/07/2023
Delivery Units,Customer and Place,Building Repairs & Maintenance,1024471803,Integrated Water Services Ltd,"1,729.87",13/07/2023
Delivery Units,Customer and Place,Building Repairs & Maintenance,1024910203,Elite Entrance Systems Ltd,"8,077.50",03/07/2023
Delivery Units,Customer and Place,Building Repairs & Maintenance,1024963403,Charles Wilson Engineers Ltd,"1,014.10",19/07/2023
Delivery Units,Customer and Place,Building Repairs & Maintenance,1024963603,Charles Wilson Engineers Ltd,"6,004.05",21/07/2023
Delivery Units,Customer and Place,Building Repairs & Maintenance,1025040802,Orion Building Engineering Services Ltd,90.00,03/07/2023
Delivery Units,Customer and Place,Building Repairs & Maintenance,1025343103,Integrated Water Services Ltd,157.20,20/07/2023
Delivery Units,Customer and Place,Building Repairs & Maintenance,1025343203,Integrated Water Services Ltd,182.50,20/07/2023
Delivery Units,Customer and Place,Building Repairs & Maintenance,1025343503,Integrated Water Services Ltd,73.68,19/07/2023
Delivery Units,Customer and Place,Building Repairs & Maintenance,1025343603,Integrated Water Services Ltd,36.84,20/07/2023
Delivery Units,Customer and Place,Building Repairs & Maintenance,1025344903,Integrated Water Services Ltd,"1,483.90",20/07/2023
Delivery Units,Customer and Place,Building Repairs & Maintenance,1025346603,Integrated Water Services Ltd,108.82,20/07/2023
Delivery Units,Customer and Place,Building Repairs & Maintenance,1025387903,Sureserve Fire & Electrical Ltd,36.00,18/07/2023
Delivery Units,Customer and Place,Building Repairs & Maintenance,1025388003,Sureserve Fire & Electrical Ltd,72.00,18/07/2023
Delivery Units,Customer and Place,Building Repairs & Maintenance,1025388203,Sureserve Fire & Electrical Ltd,48.50,19/07/2023
Delivery Units,Customer and Place,Building Repairs & Maintenance,1025389403,Sureserve Fire & Electrical Ltd,36.00,18/07/2023
Delivery Units,Customer and Place,Building Repairs & Maintenance,1025389603,Sureserve Fire & Electrical Ltd,36.00,18/07/2023
Delivery Units,Customer and Place,Building Repairs & Maintenance,1025389803,Sureserve Fire & Electrical Ltd,72.86,18/07/2023
Delivery Units,Customer and Place,Building Repairs & Maintenance,1025390803,Sureserve Fire & Electrical Ltd,36.00,18/07/2023
Delivery Units,Customer and Place,Building Repairs & Maintenance,1025391003,Sureserve Fire & Electrical Ltd,228.60,18/07/2023
Delivery Units,Customer and Place,Building Repairs & Maintenance,1025391603,Sureserve Fire & Electrical Ltd,36.00,18/07/2023
Delivery Units,Customer and Place,Building Repairs & Maintenance,1025391703,Sureserve Fire & Electrical Ltd,73.95,18/07/2023
Delivery Units,Customer and Place,Building Repairs & Maintenance,1025391803,Sureserve Fire & Electrical Ltd,357.16,18/07/2023
Delivery Units,Customer and Place,Building Repairs & Maintenance,1025391903,Sureserve Fire & Electrical Ltd,36.00,18/07/2023
Delivery Units,Customer and Place,Building Repairs & Maintenance,1025394703,Integrated Water Services Ltd,"1,300.00",13/07/2023
Delivery Units,Customer and Place,Building Repairs & Maintenance,1025394903,Integrated Water Services Ltd,473.42,13/07/2023
Delivery Units,Customer and Place,Building Repairs & Maintenance,1025445503,Integrated Water Services Ltd,"2,578.86",20/07/2023
Delivery Units,Customer and Place,Building Repairs & Maintenance,1025445903,Charles Wilson Engineers Ltd,"1,616.44",21/07/2023
Delivery Units,Customer and Place,Building Repairs & Maintenance,1025448403,Charles Wilson Engineers Ltd,"4,066.40",19/07/2023
Delivery Units,Customer and Place,Building Repairs & Maintenance,1025449102,Orion Building Engineering Services Ltd,135.00,03/07/2023
Delivery Units,Customer and Place,Building Repairs & Maintenance,1025601203,Integrated Water Services Ltd,"5,170.38",20/07/2023
Delivery Units,Customer and Place,Building Repairs & Maintenance,1025663302,Orion Building Engineering Services Ltd,180.00,03/07/2023
Delivery Units,Customer and Place,Building Repairs & Maintenance,1025665102,Elite Entrance Systems Ltd,422.99,03/07/2023
Delivery Units,Customer and Place,Building Repairs & Maintenance,1025665302,Orion Building Engineering Services Ltd,328.75,19/07/2023
Delivery Units,Customer and Place,Building Repairs & Maintenance,1025706802,Orion Building Engineering Services Ltd,"1,346.25",19/07/2023
Delivery Units,Customer and Place,Building Repairs & Maintenance,1025707402,Orion Building Engineering Services Ltd,"1,160.78",19/07/2023
Delivery Units,Customer and Place,Building Repairs & Maintenance,1025708102,Orion Building Engineering Services Ltd,45.00,19/07/2023
Delivery Units,Customer and Place,Building Repairs & Maintenance,1025708803,Integrated Water Services Ltd,400.00,20/07/2023
Delivery Units,Customer and Place,Building Repairs & Maintenance,1025709102,Orion Building Engineering Services Ltd,595.00,19/07/2023
Delivery Units,Customer and Place,Building Repairs & Maintenance,1025753703,Integrated Water Services Ltd,884.22,20/07/2023
Delivery Units,Customer and Place,Building Repairs & Maintenance,1025760302,Orion Building Engineering Services Ltd,112.50,19/07/2023
Delivery Units,Customer and Place,Building Repairs & Maintenance,1026008402,Elite Entrance Systems Ltd,950.50,03/07/2023
Delivery Units,Customer and Place,Building Repairs & Maintenance,1026177702,RGE SERVICES,275.00,10/07/2023
Delivery Units,Customer and Place,Building Repairs & Maintenance,1026352702,Orion Building Engineering Services Ltd,135.00,19/07/2023
Delivery Units,Customer and Place,Building Repairs & Maintenance,1026352802,Orion Building Engineering Services Ltd,270.00,19/07/2023
Delivery Units,Customer and Place,Building Repairs & Maintenance,1026353002,Orion Building Engineering Services Ltd,112.50,19/07/2023
Delivery Units,Customer and Place,Building Repairs & Maintenance,1026353102,Orion Building Engineering Services Ltd,852.50,19/07/2023
Delivery Units,Customer and Place,Building Repairs & Maintenance,1026353202,Orion Building Engineering Services Ltd,202.50,19/07/2023
Delivery Units,Customer and Place,Building Repairs & Maintenance,1026353402,Orion Building Engineering Services Ltd,852.50,19/07/2023
Delivery Units,Customer and Place,Building Repairs & Maintenance,1026353602,Orion Building Engineering Services Ltd,112.50,19/07/2023
Delivery Units,Customer and Place,Building Repairs & Maintenance,1026353702,Orion Building Engineering Services Ltd,527.50,19/07/2023
Delivery Units,Customer and Place,Building Repairs & Maintenance,1026393002,Orion Building Engineering Services Ltd,135.00,19/07/2023
Delivery Units,Customer and Place,Building Repairs & Maintenance,1026394302,Orion Building Engineering Services Ltd,810.00,19/07/2023
Delivery Units,Customer and Place,Building Repairs & Maintenance,1026395402,Orion Building Engineering Services Ltd,90.00,19/07/2023
Delivery Units,Customer and Place,Building Repairs & Maintenance,1026396102,Orion Building Engineering Services Ltd,135.00,19/07/2023
Delivery Units,Customer and Place,Building Repairs & Maintenance,1026396202,Orion Building Engineering Services Ltd,555.00,19/07/2023
Delivery Units,Customer and Place,Building Repairs & Maintenance,1026396502,Orion Building Engineering Services Ltd,180.00,19/07/2023
Delivery Units,Customer and Place,Building Repairs & Maintenance,1026397902,Orion Building Engineering Services Ltd,135.00,19/07/2023
Delivery Units,Customer and Place,Building Repairs & Maintenance,1026398102,Orion Building Engineering Services Ltd,742.50,19/07/2023
Delivery Units,Customer and Place,Building Repairs & Maintenance,1026399302,Integrated Water Services Ltd,300.00,13/07/2023
Delivery Units,Customer and Place,Building Repairs & Maintenance,1026399402,Integrated Water Services Ltd,400.00,13/07/2023
Delivery Units,Customer and Place,Building Repairs & Maintenance,1026400702,Integrated Water Services Ltd,400.00,13/07/2023
Delivery Units,Customer and Place,Building Repairs & Maintenance,1026401902,Integrated Water Services Ltd,400.00,13/07/2023
Delivery Units,Customer and Place,Building Repairs & Maintenance,1026402502,Integrated Water Services Ltd,400.00,13/07/2023
Delivery Units,Customer and Place,Building Repairs & Maintenance,1026407602,Orion Building Engineering Services Ltd,550.00,19/07/2023
Delivery Units,Customer and Place,Building Repairs & Maintenance,1026407702,Orion Building Engineering Services Ltd,135.00,19/07/2023
Delivery Units,Customer and Place,Building Repairs & Maintenance,1026457202,Integrated Water Services Ltd,73.68,13/07/2023
Delivery Units,Customer and Place,Building Repairs & Maintenance,1026457302,Integrated Water Services Ltd,582.11,13/07/2023
Delivery Units,Customer and Place,Building Repairs & Maintenance,1026457402,Integrated Water Services Ltd,400.00,13/07/2023
Delivery Units,Customer and Place,Building Repairs & Maintenance,1026458602,Integrated Water Services Ltd,89.47,13/07/2023
Delivery Units,Customer and Place,Building Repairs & Maintenance,1026459102,Orion Building Engineering Services Ltd,"1,010.00",19/07/2023
Delivery Units,Customer and Place,Building Repairs & Maintenance,1026515202,Orion Building Engineering Services Ltd,90.00,19/07/2023
Delivery Units,Customer and Place,Building Repairs & Maintenance,1026557802,EUROSAFE SOLUTIONS LTD,450.00,07/07/2023
Delivery Units,Customer and Place,Building Repairs & Maintenance,1026595402,Integrated Water Services Ltd,73.68,13/07/2023
Delivery Units,Customer and Place,Building Repairs & Maintenance,1026596403,Integrated Water Services Ltd,73.68,13/07/2023
Delivery Units,Customer and Place,Building Repairs & Maintenance,1026597202,Integrated Water Services Ltd,259.70,13/07/2023
Delivery Units,Customer and Place,Building Repairs & Maintenance,1026774602,Orion Building Engineering Services Ltd,112.50,19/07/2023
Delivery Units,Customer and Place,Building Repairs & Maintenance,1026962502,Tecalemit Garage Equipment Co Ltd,"5,279.40",18/07/2023
Delivery Units,Childrens Service DSG,Other Establishments - Third P,1026456102,NHS North Central London ICB,"583,905.00",04/07/2023
Delivery Units,Childrens Family Services,Professional Services,1024140803,LIQUIDLOGIC LTD,"27,766.11",04/07/2023
Delivery Units,Childrens Family Services,Employers Pension contribution,1027017801,West Yorkshire Pension Fund,"8,023.07",18/07/2023
Delivery Units,Childrens Service DSG,Other Establishments - Third P,0050070130,PARKFIELD ACADEMY,366.06,21/07/2023
Delivery Units,Childrens Service DSG,Other Establishments - Third P,0050070136,THE HYDE EF ACADEMY,281.69,21/07/2023
Delivery Units,Childrens Service DSG,Other Establishments - Third P,0050070199,BROADFIELDS ACADEMY,828.37,21/07/2023
Delivery Units,Childrens Service DSG,Other Services,0050070351,KIDZ KABIN PEMBROKE STUDIOS LTD,"1,673.00",24/07/2023
Delivery Units,Childrens Service DSG,Other Services,0050070352,EAYC NURSERY,627.00,24/07/2023
Delivery Units,Childrens Service DSG,Education CFR Funding Advances,0020066659,BEIS SOROH SCHNEIRER,"22,276.65",26/07/2023
Delivery Units,Childrens Service DSG,Education CFR Funding Advances,0020066663,BROADFIELDS ACADEMY,"12,467.88",26/07/2023
Delivery Units,Childrens Service DSG,Education CFR Funding Advances,0020066668,Claremont Primary School Academy,"6,410.04",26/07/2023
Delivery Units,Childrens Service DSG,Education CFR Funding Advances,0020066672,BEIS CHINUCH PRIMARY SCHOOL,"15,884.22",26/07/2023
Delivery Units,Childrens Service DSG,Education CFR Funding Advances,0020066675,Finchley Yochien,"5,944.20",26/07/2023
Delivery Units,Childrens Service DSG,Education CFR Funding Advances,0020066683,The Mill Hill Foundation,"3,698.10",26/07/2023
Delivery Units,Childrens Service DSG,Education CFR Funding Advances,0020066688,Millbrook Park Primary School,"13,806.24",26/07/2023
Delivery Units,Childrens Service DSG,Education CFR Funding Advances,0020066693,PARKFIELD ACADEMY,"21,540.24",26/07/2023
Delivery Units,Childrens Service DSG,Education CFR Funding Advances,0020066694,Peninim Primary School,"19,172.91",26/07/2023
Delivery Units,Childrens Service DSG,Education CFR Funding Advances,0020066704,Summerside Primary Academy,"10,865.37",26/07/2023
Delivery Units,Childrens Service DSG,Private Contractors - Third Pa,0080068488,Barnet Early Years Alliance (BEYA),440.90,31/07/2023
Delivery Units,Childrens Service DSG,Private Contractors - Third Pa,0080068152,FOUNTAIN MONTESSORI PRE-SCHOOL,"1,346.90",20/07/2023
Delivery Units,Childrens Service DSG,Private Contractors - Third Pa,0080068156,BuzyBees Childcare Ltd T/A Blue Nest,770.70,20/07/2023
Delivery Units,Childrens Service DSG,Private Contractors - Third Pa,0080068158,Buckingham Montessori School,"1,369.40",20/07/2023
Delivery Units,Childrens Service DSG,Private Contractors - Third Pa,0080068160,BLUE SKIES,"1,216.90",20/07/2023
Delivery Units,Childrens Service DSG,Private Contractors - Third Pa,0080068161,OAKHILL COMMUNITY NURSERY,233.93,20/07/2023
Delivery Units,Childrens Family Services,Cleaning and domestic material,1027215001,Cleantec Services Ltd,"1,217.44",24/07/2023
Delivery Units,Childrens Family Services,Other Services,1027275501,LEE SECURITY LONDON LIMITED,77.00,25/07/2023
Delivery Units,Childrens Family Services,Other Services,1027332102,Provence Private Hire,"1,970.00",27/07/2023
Delivery Units,Childrens Family Services,Cleaning and domestic material,1026595901,Norse Commercial Services Ltd,704.36,07/07/2023
Delivery Units,Childrens Family Services,Equipment and Materials Purcha,1026597002,Norse Commercial Services Ltd,64.25,10/07/2023
Delivery Units,Childrens Family Services,Equipment and Materials Purcha,1027330201,LEE SECURITY LONDON LIMITED,23.24,27/07/2023
Delivery Units,Childrens Family Services,Gas,1026110303,KENT COUNTY COUNCIL (KCS),651.06,04/07/2023
Delivery Units,Childrens Family Services,Gas,1026292003,KENT COUNTY COUNCIL (KCS),460.77,04/07/2023
Delivery Units,Childrens Family Services,Gas,1027381002,KENT COUNTY COUNCIL (KCS),281.94,27/07/2023
Delivery Units,Childrens Family Services,Equipment and Materials Purcha,1026402302,Norse Commercial Services Ltd,61.58,05/07/2023
Delivery Units,Childrens Family Services,Water Services,1026646301,2468 LTD,95.21,10/07/2023
Delivery Units,Childrens Family Services,Cleaning and domestic material,1026722302,Norse Commercial Services Ltd,528.42,11/07/2023
Delivery Units,Childrens Family Services,Electricity,1026456602,KENT COUNTY COUNCIL (KCS),597.04,04/07/2023
Delivery Units,Childrens Family Services,Gas,1027381402,KENT COUNTY COUNCIL (KCS),73.28,27/07/2023
Delivery Units,Childrens Family Services,Gas,1027387501,KENT COUNTY COUNCIL (KCS),"1,035.17",27/07/2023
Delivery Units,Childrens Family Services,Equipment and Materials Purcha,1027019501,G.B.HOLDINGS LTD,44.00,18/07/2023
Delivery Units,Childrens Family Services,Stationery,1024808703,Banner Group Limited,10.40,04/07/2023
Delivery Units,Childrens Family Services,Stationery,1025093403,Banner Group Limited,120.76,04/07/2023
Delivery Units,Childrens Family Services,Stationery,1025663501,Banner Group Limited,-53.34,03/07/2023
Delivery Units,Childrens Family Services,Stationery,1025866301,Banner Group Limited,-4.91,03/07/2023
Delivery Units,Childrens Family Services,Stationery,1025918201,Banner Group Limited,-63.31,03/07/2023
Delivery Units,Childrens Family Services,Advertising,1026591501,GOOD IMPRESSIONS (LONDON) LIMITED,300.00,10/07/2023
Delivery Units,Childrens Family Services,Advertising,1026591801,GOOD IMPRESSIONS (LONDON) LIMITED,120.00,07/07/2023
Delivery Units,Childrens Family Services,Other Services,1026779201,1ST CONTAINERS UK LIMITED,30.00,12/07/2023
Delivery Units,Childrens Family Services,Other Services,1026829001,BLUE 9 SECURITY LIMITED,"3,033.00",13/07/2023
Delivery Units,Childrens Family Services,Other Services,1026830901,BLUE 9 SECURITY LIMITED,"2,385.96",13/07/2023
Delivery Units,Childrens Family Services,Other Services,1027022501,Enigma CCTV Ltd,"5,357.85",18/07/2023
Delivery Units,Childrens Family Services,Other Services,1027072301,BLUE 9 SECURITY LIMITED,"2,952.12",19/07/2023
Delivery Units,Childrens Family Services,Other Services,1027122601,BLUE 9 SECURITY LIMITED,"3,073.44",20/07/2023
Delivery Units,Childrens Family Services,Other Services,1027123301,BLUE 9 SECURITY LIMITED,"3,214.98",20/07/2023
Delivery Units,Childrens Family Services,Other Services,1027124201,BLUE 9 SECURITY LIMITED,323.52,20/07/2023
Delivery Units,Childrens Family Services,Other Services,1027126201,BLUE 9 SECURITY LIMITED,"3,093.66",20/07/2023
Delivery Units,Childrens Family Services,Other Services,1027126701,BLUE 9 SECURITY LIMITED,"2,287.20",20/07/2023
Delivery Units,Childrens Family Services,Other Services,1027126801,BLUE 9 SECURITY LIMITED,80.88,21/07/2023
Delivery Units,Childrens Family Services,Other Services,1027127101,BLUE 9 SECURITY LIMITED,"2,264.64",20/07/2023
Delivery Units,Childrens Family Services,Other Services,1027128501,BLUE 9 SECURITY LIMITED,202.20,21/07/2023
Delivery Units,Childrens Family Services,Books-CDs-Audio-Video,0021006777,NIELSEN BOOK SERVICES LTD,"4,258.17",10/07/2023
Delivery Units,Childrens Family Services,Books-CDs-Audio-Video,0021006779,ASKEWS & HOLTS LIBRARY SERVICES LTD,76.38,10/07/2023
Delivery Units,Childrens Family Services,Books-CDs-Audio-Video,0021006785,ASKEWS & HOLTS LIBRARY SERVICES LTD,76.38,10/07/2023
Delivery Units,Childrens Family Services,Books-CDs-Audio-Video,0021006798,STAR BOOKS,93.96,10/07/2023
Delivery Units,Childrens Family Services,Books-CDs-Audio-Video,0021006799,ASKEWS & HOLTS LIBRARY SERVICES LTD,6.96,10/07/2023
Delivery Units,Childrens Family Services,Books-CDs-Audio-Video,0021006802,Colindale Local Ltd,39.80,10/07/2023
Delivery Units,Childrens Family Services,Books-CDs-Audio-Video,0021006805,ASKEWS & HOLTS LIBRARY SERVICES LTD,91.54,10/07/2023
Delivery Units,Childrens Family Services,Books-CDs-Audio-Video,0021006806,ASKEWS & HOLTS LIBRARY SERVICES LTD,8.49,10/07/2023
Delivery Units,Childrens Family Services,Books-CDs-Audio-Video,0021006809,ASKEWS & HOLTS LIBRARY SERVICES LTD,8.00,10/07/2023
Delivery Units,Childrens Family Services,Books-CDs-Audio-Video,0021006820,ASKEWS & HOLTS LIBRARY SERVICES LTD,4.46,10/07/2023
Delivery Units,Childrens Family Services,Books-CDs-Audio-Video,0021006823,ASKEWS & HOLTS LIBRARY SERVICES LTD,76.34,10/07/2023
Delivery Units,Childrens Family Services,Books-CDs-Audio-Video,0021006826,ASKEWS & HOLTS LIBRARY SERVICES LTD,5.34,10/07/2023
Delivery Units,Childrens Family Services,Books-CDs-Audio-Video,0021006828,ASKEWS & HOLTS LIBRARY SERVICES LTD,76.38,10/07/2023
Delivery Units,Childrens Family Services,Books-CDs-Audio-Video,0021006831,ASKEWS & HOLTS LIBRARY SERVICES LTD,116.59,10/07/2023
Delivery Units,Childrens Family Services,Books-CDs-Audio-Video,0021006835,ASKEWS & HOLTS LIBRARY SERVICES LTD,7.17,10/07/2023
Delivery Units,Childrens Family Services,Books-CDs-Audio-Video,0021006837,ASKEWS & HOLTS LIBRARY SERVICES LTD,8.58,10/07/2023
Delivery Units,Childrens Family Services,Books-CDs-Audio-Video,0021006842,ASKEWS & HOLTS LIBRARY SERVICES LTD,114.28,10/07/2023
Delivery Units,Childrens Family Services,Books-CDs-Audio-Video,0021006843,ASKEWS & HOLTS LIBRARY SERVICES LTD,76.34,10/07/2023
Delivery Units,Childrens Family Services,Books-CDs-Audio-Video,0021006846,ASKEWS & HOLTS LIBRARY SERVICES LTD,114.28,10/07/2023
Delivery Units,Childrens Family Services,Books-CDs-Audio-Video,0021006854,ASKEWS & HOLTS LIBRARY SERVICES LTD,30.34,13/07/2023
Delivery Units,Childrens Family Services,Books-CDs-Audio-Video,0021006865,ASKEWS & HOLTS LIBRARY SERVICES LTD,484.05,18/07/2023
Delivery Units,Childrens Family Services,Books-CDs-Audio-Video,0021006866,ASKEWS & HOLTS LIBRARY SERVICES LTD,709.04,21/07/2023
Delivery Units,Childrens Family Services,Books-CDs-Audio-Video,0021006867,Mill Hill Newsagents Ltd,133.30,21/07/2023
Delivery Units,Childrens Family Services,Books-CDs-Audio-Video,0021006868,Singh Convenience Store Ltd,410.80,21/07/2023
Delivery Units,Childrens Family Services,Books-CDs-Audio-Video,0021006875,ASKEWS & HOLTS LIBRARY SERVICES LTD,30.34,28/07/2023
Delivery Units,Childrens Family Services,Books-CDs-Audio-Video,0021006917,Malhotra News Agent Ltd,273.50,31/07/2023
Delivery Units,Childrens Family Services,Stationery,1026280802,Herts FullStop,37.40,04/07/2023
Delivery Units,Childrens Family Services,Books-CDs-Audio-Video,0021006864,CONFAGS,252.30,18/07/2023
Delivery Units,Childrens Family Services,Laundry and Dry Cleaning,1026719901,PHS GROUP LTD,271.60,11/07/2023
Delivery Units,Childrens Family Services,Cleaning and domestic material,1026779701,Norse Commercial Services Ltd,"2,648.54",12/07/2023
Delivery Units,Childrens Family Services,Cleaning and domestic material,1026823301,Norse Commercial Services Ltd,"2,338.11",13/07/2023
Delivery Units,Childrens Family Services,Other Services,1026823501,Norse Commercial Services Ltd,34.83,13/07/2023
Delivery Units,Childrens Family Services,Electricity,1026779901,Enron Estates Ltd,"2,500.00",12/07/2023
Delivery Units,Childrens Family Services,Other Services,1026825301,Norse Commercial Services Ltd,67.33,13/07/2023
Delivery Units,Childrens Family Services,Equipment and Materials Purcha,1027277202,WF Education Group Ltd,635.00,27/07/2023
Delivery Units,Childrens Family Services,Equipment and Materials Purcha,1024730002,Herts FullStop,6.64,04/07/2023
Delivery Units,Childrens Family Services,Other Services,1026822201,Norse Commercial Services Ltd,17.00,13/07/2023
Delivery Units,Childrens Family Services,Cleaning and domestic material,1027019601,Norse Commercial Services Ltd,528.42,18/07/2023
Delivery Units,Childrens Family Services,Laundry and Dry Cleaning,1026719801,PHS GROUP LTD,133.93,11/07/2023
Delivery Units,Childrens Family Services,Other Services,1026825901,Norse Commercial Services Ltd,29.58,13/07/2023
Delivery Units,Childrens Family Services,Equipment and Materials Purcha,1026828601,Norseman Direct Limited,901.00,13/07/2023
Delivery Units,Childrens Family Services,Other Services,1026779401,Norse Commercial Services Ltd,17.00,12/07/2023
Delivery Units,Childrens Family Services,Cleaning and domestic material,1026822701,Norse Commercial Services Ltd,527.87,13/07/2023
Delivery Units,Childrens Family Services,Equipment and Materials Purcha,1026830301,Norseman Direct Limited,901.00,13/07/2023
Delivery Units,Childrens Family Services,Equipment and Materials Purcha,1026828202,WF Education Group Ltd,273.00,18/07/2023
Delivery Units,Childrens Family Services,Other Services,1026892601,Norse Commercial Services Ltd,30.42,14/07/2023
Delivery Units,Childrens Family Services,Cleaning and domestic material,1027018601,Norse Commercial Services Ltd,705.28,18/07/2023
Delivery Units,Childrens Family Services,Cleaning and domestic material,1026718701,Norse Commercial Services Ltd,528.42,11/07/2023
Delivery Units,Childrens Family Services,Other Services,1026825001,Norse Commercial Services Ltd,21.25,13/07/2023
Delivery Units,Childrens Family Services,Cleaning and domestic material,1026720401,Norse Commercial Services Ltd,703.90,11/07/2023
Delivery Units,Childrens Family Services,Other Services,1026823101,Norse Commercial Services Ltd,25.92,13/07/2023
Delivery Units,Childrens Family Services,Gas,1026518902,KENT COUNTY COUNCIL (KCS),68.62,05/07/2023
Delivery Units,Childrens Family Services,Books-CDs-Audio-Video,1026561002,ASKEWS & HOLTS LIBRARY SERVICES LTD,4.33,17/07/2023
Delivery Units,Childrens Family Services,Books-CDs-Audio-Video,1026562102,ASKEWS & HOLTS LIBRARY SERVICES LTD,9.46,13/07/2023
Delivery Units,Childrens Family Services,Books-CDs-Audio-Video,1026563102,ASKEWS & HOLTS LIBRARY SERVICES LTD,252.26,17/07/2023
Delivery Units,Childrens Family Services,Books-CDs-Audio-Video,1026563602,ASKEWS & HOLTS LIBRARY SERVICES LTD,802.07,13/07/2023
Delivery Units,Childrens Family Services,Books-CDs-Audio-Video,1026830101,ASKEWS & HOLTS LIBRARY SERVICES LTD,411.49,13/07/2023
Delivery Units,Childrens Family Services,Books-CDs-Audio-Video,1026831001,ASKEWS & HOLTS LIBRARY SERVICES LTD,350.96,13/07/2023
Delivery Units,Strategy and Resources,Advertising,1021860703,GOOD IMPRESSIONS (LONDON) LIMITED,900.00,06/07/2023
Delivery Units,Assurance,Advertising,1024583203,GOOD IMPRESSIONS (LONDON) LIMITED,780.00,12/07/2023
Delivery Units,Assurance,Advertising,1024583303,GOOD IMPRESSIONS (LONDON) LIMITED,300.00,12/07/2023
Delivery Units,Assurance,General Office Expenses,1025598001,Banner Group Limited,16.40,06/07/2023
Delivery Units,Assurance,Postage,1026893301,ROYAL MAIL GROUP LIMITED,68.44,14/07/2023
Delivery Units,Assurance,Postage,1026893401,ROYAL MAIL GROUP LIMITED,99.90,14/07/2023
Delivery Units,Assurance,Postage,1026894501,ROYAL MAIL GROUP LIMITED,76.56,14/07/2023
Delivery Units,Assurance,Publications,1027444501,GOOD IMPRESSIONS (LONDON) LIMITED,880.00,28/07/2023
Delivery Units,Customer and Place,Software Licences & Support,1027378302,STOPFORD INFORMATIONSYSTEMSLTD,260.00,27/07/2023
Delivery Units,Assurance,Training,1026599301,CIPFA,950.00,07/07/2023
Delivery Units,Assurance,Other Indirect Employee Expens,1026520103,ISS Mediclean,"2,322.50",31/07/2023
Delivery Units,Assurance,Professional Services,1026713702,BARNARD &  WESTWOOD LTD,218.30,12/07/2023
Delivery Units,Assurance,Professional Services,1026714002,BARNARD &  WESTWOOD LTD,110.30,12/07/2023
Delivery Units,Assurance,Professional Services,1026714202,BARNARD &  WESTWOOD LTD,113.30,12/07/2023
Delivery Units,Assurance,Professional Services,1026714402,BARNARD &  WESTWOOD LTD,286.40,17/07/2023
Delivery Units,Assurance,Professional Services,1026714702,BARNARD &  WESTWOOD LTD,153.70,12/07/2023
Delivery Units,Assurance,Miscellaneous Expenses,1027134501,CHARTWELLS,500.50,20/07/2023
Delivery Units,Childrens Family Services,Other Transfer Payments to Soc,0070191657,St Michael's CE Primary School,339.50,21/07/2023
Delivery Units,Childrens Family Services,Other Transfer Payments to Soc,0070191658,St Michael's CE Primary School,639.00,21/07/2023
Delivery Units,Childrens Family Services,Legal and Court Fees,0070191126,Opus 2 International Limited,212.40,13/07/2023
Delivery Units,Childrens Family Services,Legal and Court Fees,0070191638,WILSON SOLICITORS LLP,300.00,21/07/2023
Delivery Units,Customer and Place,Capital Construction and Works,1024544103,Park Royal Office FurnitureLtd,"2,120.00",26/07/2023
Delivery Units,Customer and Place,Equipment and Materials Purcha,1026514303,Solo Protect Ltd,"1,321.20",11/07/2023
Delivery Units,Customer and Place,Equipment and Materials Purcha,1026395501,SSI SCHAEFER LTD,"7,080.00",03/07/2023
Delivery Units,Customer and Place,Equipment and Materials Purcha,1026652401,Imperial Polythene Products Ltd,"2,832.60",10/07/2023
Delivery Units,Customer and Place,Equipment and Materials Purcha,1026655101,Imperial Polythene Products Ltd,"3,906.30",10/07/2023
Delivery Units,Customer and Place,Equipment and Materials Purcha,1026456502,SMI INT Group Ltd,387.00,10/07/2023
Delivery Units,Customer and Place,Equipment and Materials Purcha,1026651801,N.A. BROWN LIMITED,783.78,10/07/2023
Delivery Units,Customer and Place,Equipment and Materials Purcha,1027021001,SMI INT Group Ltd,180.00,18/07/2023
Delivery Units,Customer and Place,Equipment and Materials Purcha,1027436001,THE HELPING HAND COMPANY,449.00,28/07/2023
Delivery Units,Customer and Place,Equipment and Materials Purcha,1027436801,THE HELPING HAND COMPANY,543.39,28/07/2023
Delivery Units,Customer and Place,Equipment and Materials Purcha,1027444101,N.A. BROWN LIMITED,"1,304.00",28/07/2023
Delivery Units,Customer and Place,Haz waste Collections,1024536801,CITY OF LONDON,"2,415.54",12/07/2023
Delivery Units,Customer and Place,Clothing - Protective Clothing,1018952503,SMI INT Group Ltd,69.45,10/07/2023
Delivery Units,Customer and Place,Clothing - Protective Clothing,1020948403,SMI INT Group Ltd,261.30,10/07/2023
Delivery Units,Customer and Place,Clothing - Protective Clothing,1021531703,SMI INT Group Ltd,9.33,10/07/2023
Delivery Units,Customer and Place,Clothing - Protective Clothing,1023945003,SMI INT Group Ltd,19.19,10/07/2023
Delivery Units,Customer and Place,Clothing - Protective Clothing,1023945403,SMI INT Group Ltd,35.09,10/07/2023
Delivery Units,Customer and Place,Clothing - Protective Clothing,1023945603,SMI INT Group Ltd,35.09,10/07/2023
Delivery Units,Customer and Place,Clothing - Protective Clothing,1023945803,SMI INT Group Ltd,19.19,10/07/2023
Delivery Units,Customer and Place,Clothing - Protective Clothing,1023985903,SMI INT Group Ltd,12.24,10/07/2023
Delivery Units,Customer and Place,Clothing - Protective Clothing,1023986103,SMI INT Group Ltd,19.19,10/07/2023
Delivery Units,Customer and Place,Clothing - Protective Clothing,1023986303,SMI INT Group Ltd,91.44,10/07/2023
Delivery Units,Customer and Place,Clothing - Protective Clothing,1023987203,SMI INT Group Ltd,33.62,10/07/2023
Delivery Units,Customer and Place,Clothing - Protective Clothing,1023987703,SMI INT Group Ltd,12.24,10/07/2023
Delivery Units,Customer and Place,Clothing - Protective Clothing,1023987803,SMI INT Group Ltd,19.19,10/07/2023
Delivery Units,Customer and Place,Clothing - Protective Clothing,1023987903,SMI INT Group Ltd,12.24,10/07/2023
Delivery Units,Customer and Place,Clothing - Protective Clothing,1023988103,SMI INT Group Ltd,33.62,10/07/2023
Delivery Units,Customer and Place,Clothing - Protective Clothing,1023988203,SMI INT Group Ltd,12.24,20/07/2023
Delivery Units,Customer and Place,Training,1025035301,Wallace School of Transport,"-1,940.00",11/07/2023
Delivery Units,Customer and Place,Training,1025036201,Wallace School of Transport,-299.00,11/07/2023
Delivery Units,Customer and Place,Training,1025037201,Wallace School of Transport,-40.50,11/07/2023
Delivery Units,Customer and Place,Training,1025103301,Wallace School of Transport,-299.00,11/07/2023
Delivery Units,Customer and Place,Training,1025104001,Wallace School of Transport,"-1,940.00",11/07/2023
Delivery Units,Customer and Place,Training,1025104501,Wallace School of Transport,-40.50,11/07/2023
Delivery Units,Customer and Place,Training,1025104801,Wallace School of Transport,-72.00,11/07/2023
Delivery Units,Customer and Place,Clothing - Protective Clothing,1025807102,SMI INT Group Ltd,42.67,28/07/2023
Delivery Units,Customer and Place,Clothing - Protective Clothing,1025808502,SMI INT Group Ltd,62.23,28/07/2023
Delivery Units,Customer and Place,Clothing - Protective Clothing,1026234502,SMI INT Group Ltd,45.27,28/07/2023
Delivery Units,Customer and Place,Clothing - Protective Clothing,1026656401,SMI INT Group Ltd,79.50,10/07/2023
Delivery Units,Customer and Place,Clothing - Protective Clothing,1026891001,SMI INT Group Ltd,101.85,14/07/2023
Delivery Units,Customer and Place,Clothing - Protective Clothing,1027127601,SMI INT Group Ltd,3.15,20/07/2023
Delivery Units,Customer and Place,Training,1027206301,SKILLS TRAINING CENTRE LTD,775.00,24/07/2023
Delivery Units,Customer and Place,Training,1027480001,SKILLS TRAINING CENTRE LTD,775.00,31/07/2023
Delivery Units,Customer and Place,General Office Expenses,1027441202,Banner Group Limited,419.88,31/07/2023
Delivery Units,Customer and Place,Equipment and Materials Purcha,1026559401,SMI INT Group Ltd,355.68,06/07/2023
Delivery Units,Adults and Health,Software Licences & Support,1027020702,Influential Software Services Ltd,"21,740.00",19/07/2023
Delivery Units,Adults and Health,Other Agencies - Third Party P,1027377902,THE BARNETGROUP LIMITED,306.12,28/07/2023
Delivery Units,Adults and Health,Other Agencies - Third Party P,1027378102,THE BARNETGROUP LIMITED,306.12,28/07/2023
Delivery Units,Adults and Health,Other Agencies - Third Party P,1027378902,THE BARNETGROUP LIMITED,306.12,27/07/2023
Delivery Units,Adults and Health,Other Agencies - Third Party P,1027379802,THE BARNETGROUP LIMITED,306.12,27/07/2023
Delivery Units,Adults and Health,Software Licences & Support,1024505603,Access UK Ltd,"1,389.75",25/07/2023
Delivery Units,Adults and Health,Software Licences & Support,1025334803,Access UK Ltd,"1,389.75",25/07/2023
Delivery Units,Adults and Health,Ttl IT & Comms,1026556102,Access UK Ltd,"9,067.50",24/07/2023
Delivery Units,Adults and Health,Software Licences & Support,1027283801,Access UK Ltd,"1,389.75",25/07/2023
Delivery Units,Adults and Health,Other Services,1024653703,Age UK Barnet,"50,000.00",24/07/2023
Delivery Units,Public Health,Health authorities - Third Par,1027280102,Central & North West London NHS FT,"489,438.75",25/07/2023
Delivery Units,Public Health,Health authorities - Third Par,1027280802,Central & North West London NHS FT,"11,500.00",25/07/2023
Delivery Units,Public Health,Health authorities - Third Par,1027280402,PROVIDE,104.00,25/07/2023
Delivery Units,Public Health,Health authorities - Third Par,1027275902,LEEDS CITY COUNCIL,140.00,26/07/2023
Delivery Units,Public Health,Health authorities - Third Par,1026348702,Barking Havering Redbridge NHS Trust,109.07,05/07/2023
Delivery Units,Public Health,Health authorities - Third Par,1026831802,Manchester University NHS Foundation Tru,140.00,13/07/2023
Delivery Units,Public Health,Health authorities - Third Par,1023193403,CENTRAL LONDONCOMMUNITY HEALTHCARE,610.53,05/07/2023
Delivery Units,Public Health,Health authorities - Third Par,1025037003,CENTRAL LONDONCOMMUNITY HEALTHCARE,614.00,11/07/2023
Delivery Units,Public Health,Health authorities - Third Par,1026284202,North Middlesex University Hos,"14,842.41",06/07/2023
Delivery Units,Public Health,Health authorities - Third Par,1026594202,Chelsea & Westminster Hospital,"39,866.70",10/07/2023
Delivery Units,Public Health,Health authorities - Third Par,1026597102,London North West Healthcare NHS Trust,"2,241.05",10/07/2023
Delivery Units,Public Health,Health authorities - Third Par,1026598302,University Hospitals Bristol,334.37,21/07/2023
Delivery Units,Public Health,Health authorities - Third Par,1026598902,Royal Berkshire NHS Foundation Trust,131.00,10/07/2023
Delivery Units,Public Health,Health authorities - Third Par,1026599902,Coventry & Warwickshire Partnership,234.00,10/07/2023
Delivery Units,Public Health,Health authorities - Third Par,1026600802,Dorset Healthcare University NHS,137.00,10/07/2023
Delivery Units,Public Health,Health authorities - Third Par,1026832002,University Hospitals Birmingham,300.00,17/07/2023
Delivery Units,Public Health,Health authorities - Third Par,1026832402,Oxford University Hospitals NHS Foundati,56.08,13/07/2023
Delivery Units,Public Health,Health authorities - Third Par,1026832502,Northamptonshire Healthcare NHS,136.00,19/07/2023
Delivery Units,Public Health,Health authorities - Third Par,1027176602,CENTRAL LONDONCOMMUNITY HEALTHCARE,747.00,21/07/2023
Delivery Units,Public Health,Health authorities - Third Par,1027278802,Guy's and St Thomas' NHS FT,"5,562.36",25/07/2023
Delivery Units,Public Health,Other Transfer Payments to Soc,1026890601,Kooth Digital Health Limited,"5,835.50",14/07/2023
Delivery Units,Adults and Health,Professional Services,1025706003,Recruitment Team Nine Limited,295.00,25/07/2023
Delivery Units,Adults and Health,Professional Services,1025865502,Recruitment Team Nine Limited,"1,180.00",03/07/2023
Delivery Units,Adults and Health,Professional Services,1026394001,Recruitment Team Nine Limited,737.50,03/07/2023
Delivery Units,Adults and Health,Professional Services,1026653501,Recruitment Team Nine Limited,"1,475.00",10/07/2023
Delivery Units,Adults and Health,Professional Services,1026960102,Recruitment Team Nine Limited,885.00,20/07/2023
Delivery Units,Adults and Health,Professional Services,1027184301,Kabe Limited,"2,100.00",21/07/2023
Delivery Units,Adults and Health,Professional Services,1027212302,POhWER,158.44,25/07/2023
Delivery Units,Adults and Health,Professional Services,1027283502,Recruitment Team Nine Limited,"1,622.50",31/07/2023
Delivery Units,Adults and Health,Professional Services,1027332402,CMG Consultants Limited,"4,725.00",26/07/2023
Delivery Units,Adults and Health,Professional Services,1027332602,CMG Consultants Limited,"2,800.00",26/07/2023
Delivery Units,Adults and Health,Professional Services,1027378402,Aisa Medical Ltd,"2,625.00",28/07/2023
Delivery Units,Adults and Health,Professional Services,1027480401,Recruitment Team Nine Limited,590.00,31/07/2023
Delivery Units,Adults and Health,Other Services,1026772101,Thebigword Group Ltd,385.25,12/07/2023
Delivery Units,Adults and Health,Ttl IT & Comms,1026648602,P A Consulting Services Ltd,"48,366.85",12/07/2023
Delivery Units,Adults and Health,Other Agencies - Third Party P,0090608687,BENSLOW MANAGEMENT COMPANY LIMITED,"4,124.57",13/07/2023
Delivery Units,Adults and Health,Other Agencies - Third Party P,0090611854,AUTUMN GARDENS,"4,800.00",25/07/2023
Delivery Units,Adults and Health,Other Agencies - Third Party P,0090611855,AUTUMN GARDENS,"5,000.00",25/07/2023
Delivery Units,Adults and Health,Other Agencies - Third Party P,0090611858,AUTUMN GARDENS,"4,800.00",25/07/2023
Delivery Units,Adults and Health,Other Agencies - Third Party P,0090611860,AUTUMN GARDENS,"3,656.00",25/07/2023
Delivery Units,Adults and Health,Other Agencies - Third Party P,0090612320,BENSLOW MANAGEMENT COMPANY LIMITED,"4,262.06",25/07/2023
Delivery Units,Adults and Health,Other Agencies - Third Party P,0090613869,CARLTON COURT (TLC GROUP),"6,800.00",25/07/2023
Delivery Units,Adults and Health,Other Agencies - Third Party P,0090613999,CARLTON COURT (TLC GROUP),"4,363.24",25/07/2023
Delivery Units,Adults and Health,Other Agencies - Third Party P,0090614011,CARLTON COURT (TLC GROUP),"7,000.00",25/07/2023
Delivery Units,Adults and Health,Other Agencies - Third Party P,0090614012,CARLTON COURT (TLC GROUP),"7,000.00",25/07/2023
Delivery Units,Adults and Health,Other Agencies - Third Party P,0090614206,CARLTON COURT (TLC GROUP),"4,363.24",25/07/2023
Delivery Units,Adults and Health,Other Agencies - Third Party P,0090614260,ASPEN VILLAGES LTD,"2,873.35",25/07/2023
Delivery Units,Adults and Health,Other Agencies - Third Party P,0090614263,ASPEN VILLAGES LTD,"14,400.00",25/07/2023
Delivery Units,Adults and Health,Other Agencies - Third Party P,0090606737,AGUDAS ISRAEL HOUSING ASSCTN LTD,"2,648.57",10/07/2023
Delivery Units,Adults and Health,Other Agencies - Third Party P,0090605191,St Matthews Limited,"3,719.70",03/07/2023
Delivery Units,Adults and Health,Other Agencies - Third Party P,0090605198,Karuna Manor,"4,302.86",03/07/2023
Delivery Units,Adults and Health,Other Agencies - Third Party P,0090605199,Karuna Manor,"2,528.53",03/07/2023
Delivery Units,Adults and Health,Other Agencies - Third Party P,0090605200,HUSKARDS NEW CARE LTD,"2,366.70",03/07/2023
Delivery Units,Adults and Health,Other Agencies - Third Party P,0090605201,Oakland Primecare Ltd t/a Elsyng House,"7,611.43",03/07/2023
Delivery Units,Adults and Health,Other Agencies - Third Party P,0090605203,Candlewood House Care Home,"8,317.76",03/07/2023
Delivery Units,Adults and Health,Other Agencies - Third Party P,0090605204,Candlewood House Care Home,"9,000.00",03/07/2023
Delivery Units,Adults and Health,Other Agencies - Third Party P,0090605871,Aspray House Ltd,"44,242.86",04/07/2023
Delivery Units,Adults and Health,Other Agencies - Third Party P,0090606745,Barchester Healthcare Limited,"3,728.57",10/07/2023
Delivery Units,Adults and Health,Other Agencies - Third Party P,0090608689,HC-One Oval LTD,"2,319.22",13/07/2023
Delivery Units,Adults and Health,Other Agencies - Third Party P,0090608850,Victoria Care Centre,"2,940.64",14/07/2023
Delivery Units,Adults and Health,Other Agencies - Third Party P,0090608851,Victoria Care Centre,"3,038.66",14/07/2023
Delivery Units,Adults and Health,Other Agencies - Third Party P,0090608852,GCH (HATFIELD) Limited,"2,324.76",14/07/2023
Delivery Units,Adults and Health,Other Agencies - Third Party P,0090611544,NIGHTINGALE HOUSE,"4,082.14",21/07/2023
Delivery Units,Adults and Health,Other Agencies - Third Party P,0090612313,HC-One Oval LTD,"2,338.20",25/07/2023
Delivery Units,Adults and Health,Other Agencies - Third Party P,0090612323,Candlewood House Care Home,"8,595.02",25/07/2023
Delivery Units,Adults and Health,Other Agencies - Third Party P,0090612324,Candlewood House Care Home,"9,300.00",25/07/2023
Delivery Units,Adults and Health,Other Agencies - Third Party P,0090612326,COOPERSCROFT CARE HOME,"6,642.86",25/07/2023
Delivery Units,Adults and Health,Other Agencies - Third Party P,0090612345,Karuna Manor,"4,446.29",25/07/2023
Delivery Units,Adults and Health,Other Agencies - Third Party P,0090612346,Karuna Manor,"2,612.81",25/07/2023
Delivery Units,Adults and Health,Other Agencies - Third Party P,0090612350,Oakland Primecare Ltd t/a Elsyng House,"7,865.14",25/07/2023
Delivery Units,Adults and Health,Other Agencies - Third Party P,0090612351,Barchester Healthcare,"7,085.71",25/07/2023
Delivery Units,Adults and Health,Other Agencies - Third Party P,0090612352,Barchester Healthcare,"6,200.00",25/07/2023
Delivery Units,Adults and Health,Other Agencies - Third Party P,0090612353,Barchester Healthcare,"1,927.91",25/07/2023
Delivery Units,Adults and Health,Other Agencies - Third Party P,0090612355,Barchester Healthcare,"6,200.00",25/07/2023
Delivery Units,Adults and Health,Other Agencies - Third Party P,0090612363,FERNBANK NURSING HOME.,"17,051.55",25/07/2023
Delivery Units,Adults and Health,Other Agencies - Third Party P,0090612366,FERNBANK NURSING HOME.,"5,092.68",25/07/2023
Delivery Units,Adults and Health,Other Agencies - Third Party P,0090613206,HUSKARDS NEW CARE LTD,"2,445.59",25/07/2023
Delivery Units,Adults and Health,Other Agencies - Third Party P,0090613223,Hamberley Care 1 Ltd,"3,305.49",25/07/2023
Delivery Units,Adults and Health,Other Agencies - Third Party P,0090613706,LIFESTYLE CARE PLC,"2,882.36",25/07/2023
Delivery Units,Adults and Health,Other Agencies - Third Party P,0090613709,FOUR SEASONS HEALTH CARE,"2,831.68",25/07/2023
Delivery Units,Adults and Health,Other Agencies - Third Party P,0090613710,JEWISH CARE,"29,803.55",25/07/2023
Delivery Units,Adults and Health,Other Agencies - Third Party P,0090613712,SONESTA NURSING HOME LTD.,"2,716.68",25/07/2023
Delivery Units,Adults and Health,Other Agencies - Third Party P,0090613714,SAGE NURSING HOME,"4,400.00",25/07/2023
Delivery Units,Adults and Health,Other Agencies - Third Party P,0090613716,ASHTON LODGE CARE CENTRE,"4,200.00",25/07/2023
Delivery Units,Adults and Health,Other Agencies - Third Party P,0090613718,ELEANOR PALMER TRUST NO 2 A/C.,"4,400.00",25/07/2023
Delivery Units,Adults and Health,Other Agencies - Third Party P,0090613720,ABBEY RAVENSCROFT PARK NURSING HOME,"3,968.00",25/07/2023
Delivery Units,Adults and Health,Other Agencies - Third Party P,0090613723,JEWISH CARE,"9,035.85",25/07/2023
Delivery Units,Adults and Health,Other Agencies - Third Party P,0090613726,ASHTON LODGE CARE CENTRE,"3,772.52",25/07/2023
Delivery Units,Adults and Health,Other Agencies - Third Party P,0090613728,CEDARS NURSING HOME,"3,085.29",25/07/2023
Delivery Units,Adults and Health,Other Agencies - Third Party P,0090613731,BUPA NURSING HOMES LTD - ARKLEY,"11,373.95",25/07/2023
Delivery Units,Adults and Health,Other Agencies - Third Party P,0090613732,APPLE TREE COURT CARE HOME,"5,360.33",25/07/2023
Delivery Units,Adults and Health,Other Agencies - Third Party P,0090613733,APPLE TREE COURT CARE HOME,0.04,25/07/2023
Delivery Units,Adults and Health,Other Agencies - Third Party P,0090613734,FOUR SEASONS HEALTH CARE,"6,347.58",25/07/2023
Delivery Units,Adults and Health,Other Agencies - Third Party P,0090613735,APPLE TREE COURT CARE HOME,"3,385.00",25/07/2023
Delivery Units,Adults and Health,Other Agencies - Third Party P,0090613736,BUPA CARE HOMES,"2,906.64",25/07/2023
Delivery Units,Adults and Health,Other Agencies - Third Party P,0090613741,SONESTA NURSING HOME LTD.,"2,716.68",25/07/2023
Delivery Units,Adults and Health,Other Agencies - Third Party P,0090613742,JEWISH CARE,"2,999.90",25/07/2023
Delivery Units,Adults and Health,Other Agencies - Third Party P,0090613746,APPLE TREE COURT CARE HOME,"3,865.80",25/07/2023
Delivery Units,Adults and Health,Other Agencies - Third Party P,0090613752,FOUR SEASONS HEALTH CARE,"2,831.68",25/07/2023
Delivery Units,Adults and Health,Other Agencies - Third Party P,0090613753,LIFESTYLE CARE PLC,"2,882.36",25/07/2023
Delivery Units,Adults and Health,Other Agencies - Third Party P,0090613754,JEWISH CARE,"3,930.96",25/07/2023
Delivery Units,Adults and Health,Other Agencies - Third Party P,0090613755,APPLE TREE COURT CARE HOME,"4,800.00",25/07/2023
Delivery Units,Adults and Health,Other Agencies - Third Party P,0090613757,LIFESTYLE CARE PLC,"2,882.36",25/07/2023
Delivery Units,Adults and Health,Other Agencies - Third Party P,0090613764,CEDARS NURSING HOME,"3,298.86",25/07/2023
Delivery Units,Adults and Health,Other Agencies - Third Party P,0090613783,ASHTON LODGE CARE CENTRE,"3,768.00",25/07/2023
Delivery Units,Adults and Health,Other Agencies - Third Party P,0090613786,ASHTON LODGE CARE CENTRE,"4,200.00",25/07/2023
Delivery Units,Adults and Health,Other Agencies - Third Party P,0090613788,ABBEY RAVENSCROFT PARK NURSING HOME,"3,752.00",25/07/2023
Delivery Units,Adults and Health,Other Agencies - Third Party P,0090613789,JEWISH CARE,"3,930.96",25/07/2023
Delivery Units,Adults and Health,Other Agencies - Third Party P,0090613791,APPLE TREE COURT CARE HOME,"4,016.00",25/07/2023
Delivery Units,Adults and Health,Other Agencies - Third Party P,0090613793,BUPA CARE HOMES,"-7,306.53",25/07/2023
Delivery Units,Adults and Health,Other Agencies - Third Party P,0090613794,LIFESTYLE CARE PLC,"48,311.70",25/07/2023
Delivery Units,Adults and Health,Other Agencies - Third Party P,0090613796,FOUR SEASONS HEALTH CARE,"-6,978.07",25/07/2023
Delivery Units,Adults and Health,Other Agencies - Third Party P,0090613797,FOUR SEASONS HEALTH CARE,"2,831.68",25/07/2023
Delivery Units,Adults and Health,Other Agencies - Third Party P,0090613802,LIFESTYLE CARE PLC,"2,882.36",25/07/2023
Delivery Units,Adults and Health,Other Agencies - Third Party P,0090613805,SONESTA NURSING HOME LTD.,"2,716.68",25/07/2023
Delivery Units,Adults and Health,Other Agencies - Third Party P,0090613816,ABBEY RAVENSCROFT PARK NURSING HOME,"3,968.00",25/07/2023
Delivery Units,Adults and Health,Other Agencies - Third Party P,0090613817,LIFESTYLE CARE PLC,"2,882.36",25/07/2023
Delivery Units,Adults and Health,Other Agencies - Third Party P,0090613821,ASHTON LODGE CARE CENTRE,"4,201.60",25/07/2023
Delivery Units,Adults and Health,Other Agencies - Third Party P,0090613822,ABBEY RAVENSCROFT PARK NURSING HOME,"3,968.00",25/07/2023
Delivery Units,Adults and Health,Other Agencies - Third Party P,0090613823,APPLE TREE COURT CARE HOME,"4,016.00",25/07/2023
Delivery Units,Adults and Health,Other Agencies - Third Party P,0090613830,JEWISH CARE,"3,930.96",25/07/2023
Delivery Units,Adults and Health,Other Agencies - Third Party P,0090613832,Aarandale Manor Care Home,"4,200.00",25/07/2023
Delivery Units,Adults and Health,Other Agencies - Third Party P,0090613836,ASHTON LODGE CARE CENTRE,"3,768.00",25/07/2023
Delivery Units,Adults and Health,Other Agencies - Third Party P,0090613839,CEDARS NURSING HOME,"3,942.86",25/07/2023
Delivery Units,Adults and Health,Other Agencies - Third Party P,0090613842,Lancam Care Services Limited,"4,116.00",25/07/2023
Delivery Units,Adults and Health,Other Agencies - Third Party P,0090613844,SAGE NURSING HOME,"4,952.00",25/07/2023
Delivery Units,Adults and Health,Other Agencies - Third Party P,0090613847,ELEANOR PALMER TRUST NO 2 A/C.,"4,400.00",25/07/2023
Delivery Units,Adults and Health,Other Agencies - Third Party P,0090613849,JEWISH CARE,"4,030.60",25/07/2023
Delivery Units,Adults and Health,Other Agencies - Third Party P,0090613851,CEDARS NURSING HOME,"3,942.86",25/07/2023
Delivery Units,Adults and Health,Other Agencies - Third Party P,0090613857,LIFESTYLE CARE PLC,"2,882.36",25/07/2023
Delivery Units,Adults and Health,Other Agencies - Third Party P,0090613858,SONESTA NURSING HOME LTD.,"2,716.68",25/07/2023
Delivery Units,Adults and Health,Other Agencies - Third Party P,0090613859,ASHTON LODGE CARE CENTRE,"3,866.00",25/07/2023
Delivery Units,Adults and Health,Other Agencies - Third Party P,0090613860,ABBEY RAVENSCROFT PARK NURSING HOME,"4,200.00",25/07/2023
Delivery Units,Adults and Health,Other Agencies - Third Party P,0090613863,FOUR SEASONS HEALTH CARE,"2,831.68",25/07/2023
Delivery Units,Adults and Health,Other Agencies - Third Party P,0090613864,ABBEY RAVENSCROFT PARK NURSING HOME,"4,800.00",25/07/2023
Delivery Units,Adults and Health,Other Agencies - Third Party P,0090613865,ELEANOR PALMER TRUST NO 2 A/C.,"4,400.00",25/07/2023
Delivery Units,Adults and Health,Other Agencies - Third Party P,0090613870,ASHTON LODGE CARE CENTRE,"4,168.00",25/07/2023
Delivery Units,Adults and Health,Other Agencies - Third Party P,0090613871,ASHTON LODGE CARE CENTRE,"4,764.00",25/07/2023
Delivery Units,Adults and Health,Other Agencies - Third Party P,0090613873,APPLE TREE COURT CARE HOME,"4,200.00",25/07/2023
Delivery Units,Adults and Health,Other Agencies - Third Party P,0090613877,JEWISH CARE,"4,030.60",25/07/2023
Delivery Units,Adults and Health,Other Agencies - Third Party P,0090613881,BUPA CARE HOMES,"2,906.64",25/07/2023
Delivery Units,Adults and Health,Other Agencies - Third Party P,0090613884,SONESTA NURSING HOME LTD.,"2,716.68",25/07/2023
Delivery Units,Adults and Health,Other Agencies - Third Party P,0090613885,APPLE TREE COURT CARE HOME,"4,498.60",25/07/2023
Delivery Units,Adults and Health,Other Agencies - Third Party P,0090613886,Aarandale Manor Care Home,"4,200.00",25/07/2023
Delivery Units,Adults and Health,Other Agencies - Third Party P,0090613887,ABBEY RAVENSCROFT PARK NURSING HOME,"4,552.00",25/07/2023
Delivery Units,Adults and Health,Other Agencies - Third Party P,0090613890,JEWISH CARE,"3,930.96",25/07/2023
Delivery Units,Adults and Health,Other Agencies - Third Party P,0090613895,BUPA CARE HOMES,"-1,141.89",25/07/2023
Delivery Units,Adults and Health,Other Agencies - Third Party P,0090613896,APPLE TREE COURT CARE HOME,"4,400.00",25/07/2023
Delivery Units,Adults and Health,Other Agencies - Third Party P,0090613897,BUPA CARE HOMES,"2,906.64",25/07/2023
Delivery Units,Adults and Health,Other Agencies - Third Party P,0090613898,BUPA NURSING HOMES LTD - ARKLEY,"4,016.00",25/07/2023
Delivery Units,Adults and Health,Other Agencies - Third Party P,0090613899,ASHTON LODGE CARE CENTRE,"4,249.60",25/07/2023
Delivery Units,Adults and Health,Other Agencies - Third Party P,0090613906,SONESTA NURSING HOME LTD.,"2,716.68",25/07/2023
Delivery Units,Adults and Health,Other Agencies - Third Party P,0090613908,APPLE TREE COURT CARE HOME,"5,400.00",25/07/2023
Delivery Units,Adults and Health,Other Agencies - Third Party P,0090613909,New Century Care (Finchley),"4,800.00",25/07/2023
Delivery Units,Adults and Health,Other Agencies - Third Party P,0090613910,CEDARS NURSING HOME,"4,271.43",25/07/2023
Delivery Units,Adults and Health,Other Agencies - Third Party P,0090613911,ASHTON LODGE CARE CENTRE,"4,200.00",25/07/2023
Delivery Units,Adults and Health,Other Agencies - Third Party P,0090613913,FOUR SEASONS HEALTH CARE,"3,684.00",25/07/2023
Delivery Units,Adults and Health,Other Agencies - Third Party P,0090613914,BUPA CARE HOMES,"4,000.00",25/07/2023
Delivery Units,Adults and Health,Other Agencies - Third Party P,0090613915,FOUR SEASONS HEALTH CARE,"2,831.68",25/07/2023
Delivery Units,Adults and Health,Other Agencies - Third Party P,0090613916,BUPA CARE HOMES,"2,906.64",25/07/2023
Delivery Units,Adults and Health,Other Agencies - Third Party P,0090613917,APPLE TREE COURT CARE HOME,"3,865.80",25/07/2023
Delivery Units,Adults and Health,Other Agencies - Third Party P,0090613921,ABBEY RAVENSCROFT PARK NURSING HOME,"4,200.00",25/07/2023
Delivery Units,Adults and Health,Other Agencies - Third Party P,0090613922,New Century Care (Finchley),"4,800.00",25/07/2023
Delivery Units,Adults and Health,Other Agencies - Third Party P,0090613923,CEDARS NURSING HOME,"4,271.43",25/07/2023
Delivery Units,Adults and Health,Other Agencies - Third Party P,0090613924,APPLE TREE COURT CARE HOME,"3,969.20",25/07/2023
Delivery Units,Adults and Health,Other Agencies - Third Party P,0090613925,ABBEY RAVENSCROFT PARK NURSING HOME,"4,971.43",25/07/2023
Delivery Units,Adults and Health,Other Agencies - Third Party P,0090613926,Aarandale Manor Care Home,"3,963.24",25/07/2023
Delivery Units,Adults and Health,Other Agencies - Third Party P,0090613930,CEDARS NURSING HOME,"-4,285.71",25/07/2023
Delivery Units,Adults and Health,Other Agencies - Third Party P,0090613937,JEWISH CARE,"3,930.96",25/07/2023
Delivery Units,Adults and Health,Other Agencies - Third Party P,0090613938,CEDARS NURSING HOME,"7,571.42",25/07/2023
Delivery Units,Adults and Health,Other Agencies - Third Party P,0090613946,SONESTA NURSING HOME LTD.,-183.82,25/07/2023
Delivery Units,Adults and Health,Other Agencies - Third Party P,0090613949,JEWISH CARE,"3,930.96",25/07/2023
Delivery Units,Adults and Health,Other Agencies - Third Party P,0090613950,SONESTA NURSING HOME LTD.,"2,716.68",25/07/2023
Delivery Units,Adults and Health,Other Agencies - Third Party P,0090613953,APPLE TREE COURT CARE HOME,"3,385.00",25/07/2023
Delivery Units,Adults and Health,Other Agencies - Third Party P,0090613956,CEDARS NURSING HOME,"3,942.86",25/07/2023
Delivery Units,Adults and Health,Other Agencies - Third Party P,0090613964,BUPA NURSING HOMES LTD - ARKLEY,"4,046.64",25/07/2023
Delivery Units,Adults and Health,Other Agencies - Third Party P,0090613967,JEWISH CARE,"3,930.96",25/07/2023
Delivery Units,Adults and Health,Other Agencies - Third Party P,0090613968,JEWISH CARE,"4,030.60",25/07/2023
Delivery Units,Adults and Health,Other Agencies - Third Party P,0090613973,FOUR SEASONS HEALTH CARE,"2,831.68",25/07/2023
Delivery Units,Adults and Health,Other Agencies - Third Party P,0090613975,Aarandale Manor Care Home,"6,400.00",25/07/2023
Delivery Units,Adults and Health,Other Agencies - Third Party P,0090613976,APPLE TREE COURT CARE HOME,"3,385.00",25/07/2023
Delivery Units,Adults and Health,Other Agencies - Third Party P,0090613981,LIFESTYLE CARE PLC,"2,882.36",25/07/2023
Delivery Units,Adults and Health,Other Agencies - Third Party P,0090613982,ABBEY RAVENSCROFT PARK NURSING HOME,"4,631.43",25/07/2023
Delivery Units,Adults and Health,Other Agencies - Third Party P,0090613985,APPLE TREE COURT CARE HOME,"2,600.00",25/07/2023
Delivery Units,Adults and Health,Other Agencies - Third Party P,0090613986,ABBEY RAVENSCROFT PARK NURSING HOME,"4,800.00",25/07/2023
Delivery Units,Adults and Health,Other Agencies - Third Party P,0090613987,APPLE TREE COURT CARE HOME,"9,035.72",25/07/2023
Delivery Units,Adults and Health,Other Agencies - Third Party P,0090613990,APPLE TREE COURT CARE HOME,"1,250.00",25/07/2023
Delivery Units,Adults and Health,Other Agencies - Third Party P,0090613993,New Century Care (Finchley),"5,000.00",25/07/2023
Delivery Units,Adults and Health,Other Agencies - Third Party P,0090614005,BUPA NURSING HOMES LTD - ARKLEY,"4,116.00",25/07/2023
Delivery Units,Adults and Health,Other Agencies - Third Party P,0090614006,New Century Care (Finchley),"9,704.00",25/07/2023
Delivery Units,Adults and Health,Other Agencies - Third Party P,0090614007,JEWISH CARE,"3,930.96",25/07/2023
Delivery Units,Adults and Health,Other Agencies - Third Party P,0090614008,JEWISH CARE,"4,030.60",25/07/2023
Delivery Units,Adults and Health,Other Agencies - Third Party P,0090614009,SONESTA NURSING HOME LTD.,"3,216.00",25/07/2023
Delivery Units,Adults and Health,Other Agencies - Third Party P,0090614010,FOUR SEASONS HEALTH CARE,"4,400.00",25/07/2023
Delivery Units,Adults and Health,Other Agencies - Third Party P,0090614013,LIFESTYLE CARE PLC,"5,521.16",25/07/2023
Delivery Units,Adults and Health,Other Agencies - Third Party P,0090614015,ABBEY RAVENSCROFT PARK NURSING HOME,"4,400.00",25/07/2023
Delivery Units,Adults and Health,Other Agencies - Third Party P,0090614024,BUPA CARE HOMES,"3,871.24",25/07/2023
Delivery Units,Adults and Health,Other Agencies - Third Party P,0090614026,FOUR SEASONS HEALTH CARE,"11,807.14",25/07/2023
Delivery Units,Adults and Health,Other Agencies - Third Party P,0090614027,FOUR SEASONS HEALTH CARE,"3,600.00",25/07/2023
Delivery Units,Adults and Health,Other Agencies - Third Party P,0090614035,ELEANOR PALMER TRUST NO 2 A/C.,"4,400.00",25/07/2023
Delivery Units,Adults and Health,Other Agencies - Third Party P,0090614036,LIFESTYLE CARE PLC,"2,882.36",25/07/2023
Delivery Units,Adults and Health,Other Agencies - Third Party P,0090614039,Aarandale Manor Care Home,"4,200.00",25/07/2023
Delivery Units,Adults and Health,Other Agencies - Third Party P,0090614041,BUPA NURSING HOMES LTD - ARKLEY,"-2,179.98",25/07/2023
Delivery Units,Adults and Health,Other Agencies - Third Party P,0090614045,SAGE NURSING HOME,"4,400.00",25/07/2023
Delivery Units,Adults and Health,Other Agencies - Third Party P,0090614054,New Century Care (Finchley),"4,800.00",25/07/2023
Delivery Units,Adults and Health,Other Agencies - Third Party P,0090614059,ABBEY RAVENSCROFT PARK NURSING HOME,"4,800.00",25/07/2023
Delivery Units,Adults and Health,Other Agencies - Third Party P,0090614063,JEWISH CARE,"4,026.91",25/07/2023
Delivery Units,Adults and Health,Other Agencies - Third Party P,0090614065,ELEANOR PALMER TRUST NO 2 A/C.,"4,400.00",25/07/2023
Delivery Units,Adults and Health,Other Agencies - Third Party P,0090614067,HENRY NIHILL HOUSE,"3,816.00",25/07/2023
Delivery Units,Adults and Health,Other Agencies - Third Party P,0090614068,SONESTA NURSING HOME LTD.,"3,216.00",25/07/2023
Delivery Units,Adults and Health,Other Agencies - Third Party P,0090614069,HENRY NIHILL HOUSE,"3,816.00",25/07/2023
Delivery Units,Adults and Health,Other Agencies - Third Party P,0090614070,HENRY NIHILL HOUSE,"3,816.00",25/07/2023
Delivery Units,Adults and Health,Other Agencies - Third Party P,0090614071,BUPA CARE HOMES,"-4,233.21",25/07/2023
Delivery Units,Adults and Health,Other Agencies - Third Party P,0090614077,Aarandale Manor Care Home,"5,200.00",25/07/2023
Delivery Units,Adults and Health,Other Agencies - Third Party P,0090614078,BUPA NURSING HOMES LTD - ARKLEY,"3,800.00",25/07/2023
Delivery Units,Adults and Health,Other Agencies - Third Party P,0090614080,BUPA NURSING HOMES LTD - ARKLEY,"20,614.28",25/07/2023
Delivery Units,Adults and Health,Other Agencies - Third Party P,0090614081,ABBEY RAVENSCROFT PARK NURSING HOME,"4,800.00",25/07/2023
Delivery Units,Adults and Health,Other Agencies - Third Party P,0090614085,New Century Care (Finchley),"5,200.00",25/07/2023
Delivery Units,Adults and Health,Other Agencies - Third Party P,0090614086,SONESTA NURSING HOME LTD.,"2,180.89",25/07/2023
Delivery Units,Adults and Health,Other Agencies - Third Party P,0090614087,SONESTA NURSING HOME LTD.,"1,485.71",25/07/2023
Delivery Units,Adults and Health,Other Agencies - Third Party P,0090614089,FOUR SEASONS HEALTH CARE,"3,707.62",25/07/2023
Delivery Units,Adults and Health,Other Agencies - Third Party P,0090614101,APPLE TREE COURT CARE HOME,"2,709.08",25/07/2023
Delivery Units,Adults and Health,Other Agencies - Third Party P,0090614107,ELEANOR PALMER TRUST NO 2 A/C.,"4,400.00",25/07/2023
Delivery Units,Adults and Health,Other Agencies - Third Party P,0090614111,ASHTON LODGE CARE CENTRE,"3,790.76",25/07/2023
Delivery Units,Adults and Health,Other Agencies - Third Party P,0090614114,ELEANOR PALMER TRUST NO 2 A/C.,"4,400.00",25/07/2023
Delivery Units,Adults and Health,Other Agencies - Third Party P,0090614117,JEWISH CARE,-164.76,25/07/2023
Delivery Units,Adults and Health,Other Agencies - Third Party P,0090614121,APPLE TREE COURT CARE HOME,"3,980.00",25/07/2023
Delivery Units,Adults and Health,Other Agencies - Third Party P,0090614124,APPLE TREE COURT CARE HOME,"3,385.00",25/07/2023
Delivery Units,Adults and Health,Other Agencies - Third Party P,0090614125,APPLE TREE COURT CARE HOME,"3,385.00",25/07/2023
Delivery Units,Adults and Health,Other Agencies - Third Party P,0090614135,LIFESTYLE CARE PLC,"2,882.36",25/07/2023
Delivery Units,Adults and Health,Other Agencies - Third Party P,0090614137,FOUR SEASONS HEALTH CARE,"2,831.68",25/07/2023
Delivery Units,Adults and Health,Other Agencies - Third Party P,0090614145,APPLE TREE COURT CARE HOME,"3,385.00",25/07/2023
Delivery Units,Adults and Health,Other Agencies - Third Party P,0090614146,ABBEY RAVENSCROFT PARK NURSING HOME,"3,968.00",25/07/2023
Delivery Units,Adults and Health,Other Agencies - Third Party P,0090614147,JEWISH CARE,"4,030.60",25/07/2023
Delivery Units,Adults and Health,Other Agencies - Third Party P,0090614152,ABBEY RAVENSCROFT PARK NURSING HOME,"4,631.43",25/07/2023
Delivery Units,Adults and Health,Other Agencies - Third Party P,0090614155,BUPA NURSING HOMES LTD - ARKLEY,"2,906.64",25/07/2023
Delivery Units,Adults and Health,Other Agencies - Third Party P,0090614156,ASHTON LODGE CARE CENTRE,"4,201.60",25/07/2023
Delivery Units,Adults and Health,Other Agencies - Third Party P,0090614157,ELEANOR PALMER TRUST NO 2 A/C.,"4,400.00",25/07/2023
Delivery Units,Adults and Health,Other Agencies - Third Party P,0090614164,Aarandale Manor Care Home,"4,200.00",25/07/2023
Delivery Units,Adults and Health,Other Agencies - Third Party P,0090614165,LIFESTYLE CARE PLC,"2,882.36",25/07/2023
Delivery Units,Adults and Health,Other Agencies - Third Party P,0090614166,ELEANOR PALMER TRUST NO 2 A/C.,"4,720.00",25/07/2023
Delivery Units,Adults and Health,Other Agencies - Third Party P,0090614169,JEWISH CARE,"4,030.60",25/07/2023
Delivery Units,Adults and Health,Other Agencies - Third Party P,0090614170,ELEANOR PALMER TRUST NO 2 A/C.,"4,400.00",25/07/2023
Delivery Units,Adults and Health,Other Agencies - Third Party P,0090614171,Lancam Care Services Limited,"3,916.00",25/07/2023
Delivery Units,Adults and Health,Other Agencies - Third Party P,0090614174,LIFESTYLE CARE PLC,"2,882.36",25/07/2023
Delivery Units,Adults and Health,Other Agencies - Third Party P,0090614177,SAGE NURSING HOME,"3,256.00",25/07/2023
Delivery Units,Adults and Health,Other Agencies - Third Party P,0090614178,BUPA NURSING HOMES LTD - ARKLEY,"2,906.64",25/07/2023
Delivery Units,Adults and Health,Other Agencies - Third Party P,0090614179,JEWISH CARE,"9,143.35",25/07/2023
Delivery Units,Adults and Health,Other Agencies - Third Party P,0090614180,Lancam Care Services Limited,"4,196.00",25/07/2023
Delivery Units,Adults and Health,Other Agencies - Third Party P,0090614182,FOUR SEASONS HEALTH CARE,"2,831.68",25/07/2023
Delivery Units,Adults and Health,Other Agencies - Third Party P,0090614183,Lancam Care Services Limited,"4,196.00",25/07/2023
Delivery Units,Adults and Health,Other Agencies - Third Party P,0090614184,BUPA CARE HOMES,"-2,906.64",25/07/2023
Delivery Units,Adults and Health,Other Agencies - Third Party P,0090614188,JEWISH CARE,"5,555.43",25/07/2023
Delivery Units,Adults and Health,Other Agencies - Third Party P,0090614189,JEWISH CARE,"3,930.96",25/07/2023
Delivery Units,Adults and Health,Other Agencies - Third Party P,0090614190,APPLE TREE COURT CARE HOME,"4,763.24",25/07/2023
Delivery Units,Adults and Health,Other Agencies - Third Party P,0090614192,New Century Care (Finchley),"4,400.00",25/07/2023
Delivery Units,Adults and Health,Other Agencies - Third Party P,0090614193,BUPA CARE HOMES,"2,906.64",25/07/2023
Delivery Units,Adults and Health,Other Agencies - Third Party P,0090614194,ABBEY RAVENSCROFT PARK NURSING HOME,"4,400.00",25/07/2023
Delivery Units,Adults and Health,Other Agencies - Third Party P,0090614196,FOUR SEASONS HEALTH CARE,"2,831.68",25/07/2023
Delivery Units,Adults and Health,Other Agencies - Third Party P,0090614197,LIFESTYLE CARE PLC,"2,882.36",25/07/2023
Delivery Units,Adults and Health,Other Agencies - Third Party P,0090614198,ABBEY RAVENSCROFT PARK NURSING HOME,"4,800.00",25/07/2023
Delivery Units,Adults and Health,Other Agencies - Third Party P,0090614199,BUPA NURSING HOMES LTD - ARKLEY,"3,616.00",25/07/2023
Delivery Units,Adults and Health,Other Agencies - Third Party P,0090614204,APPLE TREE COURT CARE HOME,"9,671.43",25/07/2023
Delivery Units,Adults and Health,Other Agencies - Third Party P,0090614207,APPLE TREE COURT CARE HOME,"4,763.24",25/07/2023
Delivery Units,Adults and Health,Other Agencies - Third Party P,0090614209,BUPA NURSING HOMES LTD - ARKLEY,"4,116.00",25/07/2023
Delivery Units,Adults and Health,Other Agencies - Third Party P,0090614210,BUPA CARE HOMES,"-1,428.57",25/07/2023
Delivery Units,Adults and Health,Other Agencies - Third Party P,0090614211,SAGE NURSING HOME,"4,400.00",25/07/2023
Delivery Units,Adults and Health,Other Agencies - Third Party P,0090614215,ABBEY RAVENSCROFT PARK NURSING HOME,"4,800.00",25/07/2023
Delivery Units,Adults and Health,Other Agencies - Third Party P,0090614216,BUPA NURSING HOMES LTD - ARKLEY,"27,857.14",25/07/2023
Delivery Units,Adults and Health,Other Agencies - Third Party P,0090614217,FOUR SEASONS HEALTH CARE,"2,831.68",25/07/2023
Delivery Units,Adults and Health,Other Agencies - Third Party P,0090614218,FOUR SEASONS HEALTH CARE,"-3,845.45",25/07/2023
Delivery Units,Adults and Health,Other Agencies - Third Party P,0090614219,CEDARS NURSING HOME,"4,600.00",25/07/2023
Delivery Units,Adults and Health,Other Agencies - Third Party P,0090614221,ABBEY RAVENSCROFT PARK NURSING HOME,"5,200.00",25/07/2023
Delivery Units,Adults and Health,Other Agencies - Third Party P,0090614222,BUPA CARE HOMES,"2,906.64",25/07/2023
Delivery Units,Adults and Health,Other Agencies - Third Party P,0090614223,ASHTON LODGE CARE CENTRE,"1,542.85",25/07/2023
Delivery Units,Adults and Health,Other Agencies - Third Party P,0090614225,APPLE TREE COURT CARE HOME,"4,832.25",25/07/2023
Delivery Units,Adults and Health,Other Agencies - Third Party P,0090614227,ASHTON LODGE CARE CENTRE,"5,314.29",25/07/2023
Delivery Units,Adults and Health,Other Agencies - Third Party P,0090614232,New Century Care (Finchley),"3,861.54",25/07/2023
Delivery Units,Adults and Health,Other Agencies - Third Party P,0090614236,ELEANOR PALMER TRUST NO 2 A/C.,"9,271.43",25/07/2023
Delivery Units,Adults and Health,Other Agencies - Third Party P,0090614264,Stamford Nursing Centre,"4,178.57",25/07/2023
Delivery Units,Adults and Health,Other Agencies - Third Party P,0090614362,St Matthews Limited,"3,843.69",25/07/2023
Delivery Units,Adults and Health,Other Agencies - Third Party P,0090614374,Milford Lodge Residential Home,"4,071.43",25/07/2023
Delivery Units,Adults and Health,Other Agencies - Third Party P,0090614375,Milford Lodge Residential Home,"4,207.14",25/07/2023
Delivery Units,Adults and Health,Other Agencies - Third Party P,0090615117,Alexandra House (Runwood Homes),"5,314.29",28/07/2023
Delivery Units,Adults and Health,Other Agencies - Third Party P,0090609548,TBG Mosaic,"2,540.00",17/07/2023
Delivery Units,Adults and Health,Other Agencies - Third Party P,0090609549,TBG Mosaic,"13,863.20",17/07/2023
Delivery Units,Adults and Health,Other Agencies - Third Party P,0090609550,TBG Mosaic,"4,612.00",17/07/2023
Delivery Units,Adults and Health,Other Agencies - Third Party P,0090609551,TBG Mosaic,0.04,17/07/2023
Delivery Units,Adults and Health,Other Agencies - Third Party P,0090609552,TBG Mosaic,"9,673.20",17/07/2023
Delivery Units,Adults and Health,Other Agencies - Third Party P,0090609553,TBG Mosaic,"2,676.00",17/07/2023
Delivery Units,Adults and Health,Other Agencies - Third Party P,0090609554,TBG Mosaic,"2,540.00",17/07/2023
Delivery Units,Adults and Health,Other Agencies - Third Party P,0090609555,TBG Mosaic,"2,540.00",17/07/2023
Delivery Units,Adults and Health,Other Agencies - Third Party P,0090609556,TBG Mosaic,"3,000.00",17/07/2023
Delivery Units,Adults and Health,Other Agencies - Third Party P,0090609557,TBG Mosaic,"-13,244.29",17/07/2023
Delivery Units,Adults and Health,Other Agencies - Third Party P,0090609558,TBG Mosaic,"2,676.00",17/07/2023
Delivery Units,Adults and Health,Other Agencies - Third Party P,0090609559,TBG Mosaic,"2,676.00",17/07/2023
Delivery Units,Adults and Health,Other Agencies - Third Party P,0090609560,TBG Mosaic,"2,540.00",17/07/2023
Delivery Units,Adults and Health,Other Agencies - Third Party P,0090609561,TBG Mosaic,"2,676.00",17/07/2023
Delivery Units,Adults and Health,Other Agencies - Third Party P,0090609562,TBG Mosaic,"2,676.00",17/07/2023
Delivery Units,Adults and Health,Other Agencies - Third Party P,0090609563,TBG Mosaic,"2,540.00",17/07/2023
Delivery Units,Adults and Health,Other Agencies - Third Party P,0090609566,TBG Mosaic,"16,533.86",17/07/2023
Delivery Units,Adults and Health,Other Agencies - Third Party P,0090609567,TBG Mosaic,"2,676.00",17/07/2023
Delivery Units,Adults and Health,Other Agencies - Third Party P,0090609568,TBG Mosaic,"2,676.00",17/07/2023
Delivery Units,Adults and Health,Other Agencies - Third Party P,0090609570,TBG Mosaic,"2,540.00",17/07/2023
Delivery Units,Adults and Health,Other Agencies - Third Party P,0090609572,TBG Mosaic,"2,540.00",17/07/2023
Delivery Units,Adults and Health,Other Agencies - Third Party P,0090609573,TBG Mosaic,"2,540.00",17/07/2023
Delivery Units,Adults and Health,Other Agencies - Third Party P,0090609574,TBG Mosaic,"2,540.00",17/07/2023
Delivery Units,Adults and Health,Other Agencies - Third Party P,0090609575,TBG Mosaic,"2,676.00",17/07/2023
Delivery Units,Adults and Health,Other Agencies - Third Party P,0090609576,TBG Mosaic,"1,338.00",17/07/2023
Delivery Units,Adults and Health,Other Agencies - Third Party P,0090609577,TBG Mosaic,"2,540.00",17/07/2023
Delivery Units,Adults and Health,Other Agencies - Third Party P,0090609578,TBG Mosaic,"2,540.00",17/07/2023
Delivery Units,Adults and Health,Other Agencies - Third Party P,0090609579,TBG Mosaic,"2,540.00",17/07/2023
Delivery Units,Adults and Health,Other Agencies - Third Party P,0090609581,TBG Mosaic,"2,676.00",17/07/2023
Delivery Units,Adults and Health,Other Agencies - Third Party P,0090609582,TBG Mosaic,"-3,610.34",17/07/2023
Delivery Units,Adults and Health,Other Agencies - Third Party P,0090609583,TBG Mosaic,"2,676.00",17/07/2023
Delivery Units,Adults and Health,Other Agencies - Third Party P,0090609584,TBG Mosaic,"2,540.00",17/07/2023
Delivery Units,Adults and Health,Other Agencies - Third Party P,0090609585,TBG Mosaic,"2,540.00",17/07/2023
Delivery Units,Adults and Health,Other Agencies - Third Party P,0090609586,TBG Mosaic,"2,540.00",17/07/2023
Delivery Units,Adults and Health,Other Agencies - Third Party P,0090609587,TBG Mosaic,"2,540.00",17/07/2023
Delivery Units,Adults and Health,Other Agencies - Third Party P,0090609589,TBG Mosaic,"2,540.00",17/07/2023
Delivery Units,Adults and Health,Other Agencies - Third Party P,0090609590,TBG Mosaic,"2,676.00",17/07/2023
Delivery Units,Adults and Health,Other Agencies - Third Party P,0090609591,TBG Mosaic,"2,540.00",17/07/2023
Delivery Units,Adults and Health,Other Agencies - Third Party P,0090609592,TBG Mosaic,"2,676.00",17/07/2023
Delivery Units,Adults and Health,Other Agencies - Third Party P,0090609593,TBG Mosaic,"2,540.00",17/07/2023
Delivery Units,Adults and Health,Other Agencies - Third Party P,0090609594,TBG Mosaic,"2,676.00",17/07/2023
Delivery Units,Adults and Health,Other Agencies - Third Party P,0090609595,TBG Mosaic,"2,857.92",17/07/2023
Delivery Units,Adults and Health,Other Agencies - Third Party P,0090609596,TBG Mosaic,"2,540.00",17/07/2023
Delivery Units,Adults and Health,Other Agencies - Third Party P,0090609597,TBG Mosaic,"2,676.00",17/07/2023
Delivery Units,Adults and Health,Other Agencies - Third Party P,0090609598,TBG Mosaic,"2,540.00",17/07/2023
Delivery Units,Adults and Health,Other Agencies - Third Party P,0090609599,TBG Mosaic,"2,676.00",17/07/2023
Delivery Units,Adults and Health,Other Agencies - Third Party P,0090609600,TBG Mosaic,"2,676.00",17/07/2023
Delivery Units,Adults and Health,Other Agencies - Third Party P,0090609601,TBG Mosaic,"2,676.00",17/07/2023
Delivery Units,Adults and Health,Other Agencies - Third Party P,0090609602,TBG Mosaic,"18,338.43",17/07/2023
Delivery Units,Adults and Health,Other Agencies - Third Party P,0090609603,TBG Mosaic,"1,723.57",17/07/2023
Delivery Units,Adults and Health,Other Agencies - Third Party P,0090611879,GCH (North London) t/a The Tudors,"2,346.00",25/07/2023
Delivery Units,Adults and Health,Other Agencies - Third Party P,0090613756,CATHERINE LODGE,-678.57,25/07/2023
Delivery Units,Adults and Health,Other Agencies - Third Party P,0090613776,ROSEACRES CARE HOME LIMITED,"3,336.00",25/07/2023
Delivery Units,Adults and Health,Other Agencies - Third Party P,0090613801,CATHERINE LODGE,"3,580.00",25/07/2023
Delivery Units,Adults and Health,Other Agencies - Third Party P,0090613803,CARLTON COURT (TLC GROUP),"5,800.00",25/07/2023
Delivery Units,Adults and Health,Other Agencies - Third Party P,0090613809,CARLTON COURT (TLC GROUP),"5,400.00",25/07/2023
Delivery Units,Adults and Health,Other Agencies - Third Party P,0090613815,ROSEACRES CARE HOME LIMITED,"3,416.00",25/07/2023
Delivery Units,Adults and Health,Other Agencies - Third Party P,0090613828,CATHERINE LODGE,"3,800.00",25/07/2023
Delivery Units,Adults and Health,Other Agencies - Third Party P,0090613834,ROSEACRES CARE HOME LIMITED,"2,900.00",25/07/2023
Delivery Units,Adults and Health,Other Agencies - Third Party P,0090613853,ROSEACRES CARE HOME LIMITED,"3,616.00",25/07/2023
Delivery Units,Adults and Health,Other Agencies - Third Party P,0090613861,CATHERINE LODGE,"3,800.00",25/07/2023
Delivery Units,Adults and Health,Other Agencies - Third Party P,0090613878,CATHERINE LODGE,"3,200.00",25/07/2023
Delivery Units,Adults and Health,Other Agencies - Third Party P,0090613891,ROSEACRES CARE HOME LIMITED,-500.00,25/07/2023
Delivery Units,Adults and Health,Other Agencies - Third Party P,0090613901,CATHERINE LODGE,"3,800.00",25/07/2023
Delivery Units,Adults and Health,Other Agencies - Third Party P,0090613918,CARLTON COURT (TLC GROUP),"5,200.00",25/07/2023
Delivery Units,Adults and Health,Other Agencies - Third Party P,0090613935,CATHERINE LODGE,"3,000.00",25/07/2023
Delivery Units,Adults and Health,Other Agencies - Third Party P,0090613939,CARLTON COURT (TLC GROUP),"6,376.16",25/07/2023
Delivery Units,Adults and Health,Other Agencies - Third Party P,0090613943,ROSEACRES CARE HOME LIMITED,"3,336.00",25/07/2023
Delivery Units,Adults and Health,Other Agencies - Third Party P,0090613970,ROSEACRES CARE HOME LIMITED,"3,616.00",25/07/2023
Delivery Units,Adults and Health,Other Agencies - Third Party P,0090613977,CATHERINE LODGE,"3,200.00",25/07/2023
Delivery Units,Adults and Health,Other Agencies - Third Party P,0090614003,ROSEACRES CARE HOME LIMITED,"2,900.00",25/07/2023
Delivery Units,Adults and Health,Other Agencies - Third Party P,0090614017,CATHERINE LODGE,"3,800.00",25/07/2023
Delivery Units,Adults and Health,Other Agencies - Third Party P,0090614034,ROSEACRES CARE HOME LIMITED,"2,900.00",25/07/2023
Delivery Units,Adults and Health,Other Agencies - Third Party P,0090614044,ROSEACRES CARE HOME LIMITED,"3,400.00",25/07/2023
Delivery Units,Adults and Health,Other Agencies - Third Party P,0090614052,ROSEACRES CARE HOME LIMITED,"3,620.00",25/07/2023
Delivery Units,Adults and Health,Other Agencies - Third Party P,0090614056,ROSEACRES CARE HOME LIMITED,"3,800.00",25/07/2023
Delivery Units,Adults and Health,Other Agencies - Third Party P,0090614057,ROSEACRES CARE HOME LIMITED,"3,800.00",25/07/2023
Delivery Units,Adults and Health,Other Agencies - Third Party P,0090614061,CATHERINE LODGE,"3,800.00",25/07/2023
Delivery Units,Adults and Health,Other Agencies - Third Party P,0090614062,CARLTON COURT (TLC GROUP),"6,200.00",25/07/2023
Delivery Units,Adults and Health,Other Agencies - Third Party P,0090614123,ROSEACRES CARE HOME LIMITED,"3,616.00",25/07/2023
Delivery Units,Adults and Health,Other Agencies - Third Party P,0090614159,ROSEACRES CARE HOME LIMITED,"3,416.00",25/07/2023
Delivery Units,Adults and Health,Other Agencies - Third Party P,0090614185,ROSEACRES CARE HOME LIMITED,"3,616.00",25/07/2023
Delivery Units,Adults and Health,Other Agencies - Third Party P,0090614203,CATHERINE LODGE,"3,800.00",25/07/2023
Delivery Units,Adults and Health,Other Agencies - Third Party P,0090614233,CATHERINE LODGE,"3,800.00",25/07/2023
Delivery Units,Adults and Health,Other Agencies - Third Party P,0090614246,TENTERDEN HOUSE,"4,280.26",25/07/2023
Delivery Units,Adults and Health,Other Agencies - Third Party P,0090614365,SYDMAR LODGE,"5,535.71",25/07/2023
Delivery Units,Adults and Health,Other Agencies - Third Party P,0090614366,SYDMAR LODGE,"4,353.29",25/07/2023
Delivery Units,Adults and Health,Other Agencies - Third Party P,0090614367,SYDMAR LODGE,"5,535.71",25/07/2023
Delivery Units,Adults and Health,Other Agencies - Third Party P,0090614368,SYDMAR LODGE,"5,535.71",25/07/2023
Delivery Units,Adults and Health,Other Agencies - Third Party P,0090614370,SYDMAR LODGE,"5,872.29",25/07/2023
Delivery Units,Adults and Health,Other Agencies - Third Party P,0090615082,Shenleybury House Ltd,"3,878.57",28/07/2023
Delivery Units,Adults and Health,Other Agencies - Third Party P,0090615094,Shenleybury House Ltd,"4,007.86",28/07/2023
Delivery Units,Adults and Health,Other Agencies - Third Party P,0090615113,Optimum Support Ltd,"6,642.50",28/07/2023
Delivery Units,Adults and Health,Other Agencies - Third Party P,0090605189,VILLA SCALABRINI,"4,428.57",03/07/2023
Delivery Units,Adults and Health,Other Agencies - Third Party P,0090605190,VILLA SCALABRINI,"4,285.71",03/07/2023
Delivery Units,Adults and Health,Other Agencies - Third Party P,0090611867,LIVABILITY,"3,528.28",25/07/2023
Delivery Units,Adults and Health,Other Agencies - Third Party P,0090611869,LIVABILITY,"3,740.44",25/07/2023
Delivery Units,Adults and Health,Other Agencies - Third Party P,0090611872,LIVABILITY,"4,720.12",25/07/2023
Delivery Units,Adults and Health,Other Agencies - Third Party P,0090615084,VILLA SCALABRINI,"4,428.57",28/07/2023
Delivery Units,Adults and Health,Other Agencies - Third Party P,0090614186,WOODFIELD HOUSE,"14,081.60",25/07/2023
Delivery Units,Adults and Health,Other Agencies - Third Party P,0090606739,AGUDAS ISRAEL HOUSING ASSCTN LTD,"4,285.71",10/07/2023
Delivery Units,Adults and Health,Other Agencies - Third Party P,0090605196,Karuna Manor,"4,071.43",03/07/2023
Delivery Units,Adults and Health,Other Agencies - Third Party P,0090605197,Karuna Manor,"6,428.57",03/07/2023
Delivery Units,Adults and Health,Other Agencies - Third Party P,0090605208,Newgrange of Cheshunt Ltd,"3,428.57",03/07/2023
Delivery Units,Adults and Health,Other Agencies - Third Party P,0090605212,THE WOODSIDE HOME,"2,540.00",03/07/2023
Delivery Units,Adults and Health,Other Agencies - Third Party P,0090605213,Hillyfield Rest Home Limited,"4,714.20",03/07/2023
Delivery Units,Adults and Health,Other Agencies - Third Party P,0090605762,Green Trees Care Home,"3,642.60",03/07/2023
Delivery Units,Adults and Health,Other Agencies - Third Party P,0090605763,Green Trees Care Home,"3,814.20",03/07/2023
Delivery Units,Adults and Health,Other Agencies - Third Party P,0090606743,Friends of The Elderly (Retired Nurses,"5,012.65",10/07/2023
Delivery Units,Adults and Health,Other Agencies - Third Party P,0090606744,Friends of The Elderly (Retired Nurses,"5,185.50",10/07/2023
Delivery Units,Adults and Health,Other Agencies - Third Party P,0090606759,QUANTUM CARE LIMITED,"4,071.43",10/07/2023
Delivery Units,Adults and Health,Other Agencies - Third Party P,0090608005,METHODIST HOMES FOR THE AGED,"18,188.37",11/07/2023
Delivery Units,Adults and Health,Other Agencies - Third Party P,0090608010,Barchester Healthcare Homes Ltd,"3,200.00",11/07/2023
Delivery Units,Adults and Health,Other Agencies - Third Party P,0090608012,TORRINGTON HOMES,"3,960.00",11/07/2023
Delivery Units,Adults and Health,Other Agencies - Third Party P,0090608019,NIGHTINGALE HOUSE,"3,587.14",11/07/2023
Delivery Units,Adults and Health,Other Agencies - Third Party P,0090608308,EASTSIDE HOUSE CARE HOME,"3,800.00",13/07/2023
Delivery Units,Adults and Health,Other Agencies - Third Party P,0090608309,EASTSIDE HOUSE CARE HOME,"3,800.00",13/07/2023
Delivery Units,Adults and Health,Other Agencies - Third Party P,0090608310,EASTSIDE HOUSE CARE HOME,"3,800.00",13/07/2023
Delivery Units,Adults and Health,Other Agencies - Third Party P,0090608686,Barchester Healthcare Homes Ltd,"3,400.00",13/07/2023
Delivery Units,Adults and Health,Other Agencies - Third Party P,0090608849,Boughton Lodge Care Home,"3,100.00",14/07/2023
Delivery Units,Adults and Health,Other Agencies - Third Party P,0090608854,Avon Lodge UK Ltd,"3,857.14",14/07/2023
Delivery Units,Adults and Health,Other Agencies - Third Party P,0090610609,Allied Care (MH) Ltd,"5,168.00",18/07/2023
Delivery Units,Adults and Health,Other Agencies - Third Party P,0090611541,Acacia Lodge Care Home Ltd,"3,257.14",21/07/2023
Delivery Units,Adults and Health,Other Agencies - Third Party P,0090611542,Acacia Lodge Care Home Ltd,"4,207.14",21/07/2023
Delivery Units,Adults and Health,Other Agencies - Third Party P,0090611543,Acacia Lodge Care Home Ltd,"3,800.00",21/07/2023
Delivery Units,Adults and Health,Other Agencies - Third Party P,0090611546,NIGHTINGALE HOUSE,"3,428.57",21/07/2023
Delivery Units,Adults and Health,Other Agencies - Third Party P,0090611547,NIGHTINGALE HOUSE,"3,471.43",21/07/2023
Delivery Units,Adults and Health,Other Agencies - Third Party P,0090611548,NIGHTINGALE HOUSE,"3,471.43",21/07/2023
Delivery Units,Adults and Health,Other Agencies - Third Party P,0090611549,NIGHTINGALE HOUSE,"3,582.86",21/07/2023
Delivery Units,Adults and Health,Other Agencies - Third Party P,0090611836,THE WOODSIDE HOME,"3,200.00",21/07/2023
Delivery Units,Adults and Health,Other Agencies - Third Party P,0090611859,ANASTASIA LODGE,"3,620.00",25/07/2023
Delivery Units,Adults and Health,Other Agencies - Third Party P,0090611861,EASTSIDE HOUSE CARE HOME,"3,800.00",25/07/2023
Delivery Units,Adults and Health,Other Agencies - Third Party P,0090611863,EASTSIDE HOUSE CARE HOME,"3,720.00",25/07/2023
Delivery Units,Adults and Health,Other Agencies - Third Party P,0090611880,THE WOODSIDE HOME,"2,540.00",25/07/2023
Delivery Units,Adults and Health,Other Agencies - Third Party P,0090611881,THE WOODSIDE HOME,"2,675.96",25/07/2023
Delivery Units,Adults and Health,Other Agencies - Third Party P,0090612336,Green Trees Care Home,"3,764.02",25/07/2023
Delivery Units,Adults and Health,Other Agencies - Third Party P,0090612337,Avon Lodge UK Ltd,"3,985.71",25/07/2023
Delivery Units,Adults and Health,Other Agencies - Third Party P,0090612343,Karuna Manor,"4,207.14",25/07/2023
Delivery Units,Adults and Health,Other Agencies - Third Party P,0090612344,Karuna Manor,"6,642.86",25/07/2023
Delivery Units,Adults and Health,Other Agencies - Third Party P,0090612354,Barchester Healthcare,"5,456.00",25/07/2023
Delivery Units,Adults and Health,Other Agencies - Third Party P,0090612359,Westbourne Care Home,"7,918.29",25/07/2023
Delivery Units,Adults and Health,Other Agencies - Third Party P,0090612360,EASTSIDE HOUSE CARE HOME,"3,800.00",25/07/2023
Delivery Units,Adults and Health,Other Agencies - Third Party P,0090612361,EASTSIDE HOUSE CARE HOME,"3,800.00",25/07/2023
Delivery Units,Adults and Health,Other Agencies - Third Party P,0090612362,METHODIST HOMES FOR THE AGED,"4,208.88",25/07/2023
Delivery Units,Adults and Health,Other Agencies - Third Party P,0090612368,Green Trees Care Home,"3,941.34",25/07/2023
Delivery Units,Adults and Health,Other Agencies - Third Party P,0090612372,Green Trees Care Home,239.01,25/07/2023
Delivery Units,Adults and Health,Other Agencies - Third Party P,0090612373,Green Trees Care Home,239.14,25/07/2023
Delivery Units,Adults and Health,Other Agencies - Third Party P,0090612374,Green Trees Care Home,161.91,25/07/2023
Delivery Units,Adults and Health,Other Agencies - Third Party P,0090612375,Green Trees Care Home,231.60,25/07/2023
Delivery Units,Adults and Health,Other Agencies - Third Party P,0090612376,Green Trees Care Home,66.51,25/07/2023
Delivery Units,Adults and Health,Other Agencies - Third Party P,0090612377,Green Trees Care Home,66.43,25/07/2023
Delivery Units,Adults and Health,Other Agencies - Third Party P,0090612378,Green Trees Care Home,64.15,25/07/2023
Delivery Units,Adults and Health,Other Agencies - Third Party P,0090612379,Green Trees Care Home,64.29,25/07/2023
Delivery Units,Adults and Health,Other Agencies - Third Party P,0090613205,THE CHRISTIAN CARE TRUST,"4,317.68",25/07/2023
Delivery Units,Adults and Health,Other Agencies - Third Party P,0090613209,Hillyfield Rest Home Limited,"4,871.34",25/07/2023
Delivery Units,Adults and Health,Other Agencies - Third Party P,0090613210,Hillyfield Rest Home Limited,"4,871.42",25/07/2023
Delivery Units,Adults and Health,Other Agencies - Third Party P,0090613218,B & M CARE,"4,207.14",25/07/2023
Delivery Units,Adults and Health,Other Agencies - Third Party P,0090613219,B & M CARE,"4,295.71",25/07/2023
Delivery Units,Adults and Health,Other Agencies - Third Party P,0090613221,THE CHRISTIAN CARE TRUST,"4,178.40",25/07/2023
Delivery Units,Adults and Health,Other Agencies - Third Party P,0090613224,B & M CARE,"5,314.29",25/07/2023
Delivery Units,Adults and Health,Other Agencies - Third Party P,0090613225,B & M CARE,"3,764.29",25/07/2023
Delivery Units,Adults and Health,Other Agencies - Third Party P,0090613713,NAZARETH HOUSE,"2,540.00",25/07/2023
Delivery Units,Adults and Health,Other Agencies - Third Party P,0090613715,ELM PARK LODGE,"3,384.92",25/07/2023
Delivery Units,Adults and Health,Other Agencies - Third Party P,0090613717,JEWISH CARE,"3,836.76",25/07/2023
Delivery Units,Adults and Health,Other Agencies - Third Party P,0090613729,THE LIMES RESIDENTIAL HOME,"3,376.00",25/07/2023
Delivery Units,Adults and Health,Other Agencies - Third Party P,0090613730,JEWISH CARE,"-5,064.07",25/07/2023
Delivery Units,Adults and Health,Other Agencies - Third Party P,0090613738,JEWISH CARE,"3,836.76",25/07/2023
Delivery Units,Adults and Health,Other Agencies - Third Party P,0090613739,JEWISH CARE,"4,003.60",25/07/2023
Delivery Units,Adults and Health,Other Agencies - Third Party P,0090613740,JEWISH CARE,"3,836.76",25/07/2023
Delivery Units,Adults and Health,Other Agencies - Third Party P,0090613743,THE LIMES RESIDENTIAL HOME,"3,336.00",25/07/2023
Delivery Units,Adults and Health,Other Agencies - Third Party P,0090613744,JEWISH CARE,"3,623.93",25/07/2023
Delivery Units,Adults and Health,Other Agencies - Third Party P,0090613748,JEWISH CARE,"3,623.93",25/07/2023
Delivery Units,Adults and Health,Other Agencies - Third Party P,0090613749,ELEANOR PALMER TRUST NO 2 A/C.,"7,299.43",25/07/2023
Delivery Units,Adults and Health,Other Agencies - Third Party P,0090613750,ELEANOR PALMER TRUST NO 2 A/C.,"7,299.43",25/07/2023
Delivery Units,Adults and Health,Other Agencies - Third Party P,0090613751,ELEANOR PALMER TRUST NO 2 A/C.,"7,299.43",25/07/2023
Delivery Units,Adults and Health,Other Agencies - Third Party P,0090613760,BUPA CARE HOMES,"2,732.00",25/07/2023
Delivery Units,Adults and Health,Other Agencies - Third Party P,0090613766,ELEANOR PALMER TRUST NO 2 A/C.,"4,000.00",25/07/2023
Delivery Units,Adults and Health,Other Agencies - Third Party P,0090613769,CEDARS NURSING HOME,"-4,285.71",25/07/2023
Delivery Units,Adults and Health,Other Agencies - Third Party P,0090613770,JEWISH CARE,"5,144.91",25/07/2023
Delivery Units,Adults and Health,Other Agencies - Third Party P,0090613773,JEWISH CARE,"4,328.19",25/07/2023
Delivery Units,Adults and Health,Other Agencies - Third Party P,0090613775,JEWISH CARE,"3,836.76",25/07/2023
Delivery Units,Adults and Health,Other Agencies - Third Party P,0090613785,JEWISH CARE,"5,704.59",25/07/2023
Delivery Units,Adults and Health,Other Agencies - Third Party P,0090613787,ASHTON LODGE CARE CENTRE,"4,136.52",25/07/2023
Delivery Units,Adults and Health,Other Agencies - Third Party P,0090613790,JEWISH CARE,"3,836.76",25/07/2023
Delivery Units,Adults and Health,Other Agencies - Third Party P,0090613792,JEWISH CARE,"4,328.19",25/07/2023
Delivery Units,Adults and Health,Other Agencies - Third Party P,0090613804,JEWISH CARE,"3,836.76",25/07/2023
Delivery Units,Adults and Health,Other Agencies - Third Party P,0090613808,JEWISH CARE,"5,949.83",25/07/2023
Delivery Units,Adults and Health,Other Agencies - Third Party P,0090613810,NAZARETH HOUSE,"-2,102.57",25/07/2023
Delivery Units,Adults and Health,Other Agencies - Third Party P,0090613812,LIFESTYLE CARE PLC,"3,200.00",25/07/2023
Delivery Units,Adults and Health,Other Agencies - Third Party P,0090613813,ELMHURST RESIDENTIAL HOME,"3,800.00",25/07/2023
Delivery Units,Adults and Health,Other Agencies - Third Party P,0090613814,JEWISH CARE,"3,836.76",25/07/2023
Delivery Units,Adults and Health,Other Agencies - Third Party P,0090613819,NAZARETH HOUSE,"2,676.00",25/07/2023
Delivery Units,Adults and Health,Other Agencies - Third Party P,0090613820,JEWISH CARE,"4,115.36",25/07/2023
Delivery Units,Adults and Health,Other Agencies - Third Party P,0090613827,CEDARS NURSING HOME,"3,942.86",25/07/2023
Delivery Units,Adults and Health,Other Agencies - Third Party P,0090613829,JEWISH CARE,"3,836.76",25/07/2023
Delivery Units,Adults and Health,Other Agencies - Third Party P,0090613833,BUPA CARE HOMES,"3,577.92",25/07/2023
Delivery Units,Adults and Health,Other Agencies - Third Party P,0090613835,SAGE NURSING HOME,"3,620.00",25/07/2023
Delivery Units,Adults and Health,Other Agencies - Third Party P,0090613837,ELEANOR PALMER TRUST NO 2 A/C.,"5,628.57",25/07/2023
Delivery Units,Adults and Health,Other Agencies - Third Party P,0090613838,JEWISH CARE,"3,836.76",25/07/2023
Delivery Units,Adults and Health,Other Agencies - Third Party P,0090613840,NAZARETH HOUSE,"2,676.00",25/07/2023
Delivery Units,Adults and Health,Other Agencies - Third Party P,0090613846,ELMHURST RESIDENTIAL HOME,"3,600.00",25/07/2023
Delivery Units,Adults and Health,Other Agencies - Third Party P,0090613848,NAZARETH HOUSE,"2,540.00",25/07/2023
Delivery Units,Adults and Health,Other Agencies - Third Party P,0090613855,APPLE TREE COURT CARE HOME,"3,400.00",25/07/2023
Delivery Units,Adults and Health,Other Agencies - Third Party P,0090613856,APPLE TREE COURT CARE HOME,"3,400.00",25/07/2023
Delivery Units,Adults and Health,Other Agencies - Third Party P,0090613867,THE LIMES RESIDENTIAL HOME,"3,620.00",25/07/2023
Delivery Units,Adults and Health,Other Agencies - Third Party P,0090613872,Aarandale Manor Care Home,"5,000.00",25/07/2023
Delivery Units,Adults and Health,Other Agencies - Third Party P,0090613874,JEWISH CARE,"4,383.79",25/07/2023
Delivery Units,Adults and Health,Other Agencies - Third Party P,0090613875,JEWISH CARE,"3,836.76",25/07/2023
Delivery Units,Adults and Health,Other Agencies - Third Party P,0090613876,NAZARETH HOUSE,"2,676.00",25/07/2023
Delivery Units,Adults and Health,Other Agencies - Third Party P,0090613880,BUPA NURSING HOMES LTD - ARKLEY,"2,800.00",25/07/2023
Delivery Units,Adults and Health,Other Agencies - Third Party P,0090613888,NAZARETH HOUSE,"2,540.00",25/07/2023
Delivery Units,Adults and Health,Other Agencies - Third Party P,0090613889,JEWISH CARE,"8,537.83",25/07/2023
Delivery Units,Adults and Health,Other Agencies - Third Party P,0090613892,ELMHURST RESIDENTIAL HOME,"4,000.00",25/07/2023
Delivery Units,Adults and Health,Other Agencies - Third Party P,0090613893,APPLE TREE COURT CARE HOME,"3,400.00",25/07/2023
Delivery Units,Adults and Health,Other Agencies - Third Party P,0090613904,NAZARETH HOUSE,"4,471.20",25/07/2023
Delivery Units,Adults and Health,Other Agencies - Third Party P,0090613905,BUPA CARE HOMES,-428.57,25/07/2023
Delivery Units,Adults and Health,Other Agencies - Third Party P,0090613912,JEWISH CARE,"3,836.76",25/07/2023
Delivery Units,Adults and Health,Other Agencies - Third Party P,0090613920,CEDARS NURSING HOME,"4,271.43",25/07/2023
Delivery Units,Adults and Health,Other Agencies - Third Party P,0090613932,SAGE NURSING HOME,"2,856.00",25/07/2023
Delivery Units,Adults and Health,Other Agencies - Third Party P,0090613936,THE LIMES RESIDENTIAL HOME,"3,555.43",25/07/2023
Delivery Units,Adults and Health,Other Agencies - Third Party P,0090613940,NAZARETH HOUSE,"2,540.00",25/07/2023
Delivery Units,Adults and Health,Other Agencies - Third Party P,0090613942,THE LIMES RESIDENTIAL HOME,"3,555.43",25/07/2023
Delivery Units,Adults and Health,Other Agencies - Third Party P,0090613948,ELEANOR PALMER TRUST NO 2 A/C.,"7,299.43",25/07/2023
Delivery Units,Adults and Health,Other Agencies - Third Party P,0090613952,ELEANOR PALMER TRUST NO 2 A/C.,"4,000.00",25/07/2023
Delivery Units,Adults and Health,Other Agencies - Third Party P,0090613954,JEWISH CARE,"3,623.93",25/07/2023
Delivery Units,Adults and Health,Other Agencies - Third Party P,0090613955,JEWISH CARE,"3,836.76",25/07/2023
Delivery Units,Adults and Health,Other Agencies - Third Party P,0090613959,APPLE TREE COURT CARE HOME,"4,400.00",25/07/2023
Delivery Units,Adults and Health,Other Agencies - Third Party P,0090613960,JEWISH CARE,"3,836.76",25/07/2023
Delivery Units,Adults and Health,Other Agencies - Third Party P,0090613961,ABBEY RAVENSCROFT PARK NURSING HOME,"4,032.20",25/07/2023
Delivery Units,Adults and Health,Other Agencies - Third Party P,0090613962,JEWISH CARE,"3,928.00",25/07/2023
Delivery Units,Adults and Health,Other Agencies - Third Party P,0090613965,JEWISH CARE,"3,836.76",25/07/2023
Delivery Units,Adults and Health,Other Agencies - Third Party P,0090613966,JEWISH CARE,"3,836.76",25/07/2023
Delivery Units,Adults and Health,Other Agencies - Third Party P,0090613969,ELEANOR PALMER TRUST NO 2 A/C.,"7,299.43",25/07/2023
Delivery Units,Adults and Health,Other Agencies - Third Party P,0090613971,BUPA CARE HOMES,"2,782.43",25/07/2023
Delivery Units,Adults and Health,Other Agencies - Third Party P,0090613972,LIFESTYLE CARE PLC,"3,600.00",25/07/2023
Delivery Units,Adults and Health,Other Agencies - Third Party P,0090613974,NAZARETH HOUSE,"2,676.00",25/07/2023
Delivery Units,Adults and Health,Other Agencies - Third Party P,0090613978,BUPA CARE HOMES,"2,884.00",25/07/2023
Delivery Units,Adults and Health,Other Agencies - Third Party P,0090613979,JEWISH CARE,"4,115.36",25/07/2023
Delivery Units,Adults and Health,Other Agencies - Third Party P,0090613988,THE LIMES RESIDENTIAL HOME,"1,828.57",25/07/2023
Delivery Units,Adults and Health,Other Agencies - Third Party P,0090613994,JEWISH CARE,"3,630.07",25/07/2023
Delivery Units,Adults and Health,Other Agencies - Third Party P,0090613996,APPLE TREE COURT CARE HOME,"4,352.00",25/07/2023
Delivery Units,Adults and Health,Other Agencies - Third Party P,0090614000,LIFESTYLE CARE PLC,"3,400.00",25/07/2023
Delivery Units,Adults and Health,Other Agencies - Third Party P,0090614001,Aarandale Manor Care Home,"5,200.00",25/07/2023
Delivery Units,Adults and Health,Other Agencies - Third Party P,0090614014,NAZARETH HOUSE,"2,796.00",25/07/2023
Delivery Units,Adults and Health,Other Agencies - Third Party P,0090614016,APPLE TREE COURT CARE HOME,"5,124.00",25/07/2023
Delivery Units,Adults and Health,Other Agencies - Third Party P,0090614018,NAZARETH HOUSE,"2,796.00",25/07/2023
Delivery Units,Adults and Health,Other Agencies - Third Party P,0090614019,NAZARETH HOUSE,"2,796.00",25/07/2023
Delivery Units,Adults and Health,Other Agencies - Third Party P,0090614020,Aarandale Manor Care Home,"5,000.00",25/07/2023
Delivery Units,Adults and Health,Other Agencies - Third Party P,0090614022,THE LIMES RESIDENTIAL HOME,"3,400.00",25/07/2023
Delivery Units,Adults and Health,Other Agencies - Third Party P,0090614025,NAZARETH HOUSE,"2,676.00",25/07/2023
Delivery Units,Adults and Health,Other Agencies - Third Party P,0090614028,BUPA CARE HOMES,"17,819.00",25/07/2023
Delivery Units,Adults and Health,Other Agencies - Third Party P,0090614030,CEDARS NURSING HOME,"4,271.43",25/07/2023
Delivery Units,Adults and Health,Other Agencies - Third Party P,0090614037,ELEANOR PALMER TRUST NO 2 A/C.,"4,000.00",25/07/2023
Delivery Units,Adults and Health,Other Agencies - Third Party P,0090614040,APPLE TREE COURT CARE HOME,"3,800.00",25/07/2023
Delivery Units,Adults and Health,Other Agencies - Third Party P,0090614042,LIFESTYLE CARE PLC,"3,400.00",25/07/2023
Delivery Units,Adults and Health,Other Agencies - Third Party P,0090614043,THE LIMES RESIDENTIAL HOME,"3,416.00",25/07/2023
Delivery Units,Adults and Health,Other Agencies - Third Party P,0090614049,ELEANOR PALMER TRUST NO 2 A/C.,"5,179.43",25/07/2023
Delivery Units,Adults and Health,Other Agencies - Third Party P,0090614053,JEWISH CARE,"2,657.00",25/07/2023
Delivery Units,Adults and Health,Other Agencies - Third Party P,0090614058,JEWISH CARE,"3,836.76",25/07/2023
Delivery Units,Adults and Health,Other Agencies - Third Party P,0090614064,BUPA CARE HOMES,"4,000.00",25/07/2023
Delivery Units,Adults and Health,Other Agencies - Third Party P,0090614073,APPLE TREE COURT CARE HOME,"5,124.00",25/07/2023
Delivery Units,Adults and Health,Other Agencies - Third Party P,0090614075,JEWISH CARE,"3,836.76",25/07/2023
Delivery Units,Adults and Health,Other Agencies - Third Party P,0090614076,BUPA NURSING HOMES LTD - ARKLEY,"3,900.00",25/07/2023
Delivery Units,Adults and Health,Other Agencies - Third Party P,0090614079,NAZARETH HOUSE,"2,796.00",25/07/2023
Delivery Units,Adults and Health,Other Agencies - Third Party P,0090614082,JEWISH CARE,"4,011.56",25/07/2023
Delivery Units,Adults and Health,Other Agencies - Third Party P,0090614083,JEWISH CARE,"3,364.67",25/07/2023
Delivery Units,Adults and Health,Other Agencies - Third Party P,0090614090,JEWISH CARE,"3,056.00",25/07/2023
Delivery Units,Adults and Health,Other Agencies - Third Party P,0090614108,CEDARS NURSING HOME,"7,571.42",25/07/2023
Delivery Units,Adults and Health,Other Agencies - Third Party P,0090614113,ELMHURST RESIDENTIAL HOME,"3,000.00",25/07/2023
Delivery Units,Adults and Health,Other Agencies - Third Party P,0090614115,ELEANOR PALMER TRUST NO 2 A/C.,"7,299.43",25/07/2023
Delivery Units,Adults and Health,Other Agencies - Third Party P,0090614122,JEWISH CARE,"3,836.76",25/07/2023
Delivery Units,Adults and Health,Other Agencies - Third Party P,0090614126,THE LIMES RESIDENTIAL HOME,"3,336.00",25/07/2023
Delivery Units,Adults and Health,Other Agencies - Third Party P,0090614128,NAZARETH HOUSE,"2,676.00",25/07/2023
Delivery Units,Adults and Health,Other Agencies - Third Party P,0090614130,JEWISH CARE,"4,115.36",25/07/2023
Delivery Units,Adults and Health,Other Agencies - Third Party P,0090614132,NAZARETH HOUSE,"3,800.00",25/07/2023
Delivery Units,Adults and Health,Other Agencies - Third Party P,0090614133,JEWISH CARE,"3,836.76",25/07/2023
Delivery Units,Adults and Health,Other Agencies - Third Party P,0090614136,JEWISH CARE,"3,623.93",25/07/2023
Delivery Units,Adults and Health,Other Agencies - Third Party P,0090614138,NAZARETH HOUSE,"2,540.00",25/07/2023
Delivery Units,Adults and Health,Other Agencies - Third Party P,0090614140,THE LIMES RESIDENTIAL HOME,"3,336.00",25/07/2023
Delivery Units,Adults and Health,Other Agencies - Third Party P,0090614141,NAZARETH HOUSE,"2,676.00",25/07/2023
Delivery Units,Adults and Health,Other Agencies - Third Party P,0090614143,JEWISH CARE,"3,836.76",25/07/2023
Delivery Units,Adults and Health,Other Agencies - Third Party P,0090614148,NAZARETH HOUSE,"2,540.00",25/07/2023
Delivery Units,Adults and Health,Other Agencies - Third Party P,0090614149,ELEANOR PALMER TRUST NO 2 A/C.,"7,299.43",25/07/2023
Delivery Units,Adults and Health,Other Agencies - Third Party P,0090614150,NAZARETH HOUSE,"2,676.00",25/07/2023
Delivery Units,Adults and Health,Other Agencies - Third Party P,0090614154,THE LIMES RESIDENTIAL HOME,"3,436.00",25/07/2023
Delivery Units,Adults and Health,Other Agencies - Third Party P,0090614161,NAZARETH HOUSE,"2,676.00",25/07/2023
Delivery Units,Adults and Health,Other Agencies - Third Party P,0090614162,JEWISH CARE,"3,836.76",25/07/2023
Delivery Units,Adults and Health,Other Agencies - Third Party P,0090614163,JEWISH CARE,-528.95,25/07/2023
Delivery Units,Adults and Health,Other Agencies - Third Party P,0090614167,ELMHURST RESIDENTIAL HOME,"3,800.00",25/07/2023
Delivery Units,Adults and Health,Other Agencies - Third Party P,0090614168,NAZARETH HOUSE,"2,676.00",25/07/2023
Delivery Units,Adults and Health,Other Agencies - Third Party P,0090614172,ELEANOR PALMER TRUST NO 2 A/C.,"5,628.57",25/07/2023
Delivery Units,Adults and Health,Other Agencies - Third Party P,0090614187,JEWISH CARE,"3,248.86",25/07/2023
Delivery Units,Adults and Health,Other Agencies - Third Party P,0090614191,APPLE TREE COURT CARE HOME,"5,124.00",25/07/2023
Delivery Units,Adults and Health,Other Agencies - Third Party P,0090614195,ASHTON LODGE CARE CENTRE,"4,000.00",25/07/2023
Delivery Units,Adults and Health,Other Agencies - Third Party P,0090614212,NAZARETH HOUSE,"-2,796.00",25/07/2023
Delivery Units,Adults and Health,Other Agencies - Third Party P,0090614213,THE LIMES RESIDENTIAL HOME,"3,620.00",25/07/2023
Delivery Units,Adults and Health,Other Agencies - Third Party P,0090614224,NAZARETH HOUSE,"2,018.57",25/07/2023
Delivery Units,Adults and Health,Other Agencies - Third Party P,0090614226,ELM PARK LODGE,"2,234.28",25/07/2023
Delivery Units,Adults and Health,Other Agencies - Third Party P,0090614228,Aarandale Manor Care Home,"6,400.00",25/07/2023
Delivery Units,Adults and Health,Other Agencies - Third Party P,0090614229,NAZARETH HOUSE,"3,095.57",25/07/2023
Delivery Units,Adults and Health,Other Agencies - Third Party P,0090614231,JEWISH CARE,"4,742.26",25/07/2023
Delivery Units,Adults and Health,Other Agencies - Third Party P,0090614234,SAGE NURSING HOME,"22,050.86",25/07/2023
Delivery Units,Adults and Health,Other Agencies - Third Party P,0090614235,THE LIMES RESIDENTIAL HOME,"4,625.00",25/07/2023
Delivery Units,Adults and Health,Other Agencies - Third Party P,0090614256,3A Care (London) Ltd,"11,765.00",25/07/2023
Delivery Units,Adults and Health,Other Agencies - Third Party P,0090614371,Newgrange of Cheshunt Ltd,"4,379.43",25/07/2023
Delivery Units,Adults and Health,Other Agencies - Third Party P,0090614373,Alexandra House (Runwood Homes),"2,770.07",25/07/2023
Delivery Units,Adults and Health,Other Agencies - Third Party P,0090604906,Homecare Alliance Ltd,136.12,03/07/2023
Delivery Units,Adults and Health,Other Agencies - Third Party P,0090604908,Homecare Alliance Ltd,539.96,03/07/2023
Delivery Units,Adults and Health,Other Agencies - Third Party P,0090604912,Concept Care Solutions Ltd,247.38,03/07/2023
Delivery Units,Adults and Health,Other Agencies - Third Party P,0090604914,Concept Care Solutions Ltd,144.34,03/07/2023
Delivery Units,Adults and Health,Other Agencies - Third Party P,0090604916,Concept Care Solutions Ltd,195.89,03/07/2023
Delivery Units,Adults and Health,Other Agencies - Third Party P,0090604919,Concept Care Solutions Ltd,324.73,03/07/2023
Delivery Units,Adults and Health,Other Agencies - Third Party P,0090604933,Kamino Homecare LTD,"2,644.92",03/07/2023
Delivery Units,Adults and Health,Other Agencies - Third Party P,0090604934,Kamino Homecare LTD,"3,735.12",03/07/2023
Delivery Units,Adults and Health,Other Agencies - Third Party P,0090604938,Good Neighbour Care,"2,620.80",03/07/2023
Delivery Units,Adults and Health,Other Agencies - Third Party P,0090604939,Good Neighbour Care,"2,620.80",03/07/2023
Delivery Units,Adults and Health,Other Agencies - Third Party P,0090604942,Good Neighbour Care,"1,019.20",03/07/2023
Delivery Units,Adults and Health,Other Agencies - Third Party P,0090604944,Good Neighbour Care,837.20,03/07/2023
Delivery Units,Adults and Health,Other Agencies - Third Party P,0090604945,Good Neighbour Care,"2,582.07",03/07/2023
Delivery Units,Adults and Health,Other Agencies - Third Party P,0090604947,City Homecare Ltd,327.25,03/07/2023
Delivery Units,Adults and Health,Other Agencies - Third Party P,0090604948,City Homecare Ltd,199.75,03/07/2023
Delivery Units,Adults and Health,Other Agencies - Third Party P,0090604951,City Homecare Ltd,301.75,03/07/2023
Delivery Units,Adults and Health,Other Agencies - Third Party P,0090604953,City Homecare Ltd,535.50,03/07/2023
Delivery Units,Adults and Health,Other Agencies - Third Party P,0090604955,City Homecare Ltd,119.00,03/07/2023
Delivery Units,Adults and Health,Other Agencies - Third Party P,0090604956,City Homecare Ltd,178.50,03/07/2023
Delivery Units,Adults and Health,Other Agencies - Third Party P,0090604957,City Homecare Ltd,505.75,03/07/2023
Delivery Units,Adults and Health,Other Agencies - Third Party P,0090604959,City Homecare Ltd,195.50,03/07/2023
Delivery Units,Adults and Health,Other Agencies - Third Party P,0090604960,City Homecare Ltd,178.50,03/07/2023
Delivery Units,Adults and Health,Other Agencies - Third Party P,0090604964,City Homecare Ltd,212.50,03/07/2023
Delivery Units,Adults and Health,Other Agencies - Third Party P,0090604966,City Homecare Ltd,327.25,03/07/2023
Delivery Units,Adults and Health,Other Agencies - Third Party P,0090604967,City Homecare Ltd,199.75,03/07/2023
Delivery Units,Adults and Health,Other Agencies - Third Party P,0090604970,City Homecare Ltd,301.75,03/07/2023
Delivery Units,Adults and Health,Other Agencies - Third Party P,0090604972,City Homecare Ltd,535.50,03/07/2023
Delivery Units,Adults and Health,Other Agencies - Third Party P,0090604974,City Homecare Ltd,119.00,03/07/2023
Delivery Units,Adults and Health,Other Agencies - Third Party P,0090604975,City Homecare Ltd,178.50,03/07/2023
Delivery Units,Adults and Health,Other Agencies - Third Party P,0090604976,City Homecare Ltd,505.75,03/07/2023
Delivery Units,Adults and Health,Other Agencies - Third Party P,0090604978,City Homecare Ltd,195.50,03/07/2023
Delivery Units,Adults and Health,Other Agencies - Third Party P,0090604979,City Homecare Ltd,178.50,03/07/2023
Delivery Units,Adults and Health,Other Agencies - Third Party P,0090604983,City Homecare Ltd,212.50,03/07/2023
Delivery Units,Adults and Health,Other Agencies - Third Party P,0090604985,City Homecare Ltd,327.25,03/07/2023
Delivery Units,Adults and Health,Other Agencies - Third Party P,0090604986,City Homecare Ltd,208.25,03/07/2023
Delivery Units,Adults and Health,Other Agencies - Third Party P,0090604989,City Homecare Ltd,301.75,03/07/2023
Delivery Units,Adults and Health,Other Agencies - Third Party P,0090604991,City Homecare Ltd,535.50,03/07/2023
Delivery Units,Adults and Health,Other Agencies - Third Party P,0090604993,City Homecare Ltd,119.00,03/07/2023
Delivery Units,Adults and Health,Other Agencies - Third Party P,0090604994,City Homecare Ltd,178.50,03/07/2023
Delivery Units,Adults and Health,Other Agencies - Third Party P,0090604995,City Homecare Ltd,505.75,03/07/2023
Delivery Units,Adults and Health,Other Agencies - Third Party P,0090604997,City Homecare Ltd,195.50,03/07/2023
Delivery Units,Adults and Health,Other Agencies - Third Party P,0090604998,City Homecare Ltd,178.50,03/07/2023
Delivery Units,Adults and Health,Other Agencies - Third Party P,0090605002,City Homecare Ltd,212.50,03/07/2023
Delivery Units,Adults and Health,Other Agencies - Third Party P,0090605004,City Homecare Ltd,854.25,03/07/2023
Delivery Units,Adults and Health,Other Agencies - Third Party P,0090605005,City Homecare Ltd,327.25,03/07/2023
Delivery Units,Adults and Health,Other Agencies - Third Party P,0090605006,City Homecare Ltd,157.25,03/07/2023
Delivery Units,Adults and Health,Other Agencies - Third Party P,0090605009,City Homecare Ltd,301.75,03/07/2023
Delivery Units,Adults and Health,Other Agencies - Third Party P,0090605011,City Homecare Ltd,535.50,03/07/2023
Delivery Units,Adults and Health,Other Agencies - Third Party P,0090605013,City Homecare Ltd,119.00,03/07/2023
Delivery Units,Adults and Health,Other Agencies - Third Party P,0090605014,City Homecare Ltd,178.50,03/07/2023
Delivery Units,Adults and Health,Other Agencies - Third Party P,0090605015,City Homecare Ltd,505.75,03/07/2023
Delivery Units,Adults and Health,Other Agencies - Third Party P,0090605017,City Homecare Ltd,195.50,03/07/2023
Delivery Units,Adults and Health,Other Agencies - Third Party P,0090605018,City Homecare Ltd,178.50,03/07/2023
Delivery Units,Adults and Health,Other Agencies - Third Party P,0090605022,City Homecare Ltd,212.50,03/07/2023
Delivery Units,Adults and Health,Other Agencies - Third Party P,0090605068,Servesoul Limited,267.26,03/07/2023
Delivery Units,Adults and Health,Other Agencies - Third Party P,0090605070,Servesoul Limited,133.63,03/07/2023
Delivery Units,Adults and Health,Other Agencies - Third Party P,0090605072,Servesoul Limited,501.11,03/07/2023
Delivery Units,Adults and Health,Other Agencies - Third Party P,0090605073,Servesoul Limited,133.63,03/07/2023
Delivery Units,Adults and Health,Other Agencies - Third Party P,0090605074,Servesoul Limited,319.76,03/07/2023
Delivery Units,Adults and Health,Other Agencies - Third Party P,0090605075,Servesoul Limited,66.82,03/07/2023
Delivery Units,Adults and Health,Other Agencies - Third Party P,0090605076,Servesoul Limited,672.92,03/07/2023
Delivery Units,Adults and Health,Other Agencies - Third Party P,0090605077,Servesoul Limited,"2,099.71",03/07/2023
Delivery Units,Adults and Health,Other Agencies - Third Party P,0090605078,Servesoul Limited,133.63,03/07/2023
Delivery Units,Adults and Health,Other Agencies - Third Party P,0090605079,Servesoul Limited,57.27,03/07/2023
Delivery Units,Adults and Health,Other Agencies - Third Party P,0090605082,Servesoul Limited,152.72,03/07/2023
Delivery Units,Adults and Health,Other Agencies - Third Party P,0090605083,Servesoul Limited,267.26,03/07/2023
Delivery Units,Adults and Health,Other Agencies - Third Party P,0090605085,Servesoul Limited,200.45,03/07/2023
Delivery Units,Adults and Health,Other Agencies - Third Party P,0090605086,Servesoul Limited,801.78,03/07/2023
Delivery Units,Adults and Health,Other Agencies - Third Party P,0090605089,Servesoul Limited,300.67,03/07/2023
Delivery Units,Adults and Health,Other Agencies - Third Party P,0090605090,Servesoul Limited,200.45,03/07/2023
Delivery Units,Adults and Health,Other Agencies - Third Party P,0090605092,Servesoul Limited,167.04,03/07/2023
Delivery Units,Adults and Health,Other Agencies - Third Party P,0090605093,Servesoul Limited,"1,135.86",03/07/2023
Delivery Units,Adults and Health,Other Agencies - Third Party P,0090605095,Servesoul Limited,319.76,03/07/2023
Delivery Units,Adults and Health,Other Agencies - Third Party P,0090605096,Servesoul Limited,233.85,03/07/2023
Delivery Units,Adults and Health,Other Agencies - Third Party P,0090605097,Servesoul Limited,57.27,03/07/2023
Delivery Units,Adults and Health,Other Agencies - Third Party P,0090605099,Servesoul Limited,601.34,03/07/2023
Delivery Units,Adults and Health,Other Agencies - Third Party P,0090605100,Servesoul Limited,801.78,03/07/2023
Delivery Units,Adults and Health,Other Agencies - Third Party P,0090605101,Servesoul Limited,606.11,03/07/2023
Delivery Units,Adults and Health,Other Agencies - Third Party P,0090605102,Servesoul Limited,233.85,03/07/2023
Delivery Units,Adults and Health,Other Agencies - Third Party P,0090605104,Servesoul Limited,190.90,03/07/2023
Delivery Units,Adults and Health,Other Agencies - Third Party P,0090605106,Servesoul Limited,66.82,03/07/2023
Delivery Units,Adults and Health,Other Agencies - Third Party P,0090605109,Servesoul Limited,286.35,03/07/2023
Delivery Units,Adults and Health,Other Agencies - Third Party P,0090605110,Servesoul Limited,601.34,03/07/2023
Delivery Units,Adults and Health,Other Agencies - Third Party P,0090605111,Servesoul Limited,262.49,03/07/2023
Delivery Units,Adults and Health,Other Agencies - Third Party P,0090605112,Servesoul Limited,233.85,03/07/2023
Delivery Units,Adults and Health,Other Agencies - Third Party P,0090605113,Servesoul Limited,300.67,03/07/2023
Delivery Units,Adults and Health,Other Agencies - Third Party P,0090605114,Servesoul Limited,100.22,03/07/2023
Delivery Units,Adults and Health,Other Agencies - Third Party P,0090605116,Servesoul Limited,152.72,03/07/2023
Delivery Units,Adults and Health,Other Agencies - Third Party P,0090605117,Servesoul Limited,200.45,03/07/2023
Delivery Units,Adults and Health,Other Agencies - Third Party P,0090605118,Servesoul Limited,38.18,03/07/2023
Delivery Units,Adults and Health,Other Agencies - Third Party P,0090605119,Servesoul Limited,572.70,03/07/2023
Delivery Units,Adults and Health,Other Agencies - Third Party P,0090605120,Servesoul Limited,668.15,03/07/2023
Delivery Units,Adults and Health,Other Agencies - Third Party P,0090605122,Servesoul Limited,267.26,03/07/2023
Delivery Units,Adults and Health,Other Agencies - Third Party P,0090605124,Servesoul Limited,133.63,03/07/2023
Delivery Units,Adults and Health,Other Agencies - Third Party P,0090605126,Servesoul Limited,501.11,03/07/2023
Delivery Units,Adults and Health,Other Agencies - Third Party P,0090605127,Servesoul Limited,133.63,03/07/2023
Delivery Units,Adults and Health,Other Agencies - Third Party P,0090605128,Servesoul Limited,319.76,03/07/2023
Delivery Units,Adults and Health,Other Agencies - Third Party P,0090605129,Servesoul Limited,672.92,03/07/2023
Delivery Units,Adults and Health,Other Agencies - Third Party P,0090605130,Servesoul Limited,"2,099.71",03/07/2023
Delivery Units,Adults and Health,Other Agencies - Third Party P,0090605131,Servesoul Limited,133.63,03/07/2023
Delivery Units,Adults and Health,Other Agencies - Third Party P,0090605132,Servesoul Limited,57.27,03/07/2023
Delivery Units,Adults and Health,Other Agencies - Third Party P,0090605135,Servesoul Limited,152.72,03/07/2023
Delivery Units,Adults and Health,Other Agencies - Third Party P,0090605136,Servesoul Limited,267.26,03/07/2023
Delivery Units,Adults and Health,Other Agencies - Third Party P,0090605138,Servesoul Limited,200.45,03/07/2023
Delivery Units,Adults and Health,Other Agencies - Third Party P,0090605139,Servesoul Limited,801.78,03/07/2023
Delivery Units,Adults and Health,Other Agencies - Third Party P,0090605142,Servesoul Limited,300.67,03/07/2023
Delivery Units,Adults and Health,Other Agencies - Third Party P,0090605143,Servesoul Limited,200.45,03/07/2023
Delivery Units,Adults and Health,Other Agencies - Third Party P,0090605145,Servesoul Limited,167.04,03/07/2023
Delivery Units,Adults and Health,Other Agencies - Third Party P,0090605146,Servesoul Limited,"1,135.86",03/07/2023
Delivery Units,Adults and Health,Other Agencies - Third Party P,0090605148,Servesoul Limited,319.76,03/07/2023
Delivery Units,Adults and Health,Other Agencies - Third Party P,0090605149,Servesoul Limited,233.85,03/07/2023
Delivery Units,Adults and Health,Other Agencies - Third Party P,0090605150,Servesoul Limited,57.27,03/07/2023
Delivery Units,Adults and Health,Other Agencies - Third Party P,0090605152,Servesoul Limited,601.34,03/07/2023
Delivery Units,Adults and Health,Other Agencies - Third Party P,0090605153,Servesoul Limited,801.78,03/07/2023
Delivery Units,Adults and Health,Other Agencies - Third Party P,0090605154,Servesoul Limited,606.11,03/07/2023
Delivery Units,Adults and Health,Other Agencies - Third Party P,0090605155,Servesoul Limited,233.85,03/07/2023
Delivery Units,Adults and Health,Other Agencies - Third Party P,0090605157,Servesoul Limited,190.90,03/07/2023
Delivery Units,Adults and Health,Other Agencies - Third Party P,0090605159,Servesoul Limited,66.82,03/07/2023
Delivery Units,Adults and Health,Other Agencies - Third Party P,0090605162,Servesoul Limited,286.35,03/07/2023
Delivery Units,Adults and Health,Other Agencies - Third Party P,0090605164,Servesoul Limited,601.34,03/07/2023
Delivery Units,Adults and Health,Other Agencies - Third Party P,0090605165,Servesoul Limited,262.49,03/07/2023
Delivery Units,Adults and Health,Other Agencies - Third Party P,0090605166,Servesoul Limited,233.85,03/07/2023
Delivery Units,Adults and Health,Other Agencies - Third Party P,0090605167,Servesoul Limited,300.67,03/07/2023
Delivery Units,Adults and Health,Other Agencies - Third Party P,0090605168,Servesoul Limited,100.22,03/07/2023
Delivery Units,Adults and Health,Other Agencies - Third Party P,0090605170,Servesoul Limited,267.26,03/07/2023
Delivery Units,Adults and Health,Other Agencies - Third Party P,0090605171,Servesoul Limited,200.45,03/07/2023
Delivery Units,Adults and Health,Other Agencies - Third Party P,0090605172,Servesoul Limited,57.27,03/07/2023
Delivery Units,Adults and Health,Other Agencies - Third Party P,0090605173,Servesoul Limited,372.26,03/07/2023
Delivery Units,Adults and Health,Other Agencies - Third Party P,0090605174,Servesoul Limited,668.15,03/07/2023
Delivery Units,Adults and Health,Other Agencies - Third Party P,0090605175,Servesoul Limited,66.82,03/07/2023
Delivery Units,Adults and Health,Other Agencies - Third Party P,0090605230,Eleanor Nursing & Social Care Ltd,600.08,03/07/2023
Delivery Units,Adults and Health,Other Agencies - Third Party P,0090605231,Eleanor Nursing & Social Care Ltd,666.75,03/07/2023
Delivery Units,Adults and Health,Other Agencies - Third Party P,0090605232,Eleanor Nursing & Social Care Ltd,600.08,03/07/2023
Delivery Units,Adults and Health,Other Agencies - Third Party P,0090605233,Eleanor Nursing & Social Care Ltd,666.75,03/07/2023
Delivery Units,Adults and Health,Other Agencies - Third Party P,0090605234,Eleanor Nursing & Social Care Ltd,228.60,03/07/2023
Delivery Units,Adults and Health,Other Agencies - Third Party P,0090605235,Eleanor Nursing & Social Care Ltd,600.08,03/07/2023
Delivery Units,Adults and Health,Other Agencies - Third Party P,0090605236,Eleanor Nursing & Social Care Ltd,666.75,03/07/2023
Delivery Units,Adults and Health,Other Agencies - Third Party P,0090605240,Eleanor Nursing & Social Care Ltd,600.08,03/07/2023
Delivery Units,Adults and Health,Other Agencies - Third Party P,0090605241,Eleanor Nursing & Social Care Ltd,666.75,03/07/2023
Delivery Units,Adults and Health,Other Agencies - Third Party P,0090605243,Eleanor Nursing & Social Care Ltd,600.08,03/07/2023
Delivery Units,Adults and Health,Other Agencies - Third Party P,0090605244,Eleanor Nursing & Social Care Ltd,571.50,03/07/2023
Delivery Units,Adults and Health,Other Agencies - Third Party P,0090605246,Eleanor Nursing & Social Care Ltd,588.42,03/07/2023
Delivery Units,Adults and Health,Other Agencies - Third Party P,0090605247,Eleanor Nursing & Social Care Ltd,588.42,03/07/2023
Delivery Units,Adults and Health,Other Agencies - Third Party P,0090605249,Eleanor Nursing & Social Care Ltd,158.78,03/07/2023
Delivery Units,Adults and Health,Other Agencies - Third Party P,0090605252,Eleanor Nursing & Social Care Ltd,280.20,03/07/2023
Delivery Units,Adults and Health,Other Agencies - Third Party P,0090605253,Eleanor Nursing & Social Care Ltd,196.14,03/07/2023
Delivery Units,Adults and Health,Other Agencies - Third Party P,0090605257,Eleanor Nursing & Social Care Ltd,163.45,03/07/2023
Delivery Units,Adults and Health,Other Agencies - Third Party P,0090605264,Eleanor Nursing & Social Care Ltd,158.78,03/07/2023
Delivery Units,Adults and Health,Other Agencies - Third Party P,0090605267,Eleanor Nursing & Social Care Ltd,182.13,03/07/2023
Delivery Units,Adults and Health,Other Agencies - Third Party P,0090605271,Eleanor Nursing & Social Care Ltd,182.13,03/07/2023
Delivery Units,Adults and Health,Other Agencies - Third Party P,0090605355,I-Care Recruitment Services Ltd,920.71,03/07/2023
Delivery Units,Adults and Health,Other Agencies - Third Party P,0090605356,I-Care Recruitment Services Ltd,526.12,03/07/2023
Delivery Units,Adults and Health,Other Agencies - Third Party P,0090605357,I-Care Recruitment Services Ltd,920.71,03/07/2023
Delivery Units,Adults and Health,Other Agencies - Third Party P,0090605358,I-Care Recruitment Services Ltd,"9,913.24",03/07/2023
Delivery Units,Adults and Health,Other Agencies - Third Party P,0090605416,Enhanced Care Solutions Limited,"1,280.28",03/07/2023
Delivery Units,Adults and Health,Other Agencies - Third Party P,0090605417,Enhanced Care Solutions Limited,423.74,03/07/2023
Delivery Units,Adults and Health,Other Agencies - Third Party P,0090605418,Enhanced Care Solutions Limited,380.28,03/07/2023
Delivery Units,Adults and Health,Other Agencies - Third Party P,0090605420,Enhanced Care Solutions Limited,342.25,03/07/2023
Delivery Units,Adults and Health,Other Agencies - Third Party P,0090605423,Enhanced Care Solutions Limited,190.14,03/07/2023
Delivery Units,Adults and Health,Other Agencies - Third Party P,0090605424,Enhanced Care Solutions Limited,114.08,03/07/2023
Delivery Units,Adults and Health,Other Agencies - Third Party P,0090605425,Enhanced Care Solutions Limited,195.57,03/07/2023
Delivery Units,Adults and Health,Other Agencies - Third Party P,0090605426,Enhanced Care Solutions Limited,847.47,03/07/2023
Delivery Units,Adults and Health,Other Agencies - Third Party P,0090605427,Enhanced Care Solutions Limited,521.52,03/07/2023
Delivery Units,Adults and Health,Other Agencies - Third Party P,0090605428,Enhanced Care Solutions Limited,472.63,03/07/2023
Delivery Units,Adults and Health,Other Agencies - Third Party P,0090605429,Enhanced Care Solutions Limited,108.65,03/07/2023
Delivery Units,Adults and Health,Other Agencies - Third Party P,0090605430,Enhanced Care Solutions Limited,152.11,03/07/2023
Delivery Units,Adults and Health,Other Agencies - Third Party P,0090605431,Enhanced Care Solutions Limited,521.52,03/07/2023
Delivery Units,Adults and Health,Other Agencies - Third Party P,0090605432,Enhanced Care Solutions Limited,190.14,03/07/2023
Delivery Units,Adults and Health,Other Agencies - Third Party P,0090605433,Enhanced Care Solutions Limited,423.74,03/07/2023
Delivery Units,Adults and Health,Other Agencies - Third Party P,0090605434,Enhanced Care Solutions Limited,304.22,03/07/2023
Delivery Units,Adults and Health,Other Agencies - Third Party P,0090605435,Enhanced Care Solutions Limited,21.73,03/07/2023
Delivery Units,Adults and Health,Other Agencies - Third Party P,0090605436,Enhanced Care Solutions Limited,173.84,03/07/2023
Delivery Units,Adults and Health,Other Agencies - Third Party P,0090605437,Enhanced Care Solutions Limited,65.19,03/07/2023
Delivery Units,Adults and Health,Other Agencies - Third Party P,0090605438,Enhanced Care Solutions Limited,266.19,03/07/2023
Delivery Units,Adults and Health,Other Agencies - Third Party P,0090605439,Enhanced Care Solutions Limited,"2,531.55",03/07/2023
Delivery Units,Adults and Health,Other Agencies - Third Party P,0090605440,Enhanced Care Solutions Limited,412.87,03/07/2023
Delivery Units,Adults and Health,Other Agencies - Third Party P,0090605441,Enhanced Care Solutions Limited,184.71,03/07/2023
Delivery Units,Adults and Health,Other Agencies - Third Party P,0090605442,Enhanced Care Solutions Limited,363.98,03/07/2023
Delivery Units,Adults and Health,Other Agencies - Third Party P,0090605443,Enhanced Care Solutions Limited,211.87,03/07/2023
Delivery Units,Adults and Health,Other Agencies - Third Party P,0090605444,Enhanced Care Solutions Limited,266.19,03/07/2023
Delivery Units,Adults and Health,Other Agencies - Third Party P,0090605445,Enhanced Care Solutions Limited,304.22,03/07/2023
Delivery Units,Adults and Health,Other Agencies - Third Party P,0090605446,Enhanced Care Solutions Limited,347.68,03/07/2023
Delivery Units,Adults and Health,Other Agencies - Third Party P,0090605447,Enhanced Care Solutions Limited,836.61,03/07/2023
Delivery Units,Adults and Health,Other Agencies - Third Party P,0090605448,Enhanced Care Solutions Limited,684.50,03/07/2023
Delivery Units,Adults and Health,Other Agencies - Third Party P,0090605450,Enhanced Care Solutions Limited,190.14,03/07/2023
Delivery Units,Adults and Health,Other Agencies - Third Party P,0090605451,Enhanced Care Solutions Limited,532.39,03/07/2023
Delivery Units,Adults and Health,Other Agencies - Third Party P,0090605452,Enhanced Care Solutions Limited,380.28,03/07/2023
Delivery Units,Adults and Health,Other Agencies - Third Party P,0090605453,Enhanced Care Solutions Limited,228.17,03/07/2023
Delivery Units,Adults and Health,Other Agencies - Third Party P,0090605454,Enhanced Care Solutions Limited,309.65,03/07/2023
Delivery Units,Adults and Health,Other Agencies - Third Party P,0090605455,Enhanced Care Solutions Limited,114.08,03/07/2023
Delivery Units,Adults and Health,Other Agencies - Third Party P,0090605459,Enhanced Care Solutions Limited,152.11,03/07/2023
Delivery Units,Adults and Health,Other Agencies - Third Party P,0090605460,Enhanced Care Solutions Limited,173.84,03/07/2023
Delivery Units,Adults and Health,Other Agencies - Third Party P,0090605462,Enhanced Care Solutions Limited,108.65,03/07/2023
Delivery Units,Adults and Health,Other Agencies - Third Party P,0090605463,Enhanced Care Solutions Limited,"1,280.28",03/07/2023
Delivery Units,Adults and Health,Other Agencies - Third Party P,0090605464,Enhanced Care Solutions Limited,423.74,03/07/2023
Delivery Units,Adults and Health,Other Agencies - Third Party P,0090605465,Enhanced Care Solutions Limited,380.28,03/07/2023
Delivery Units,Adults and Health,Other Agencies - Third Party P,0090605467,Enhanced Care Solutions Limited,342.25,03/07/2023
Delivery Units,Adults and Health,Other Agencies - Third Party P,0090605470,Enhanced Care Solutions Limited,190.14,03/07/2023
Delivery Units,Adults and Health,Other Agencies - Third Party P,0090605471,Enhanced Care Solutions Limited,114.08,03/07/2023
Delivery Units,Adults and Health,Other Agencies - Third Party P,0090605472,Enhanced Care Solutions Limited,195.57,03/07/2023
Delivery Units,Adults and Health,Other Agencies - Third Party P,0090605473,Enhanced Care Solutions Limited,858.34,03/07/2023
Delivery Units,Adults and Health,Other Agencies - Third Party P,0090605474,Enhanced Care Solutions Limited,521.52,03/07/2023
Delivery Units,Adults and Health,Other Agencies - Third Party P,0090605475,Enhanced Care Solutions Limited,472.63,03/07/2023
Delivery Units,Adults and Health,Other Agencies - Third Party P,0090605476,Enhanced Care Solutions Limited,108.65,03/07/2023
Delivery Units,Adults and Health,Other Agencies - Third Party P,0090605477,Enhanced Care Solutions Limited,152.11,03/07/2023
Delivery Units,Adults and Health,Other Agencies - Third Party P,0090605478,Enhanced Care Solutions Limited,516.09,03/07/2023
Delivery Units,Adults and Health,Other Agencies - Third Party P,0090605479,Enhanced Care Solutions Limited,190.14,03/07/2023
Delivery Units,Adults and Health,Other Agencies - Third Party P,0090605480,Enhanced Care Solutions Limited,423.74,03/07/2023
Delivery Units,Adults and Health,Other Agencies - Third Party P,0090605481,Enhanced Care Solutions Limited,304.22,03/07/2023
Delivery Units,Adults and Health,Other Agencies - Third Party P,0090605482,Enhanced Care Solutions Limited,21.73,03/07/2023
Delivery Units,Adults and Health,Other Agencies - Third Party P,0090605483,Enhanced Care Solutions Limited,173.84,03/07/2023
Delivery Units,Adults and Health,Other Agencies - Third Party P,0090605484,Enhanced Care Solutions Limited,65.19,03/07/2023
Delivery Units,Adults and Health,Other Agencies - Third Party P,0090605485,Enhanced Care Solutions Limited,266.19,03/07/2023
Delivery Units,Adults and Health,Other Agencies - Third Party P,0090605486,Enhanced Care Solutions Limited,"2,531.55",03/07/2023
Delivery Units,Adults and Health,Other Agencies - Third Party P,0090605487,Enhanced Care Solutions Limited,412.87,03/07/2023
Delivery Units,Adults and Health,Other Agencies - Third Party P,0090605488,Enhanced Care Solutions Limited,363.98,03/07/2023
Delivery Units,Adults and Health,Other Agencies - Third Party P,0090605489,Enhanced Care Solutions Limited,211.87,03/07/2023
Delivery Units,Adults and Health,Other Agencies - Third Party P,0090605490,Enhanced Care Solutions Limited,266.19,03/07/2023
Delivery Units,Adults and Health,Other Agencies - Third Party P,0090605491,Enhanced Care Solutions Limited,304.22,03/07/2023
Delivery Units,Adults and Health,Other Agencies - Third Party P,0090605492,Enhanced Care Solutions Limited,347.68,03/07/2023
Delivery Units,Adults and Health,Other Agencies - Third Party P,0090605493,Enhanced Care Solutions Limited,836.61,03/07/2023
Delivery Units,Adults and Health,Other Agencies - Third Party P,0090605494,Enhanced Care Solutions Limited,684.50,03/07/2023
Delivery Units,Adults and Health,Other Agencies - Third Party P,0090605496,Enhanced Care Solutions Limited,190.14,03/07/2023
Delivery Units,Adults and Health,Other Agencies - Third Party P,0090605497,Enhanced Care Solutions Limited,532.39,03/07/2023
Delivery Units,Adults and Health,Other Agencies - Third Party P,0090605498,Enhanced Care Solutions Limited,380.28,03/07/2023
Delivery Units,Adults and Health,Other Agencies - Third Party P,0090605499,Enhanced Care Solutions Limited,309.65,03/07/2023
Delivery Units,Adults and Health,Other Agencies - Third Party P,0090605500,Enhanced Care Solutions Limited,114.08,03/07/2023
Delivery Units,Adults and Health,Other Agencies - Third Party P,0090605504,Enhanced Care Solutions Limited,152.11,03/07/2023
Delivery Units,Adults and Health,Other Agencies - Third Party P,0090605505,Enhanced Care Solutions Limited,173.84,03/07/2023
Delivery Units,Adults and Health,Other Agencies - Third Party P,0090605507,Enhanced Care Solutions Limited,108.65,03/07/2023
Delivery Units,Adults and Health,Other Agencies - Third Party P,0090605588,The Cedars Home Care,135.80,03/07/2023
Delivery Units,Adults and Health,Other Agencies - Third Party P,0090605589,The Cedars Home Care,368.60,03/07/2023
Delivery Units,Adults and Health,Other Agencies - Third Party P,0090605591,The Cedars Home Care,557.75,03/07/2023
Delivery Units,Adults and Health,Other Agencies - Third Party P,0090605593,The Cedars Home Care,237.65,03/07/2023
Delivery Units,Adults and Health,Other Agencies - Third Party P,0090605594,The Cedars Home Care,305.55,03/07/2023
Delivery Units,Adults and Health,Other Agencies - Third Party P,0090605595,The Cedars Home Care,"1,018.50",03/07/2023
Delivery Units,Adults and Health,Other Agencies - Third Party P,0090605596,The Cedars Home Care,58.20,03/07/2023
Delivery Units,Adults and Health,Other Agencies - Third Party P,0090605597,The Cedars Home Care,101.85,03/07/2023
Delivery Units,Adults and Health,Other Agencies - Third Party P,0090605598,The Cedars Home Care,134.25,03/07/2023
Delivery Units,Adults and Health,Other Agencies - Third Party P,0090605599,The Cedars Home Care,184.30,03/07/2023
Delivery Units,Adults and Health,Other Agencies - Third Party P,0090605600,The Cedars Home Care,19.40,03/07/2023
Delivery Units,Adults and Health,Other Agencies - Third Party P,0090605601,The Cedars Home Care,"3,259.20",03/07/2023
Delivery Units,Adults and Health,Other Agencies - Third Party P,0090605602,The Cedars Home Care,271.60,03/07/2023
Delivery Units,Adults and Health,Other Agencies - Third Party P,0090605603,The Cedars Home Care,189.15,03/07/2023
Delivery Units,Adults and Health,Other Agencies - Third Party P,0090605604,The Cedars Home Care,38.22,03/07/2023
Delivery Units,Adults and Health,Other Agencies - Third Party P,0090605606,The Cedars Home Care,324.37,03/07/2023
Delivery Units,Adults and Health,Other Agencies - Third Party P,0090605607,The Cedars Home Care,412.25,03/07/2023
Delivery Units,Adults and Health,Other Agencies - Third Party P,0090605608,The Cedars Home Care,29.10,03/07/2023
Delivery Units,Adults and Health,Other Agencies - Third Party P,0090605610,The Cedars Home Care,14.55,03/07/2023
Delivery Units,Adults and Health,Other Agencies - Third Party P,0090605611,The Cedars Home Care,"1,018.50",03/07/2023
Delivery Units,Adults and Health,Other Agencies - Third Party P,0090605612,The Cedars Home Care,58.20,03/07/2023
Delivery Units,Adults and Health,Other Agencies - Third Party P,0090605615,The Cedars Home Care,"1,222.20",03/07/2023
Delivery Units,Adults and Health,Other Agencies - Third Party P,0090605617,The Cedars Home Care,"2,880.90",03/07/2023
Delivery Units,Adults and Health,Other Agencies - Third Party P,0090605618,The Cedars Home Care,473.94,03/07/2023
Delivery Units,Adults and Health,Other Agencies - Third Party P,0090605619,The Cedars Home Care,179.45,03/07/2023
Delivery Units,Adults and Health,Other Agencies - Third Party P,0090605620,The Cedars Home Care,179.45,03/07/2023
Delivery Units,Adults and Health,Other Agencies - Third Party P,0090605622,The Cedars Home Care,50.05,03/07/2023
Delivery Units,Adults and Health,Other Agencies - Third Party P,0090605623,The Cedars Home Care,116.40,03/07/2023
Delivery Units,Adults and Health,Other Agencies - Third Party P,0090605625,The Cedars Home Care,264.23,03/07/2023
Delivery Units,Adults and Health,Other Agencies - Third Party P,0090605626,The Cedars Home Care,222.13,03/07/2023
Delivery Units,Adults and Health,Other Agencies - Third Party P,0090605627,The Cedars Home Care,101.85,03/07/2023
Delivery Units,Adults and Health,Other Agencies - Third Party P,0090605628,The Cedars Home Care,155.20,03/07/2023
Delivery Units,Adults and Health,Other Agencies - Third Party P,0090605632,The Cedars Home Care,426.80,03/07/2023
Delivery Units,Adults and Health,Other Agencies - Third Party P,0090605635,The Cedars Home Care,"1,629.60",03/07/2023
Delivery Units,Adults and Health,Other Agencies - Third Party P,0090605637,The Cedars Home Care,154.62,03/07/2023
Delivery Units,Adults and Health,Other Agencies - Third Party P,0090605638,Enhanced Care Solutions Limited,380.28,03/07/2023
Delivery Units,Adults and Health,Other Agencies - Third Party P,0090605639,Enhanced Care Solutions Limited,380.28,03/07/2023
Delivery Units,Adults and Health,Other Agencies - Third Party P,0090605640,Enhanced Care Solutions Limited,380.28,03/07/2023
Delivery Units,Adults and Health,Other Agencies - Third Party P,0090605641,Enhanced Care Solutions Limited,380.28,03/07/2023
Delivery Units,Adults and Health,Other Agencies - Third Party P,0090605642,Enhanced Care Solutions Limited,380.28,03/07/2023
Delivery Units,Adults and Health,Other Agencies - Third Party P,0090605643,Enhanced Care Solutions Limited,380.28,03/07/2023
Delivery Units,Adults and Health,Other Agencies - Third Party P,0090605644,Enhanced Care Solutions Limited,380.28,03/07/2023
Delivery Units,Adults and Health,Other Agencies - Third Party P,0090605667,Metro Homecare Ltd,40.59,03/07/2023
Delivery Units,Adults and Health,Other Agencies - Third Party P,0090605668,Metro Homecare Ltd,333.74,03/07/2023
Delivery Units,Adults and Health,Other Agencies - Third Party P,0090605670,Metro Homecare Ltd,94.71,03/07/2023
Delivery Units,Adults and Health,Other Agencies - Third Party P,0090605671,Metro Homecare Ltd,284.13,03/07/2023
Delivery Units,Adults and Health,Other Agencies - Third Party P,0090605673,Metro Homecare Ltd,315.70,03/07/2023
Delivery Units,Adults and Health,Other Agencies - Third Party P,0090605676,Metro Homecare Ltd,911.02,03/07/2023
Delivery Units,Adults and Health,Other Agencies - Third Party P,0090605677,Metro Homecare Ltd,189.42,03/07/2023
Delivery Units,Adults and Health,Other Agencies - Third Party P,0090605679,Metro Homecare Ltd,378.84,03/07/2023
Delivery Units,Adults and Health,Other Agencies - Third Party P,0090605680,Metro Homecare Ltd,333.74,03/07/2023
Delivery Units,Adults and Health,Other Agencies - Third Party P,0090605684,Metro Homecare Ltd,220.99,03/07/2023
Delivery Units,Adults and Health,Other Agencies - Third Party P,0090605686,Metro Homecare Ltd,757.68,03/07/2023
Delivery Units,Adults and Health,Other Agencies - Third Party P,0090605689,Metro Homecare Ltd,284.13,03/07/2023
Delivery Units,Adults and Health,Other Agencies - Third Party P,0090605692,Metro Homecare Ltd,40.59,03/07/2023
Delivery Units,Adults and Health,Other Agencies - Third Party P,0090605693,Metro Homecare Ltd,333.74,03/07/2023
Delivery Units,Adults and Health,Other Agencies - Third Party P,0090605694,Metro Homecare Ltd,94.71,03/07/2023
Delivery Units,Adults and Health,Other Agencies - Third Party P,0090605695,Metro Homecare Ltd,284.13,03/07/2023
Delivery Units,Adults and Health,Other Agencies - Third Party P,0090605697,Metro Homecare Ltd,315.70,03/07/2023
Delivery Units,Adults and Health,Other Agencies - Third Party P,0090605700,Metro Homecare Ltd,911.02,03/07/2023
Delivery Units,Adults and Health,Other Agencies - Third Party P,0090605701,Metro Homecare Ltd,189.42,03/07/2023
Delivery Units,Adults and Health,Other Agencies - Third Party P,0090605703,Metro Homecare Ltd,378.84,03/07/2023
Delivery Units,Adults and Health,Other Agencies - Third Party P,0090605704,Metro Homecare Ltd,333.74,03/07/2023
Delivery Units,Adults and Health,Other Agencies - Third Party P,0090605707,Metro Homecare Ltd,220.99,03/07/2023
Delivery Units,Adults and Health,Other Agencies - Third Party P,0090605709,Metro Homecare Ltd,757.68,03/07/2023
Delivery Units,Adults and Health,Other Agencies - Third Party P,0090605712,Metro Homecare Ltd,284.13,03/07/2023
Delivery Units,Adults and Health,Other Agencies - Third Party P,0090605714,Metro Homecare Ltd,40.59,03/07/2023
Delivery Units,Adults and Health,Other Agencies - Third Party P,0090605715,Metro Homecare Ltd,333.74,03/07/2023
Delivery Units,Adults and Health,Other Agencies - Third Party P,0090605717,Metro Homecare Ltd,94.71,03/07/2023
Delivery Units,Adults and Health,Other Agencies - Third Party P,0090605718,Metro Homecare Ltd,284.13,03/07/2023
Delivery Units,Adults and Health,Other Agencies - Third Party P,0090605720,Metro Homecare Ltd,315.70,03/07/2023
Delivery Units,Adults and Health,Other Agencies - Third Party P,0090605723,Metro Homecare Ltd,911.02,03/07/2023
Delivery Units,Adults and Health,Other Agencies - Third Party P,0090605724,Metro Homecare Ltd,189.42,03/07/2023
Delivery Units,Adults and Health,Other Agencies - Third Party P,0090605726,Metro Homecare Ltd,378.84,03/07/2023
Delivery Units,Adults and Health,Other Agencies - Third Party P,0090605727,Metro Homecare Ltd,333.74,03/07/2023
Delivery Units,Adults and Health,Other Agencies - Third Party P,0090605731,Metro Homecare Ltd,220.99,03/07/2023
Delivery Units,Adults and Health,Other Agencies - Third Party P,0090605733,Metro Homecare Ltd,757.68,03/07/2023
Delivery Units,Adults and Health,Other Agencies - Third Party P,0090605736,Metro Homecare Ltd,284.13,03/07/2023
Delivery Units,Adults and Health,Other Agencies - Third Party P,0090605738,Metro Homecare Ltd,40.59,03/07/2023
Delivery Units,Adults and Health,Other Agencies - Third Party P,0090605739,Metro Homecare Ltd,333.74,03/07/2023
Delivery Units,Adults and Health,Other Agencies - Third Party P,0090605741,Metro Homecare Ltd,94.71,03/07/2023
Delivery Units,Adults and Health,Other Agencies - Third Party P,0090605742,Metro Homecare Ltd,284.13,03/07/2023
Delivery Units,Adults and Health,Other Agencies - Third Party P,0090605744,Metro Homecare Ltd,315.70,03/07/2023
Delivery Units,Adults and Health,Other Agencies - Third Party P,0090605747,Metro Homecare Ltd,911.02,03/07/2023
Delivery Units,Adults and Health,Other Agencies - Third Party P,0090605748,Metro Homecare Ltd,189.42,03/07/2023
Delivery Units,Adults and Health,Other Agencies - Third Party P,0090605750,Metro Homecare Ltd,378.84,03/07/2023
Delivery Units,Adults and Health,Other Agencies - Third Party P,0090605751,Metro Homecare Ltd,333.74,03/07/2023
Delivery Units,Adults and Health,Other Agencies - Third Party P,0090605755,Metro Homecare Ltd,220.99,03/07/2023
Delivery Units,Adults and Health,Other Agencies - Third Party P,0090605757,Metro Homecare Ltd,757.68,03/07/2023
Delivery Units,Adults and Health,Other Agencies - Third Party P,0090605760,Metro Homecare Ltd,284.13,03/07/2023
Delivery Units,Adults and Health,Other Agencies - Third Party P,0090605778,Nwando Domiciliary Care Ltd,76.52,04/07/2023
Delivery Units,Adults and Health,Other Agencies - Third Party P,0090605781,Nwando Domiciliary Care Ltd,200.87,04/07/2023
Delivery Units,Adults and Health,Other Agencies - Third Party P,0090605782,Nwando Domiciliary Care Ltd,669.55,04/07/2023
Delivery Units,Adults and Health,Other Agencies - Third Party P,0090605783,Nwando Domiciliary Care Ltd,133.91,04/07/2023
Delivery Units,Adults and Health,Other Agencies - Third Party P,0090605784,Nwando Domiciliary Care Ltd,138.69,04/07/2023
Delivery Units,Adults and Health,Other Agencies - Third Party P,0090605785,Nwando Domiciliary Care Ltd,"1,071.28",04/07/2023
Delivery Units,Adults and Health,Other Agencies - Third Party P,0090605786,Nwando Domiciliary Care Ltd,306.08,04/07/2023
Delivery Units,Adults and Health,Other Agencies - Third Party P,0090605789,Nwando Domiciliary Care Ltd,"1,659.53",04/07/2023
Delivery Units,Adults and Health,Other Agencies - Third Party P,0090605790,Nwando Domiciliary Care Ltd,286.95,04/07/2023
Delivery Units,Adults and Health,Other Agencies - Third Party P,0090605791,Nwando Domiciliary Care Ltd,669.55,04/07/2023
Delivery Units,Adults and Health,Other Agencies - Third Party P,0090605795,Nwando Domiciliary Care Ltd,334.78,04/07/2023
Delivery Units,Adults and Health,Other Agencies - Third Party P,0090605797,Nwando Domiciliary Care Ltd,153.04,04/07/2023
Delivery Units,Adults and Health,Other Agencies - Third Party P,0090605799,Nwando Domiciliary Care Ltd,315.65,04/07/2023
Delivery Units,Adults and Health,Other Agencies - Third Party P,0090605802,Nwando Domiciliary Care Ltd,200.87,04/07/2023
Delivery Units,Adults and Health,Other Agencies - Third Party P,0090605803,Nwando Domiciliary Care Ltd,669.55,04/07/2023
Delivery Units,Adults and Health,Other Agencies - Third Party P,0090605804,Nwando Domiciliary Care Ltd,133.91,04/07/2023
Delivery Units,Adults and Health,Other Agencies - Third Party P,0090605805,Nwando Domiciliary Care Ltd,138.69,04/07/2023
Delivery Units,Adults and Health,Other Agencies - Third Party P,0090605806,Nwando Domiciliary Care Ltd,"1,071.28",04/07/2023
Delivery Units,Adults and Health,Other Agencies - Third Party P,0090605807,Nwando Domiciliary Care Ltd,153.04,04/07/2023
Delivery Units,Adults and Health,Other Agencies - Third Party P,0090605810,Nwando Domiciliary Care Ltd,"1,626.05",04/07/2023
Delivery Units,Adults and Health,Other Agencies - Third Party P,0090605811,Nwando Domiciliary Care Ltd,286.95,04/07/2023
Delivery Units,Adults and Health,Other Agencies - Third Party P,0090605812,Nwando Domiciliary Care Ltd,669.55,04/07/2023
Delivery Units,Adults and Health,Other Agencies - Third Party P,0090605814,Nwando Domiciliary Care Ltd,334.78,04/07/2023
Delivery Units,Adults and Health,Other Agencies - Third Party P,0090605817,Nwando Domiciliary Care Ltd,267.82,04/07/2023
Delivery Units,Adults and Health,Other Agencies - Third Party P,0090605818,Nwando Domiciliary Care Ltd,220.00,04/07/2023
Delivery Units,Adults and Health,Other Agencies - Third Party P,0090605820,Nwando Domiciliary Care Ltd,176.95,04/07/2023
Delivery Units,Adults and Health,Other Agencies - Third Party P,0090605823,Nwando Domiciliary Care Ltd,368.25,04/07/2023
Delivery Units,Adults and Health,Other Agencies - Third Party P,0090605825,Nwando Domiciliary Care Ltd,200.87,04/07/2023
Delivery Units,Adults and Health,Other Agencies - Third Party P,0090605826,Nwando Domiciliary Care Ltd,669.55,04/07/2023
Delivery Units,Adults and Health,Other Agencies - Third Party P,0090605827,Nwando Domiciliary Care Ltd,133.91,04/07/2023
Delivery Units,Adults and Health,Other Agencies - Third Party P,0090605828,Nwando Domiciliary Care Ltd,138.69,04/07/2023
Delivery Units,Adults and Health,Other Agencies - Third Party P,0090605829,Nwando Domiciliary Care Ltd,"1,071.28",04/07/2023
Delivery Units,Adults and Health,Other Agencies - Third Party P,0090605830,Nwando Domiciliary Care Ltd,205.65,04/07/2023
Delivery Units,Adults and Health,Other Agencies - Third Party P,0090605833,Nwando Domiciliary Care Ltd,"1,602.14",04/07/2023
Delivery Units,Adults and Health,Other Agencies - Third Party P,0090605834,Nwando Domiciliary Care Ltd,286.95,04/07/2023
Delivery Units,Adults and Health,Other Agencies - Third Party P,0090605835,Nwando Domiciliary Care Ltd,669.55,04/07/2023
Delivery Units,Adults and Health,Other Agencies - Third Party P,0090605837,Nwando Domiciliary Care Ltd,334.78,04/07/2023
Delivery Units,Adults and Health,Other Agencies - Third Party P,0090605839,Nwando Domiciliary Care Ltd,267.82,04/07/2023
Delivery Units,Adults and Health,Other Agencies - Third Party P,0090605841,Nwando Domiciliary Care Ltd,468.69,04/07/2023
Delivery Units,Adults and Health,Other Agencies - Third Party P,0090605845,Nwando Domiciliary Care Ltd,95.65,04/07/2023
Delivery Units,Adults and Health,Other Agencies - Third Party P,0090605847,Nwando Domiciliary Care Ltd,368.25,04/07/2023
Delivery Units,Adults and Health,Other Agencies - Third Party P,0090605849,Nwando Domiciliary Care Ltd,200.87,04/07/2023
Delivery Units,Adults and Health,Other Agencies - Third Party P,0090605850,Nwando Domiciliary Care Ltd,669.55,04/07/2023
Delivery Units,Adults and Health,Other Agencies - Third Party P,0090605851,Nwando Domiciliary Care Ltd,133.91,04/07/2023
Delivery Units,Adults and Health,Other Agencies - Third Party P,0090605852,Nwando Domiciliary Care Ltd,138.69,04/07/2023
Delivery Units,Adults and Health,Other Agencies - Third Party P,0090605853,Nwando Domiciliary Care Ltd,"1,071.28",04/07/2023
Delivery Units,Adults and Health,Other Agencies - Third Party P,0090605854,Nwando Domiciliary Care Ltd,306.08,04/07/2023
Delivery Units,Adults and Health,Other Agencies - Third Party P,0090605856,Nwando Domiciliary Care Ltd,"1,602.14",04/07/2023
Delivery Units,Adults and Health,Other Agencies - Third Party P,0090605857,Nwando Domiciliary Care Ltd,286.95,04/07/2023
Delivery Units,Adults and Health,Other Agencies - Third Party P,0090605858,Nwando Domiciliary Care Ltd,669.55,04/07/2023
Delivery Units,Adults and Health,Other Agencies - Third Party P,0090605860,Nwando Domiciliary Care Ltd,334.78,04/07/2023
Delivery Units,Adults and Health,Other Agencies - Third Party P,0090605862,Nwando Domiciliary Care Ltd,267.82,04/07/2023
Delivery Units,Adults and Health,Other Agencies - Third Party P,0090605864,Nwando Domiciliary Care Ltd,66.96,04/07/2023
Delivery Units,Adults and Health,Other Agencies - Third Party P,0090605889,DYNAMIC PEOPLE LTD,352.45,04/07/2023
Delivery Units,Adults and Health,Other Agencies - Third Party P,0090605890,DYNAMIC PEOPLE LTD,60.42,04/07/2023
Delivery Units,Adults and Health,Other Agencies - Third Party P,0090605893,DYNAMIC PEOPLE LTD,140.98,04/07/2023
Delivery Units,Adults and Health,Other Agencies - Third Party P,0090605894,DYNAMIC PEOPLE LTD,422.94,04/07/2023
Delivery Units,Adults and Health,Other Agencies - Third Party P,0090605896,DYNAMIC PEOPLE LTD,281.96,04/07/2023
Delivery Units,Adults and Health,Other Agencies - Third Party P,0090605898,DYNAMIC PEOPLE LTD,775.39,04/07/2023
Delivery Units,Adults and Health,Other Agencies - Third Party P,0090605899,DYNAMIC PEOPLE LTD,70.49,04/07/2023
Delivery Units,Adults and Health,Other Agencies - Third Party P,0090605905,DYNAMIC PEOPLE LTD,236.65,04/07/2023
Delivery Units,Adults and Health,Other Agencies - Third Party P,0090605906,DYNAMIC PEOPLE LTD,171.19,04/07/2023
Delivery Units,Adults and Health,Other Agencies - Third Party P,0090605907,DYNAMIC PEOPLE LTD,246.72,04/07/2023
Delivery Units,Adults and Health,Other Agencies - Third Party P,0090605910,DYNAMIC PEOPLE LTD,75.53,04/07/2023
Delivery Units,Adults and Health,Other Agencies - Third Party P,0090605911,DYNAMIC PEOPLE LTD,45.32,04/07/2023
Delivery Units,Adults and Health,Other Agencies - Third Party P,0090605913,DYNAMIC PEOPLE LTD,140.98,04/07/2023
Delivery Units,Adults and Health,Other Agencies - Third Party P,0090605914,DYNAMIC PEOPLE LTD,75.53,04/07/2023
Delivery Units,Adults and Health,Other Agencies - Third Party P,0090605915,DYNAMIC PEOPLE LTD,281.96,04/07/2023
Delivery Units,Adults and Health,Other Agencies - Third Party P,0090605916,DYNAMIC PEOPLE LTD,246.72,04/07/2023
Delivery Units,Adults and Health,Other Agencies - Third Party P,0090605917,DYNAMIC PEOPLE LTD,90.63,04/07/2023
Delivery Units,Adults and Health,Other Agencies - Third Party P,0090605918,DYNAMIC PEOPLE LTD,75.53,04/07/2023
Delivery Units,Adults and Health,Other Agencies - Third Party P,0090605919,DYNAMIC PEOPLE LTD,533.71,04/07/2023
Delivery Units,Adults and Health,Other Agencies - Third Party P,0090605920,DYNAMIC PEOPLE LTD,276.93,04/07/2023
Delivery Units,Adults and Health,Other Agencies - Third Party P,0090605922,DYNAMIC PEOPLE LTD,105.74,04/07/2023
Delivery Units,Adults and Health,Other Agencies - Third Party P,0090605923,DYNAMIC PEOPLE LTD,201.40,04/07/2023
Delivery Units,Adults and Health,Other Agencies - Third Party P,0090605925,DYNAMIC PEOPLE LTD,75.53,04/07/2023
Delivery Units,Adults and Health,Other Agencies - Third Party P,0090605926,DYNAMIC PEOPLE LTD,140.98,04/07/2023
Delivery Units,Adults and Health,Other Agencies - Third Party P,0090605928,DYNAMIC PEOPLE LTD,246.72,04/07/2023
Delivery Units,Adults and Health,Other Agencies - Third Party P,0090605929,DYNAMIC PEOPLE LTD,186.30,04/07/2023
Delivery Units,Adults and Health,Other Agencies - Third Party P,0090605930,DYNAMIC PEOPLE LTD,307.14,04/07/2023
Delivery Units,Adults and Health,Other Agencies - Third Party P,0090605931,DYNAMIC PEOPLE LTD,654.55,04/07/2023
Delivery Units,Adults and Health,Other Agencies - Third Party P,0090605932,DYNAMIC PEOPLE LTD,251.75,04/07/2023
Delivery Units,Adults and Health,Other Agencies - Third Party P,0090605933,DYNAMIC PEOPLE LTD,241.68,04/07/2023
Delivery Units,Adults and Health,Other Agencies - Third Party P,0090605934,DYNAMIC PEOPLE LTD,352.45,04/07/2023
Delivery Units,Adults and Health,Other Agencies - Third Party P,0090605935,DYNAMIC PEOPLE LTD,377.63,04/07/2023
Delivery Units,Adults and Health,Other Agencies - Third Party P,0090605936,DYNAMIC PEOPLE LTD,271.89,04/07/2023
Delivery Units,Adults and Health,Other Agencies - Third Party P,0090605937,DYNAMIC PEOPLE LTD,156.09,04/07/2023
Delivery Units,Adults and Health,Other Agencies - Third Party P,0090605938,DYNAMIC PEOPLE LTD,176.23,04/07/2023
Delivery Units,Adults and Health,Other Agencies - Third Party P,0090605939,DYNAMIC PEOPLE LTD,30.21,04/07/2023
Delivery Units,Adults and Health,Other Agencies - Third Party P,0090605940,DYNAMIC PEOPLE LTD,246.72,04/07/2023
Delivery Units,Adults and Health,Other Agencies - Third Party P,0090605941,DYNAMIC PEOPLE LTD,151.05,04/07/2023
Delivery Units,Adults and Health,Other Agencies - Third Party P,0090605944,DYNAMIC PEOPLE LTD,130.91,04/07/2023
Delivery Units,Adults and Health,Other Agencies - Third Party P,0090605945,DYNAMIC PEOPLE LTD,151.05,04/07/2023
Delivery Units,Adults and Health,Other Agencies - Third Party P,0090605946,DYNAMIC PEOPLE LTD,105.74,04/07/2023
Delivery Units,Adults and Health,Other Agencies - Third Party P,0090605947,DYNAMIC PEOPLE LTD,246.72,04/07/2023
Delivery Units,Adults and Health,Other Agencies - Third Party P,0090605948,DYNAMIC PEOPLE LTD,317.21,04/07/2023
Delivery Units,Adults and Health,Other Agencies - Third Party P,0090605949,DYNAMIC PEOPLE LTD,246.72,04/07/2023
Delivery Units,Adults and Health,Other Agencies - Third Party P,0090605950,DYNAMIC PEOPLE LTD,135.95,04/07/2023
Delivery Units,Adults and Health,Other Agencies - Third Party P,0090605953,DYNAMIC PEOPLE LTD,80.56,04/07/2023
Delivery Units,Adults and Health,Other Agencies - Third Party P,0090605954,DYNAMIC PEOPLE LTD,161.12,04/07/2023
Delivery Units,Adults and Health,Other Agencies - Third Party P,0090605955,DYNAMIC PEOPLE LTD,45.32,04/07/2023
Delivery Units,Adults and Health,Other Agencies - Third Party P,0090605958,DYNAMIC PEOPLE LTD,322.24,04/07/2023
Delivery Units,Adults and Health,Other Agencies - Third Party P,0090605959,DYNAMIC PEOPLE LTD,105.74,04/07/2023
Delivery Units,Adults and Health,Other Agencies - Third Party P,0090605960,DYNAMIC PEOPLE LTD,367.56,04/07/2023
Delivery Units,Adults and Health,Other Agencies - Third Party P,0090605962,DYNAMIC PEOPLE LTD,161.12,04/07/2023
Delivery Units,Adults and Health,Other Agencies - Third Party P,0090605965,DYNAMIC PEOPLE LTD,281.96,04/07/2023
Delivery Units,Adults and Health,Other Agencies - Third Party P,0090605966,DYNAMIC PEOPLE LTD,281.96,04/07/2023
Delivery Units,Adults and Health,Other Agencies - Third Party P,0090605967,DYNAMIC PEOPLE LTD,15.11,04/07/2023
Delivery Units,Adults and Health,Other Agencies - Third Party P,0090605968,DYNAMIC PEOPLE LTD,211.47,04/07/2023
Delivery Units,Adults and Health,Other Agencies - Third Party P,0090605969,DYNAMIC PEOPLE LTD,176.23,04/07/2023
Delivery Units,Adults and Health,Other Agencies - Third Party P,0090605972,DYNAMIC PEOPLE LTD,140.98,04/07/2023
Delivery Units,Adults and Health,Other Agencies - Third Party P,0090605973,DYNAMIC PEOPLE LTD,105.74,04/07/2023
Delivery Units,Adults and Health,Other Agencies - Third Party P,0090605975,DYNAMIC PEOPLE LTD,60.42,04/07/2023
Delivery Units,Adults and Health,Other Agencies - Third Party P,0090605977,DYNAMIC PEOPLE LTD,281.96,04/07/2023
Delivery Units,Adults and Health,Other Agencies - Third Party P,0090605978,DYNAMIC PEOPLE LTD,246.72,04/07/2023
Delivery Units,Adults and Health,Other Agencies - Third Party P,0090605980,DYNAMIC PEOPLE LTD,"1,691.76",04/07/2023
Delivery Units,Adults and Health,Other Agencies - Third Party P,0090605981,DYNAMIC PEOPLE LTD,181.26,04/07/2023
Delivery Units,Adults and Health,Other Agencies - Third Party P,0090605982,DYNAMIC PEOPLE LTD,90.63,04/07/2023
Delivery Units,Adults and Health,Other Agencies - Third Party P,0090605986,DYNAMIC PEOPLE LTD,140.98,04/07/2023
Delivery Units,Adults and Health,Other Agencies - Third Party P,0090605987,DYNAMIC PEOPLE LTD,387.70,04/07/2023
Delivery Units,Adults and Health,Other Agencies - Third Party P,0090605988,DYNAMIC PEOPLE LTD,100.70,04/07/2023
Delivery Units,Adults and Health,Other Agencies - Third Party P,0090605989,DYNAMIC PEOPLE LTD,45.32,04/07/2023
Delivery Units,Adults and Health,Other Agencies - Third Party P,0090605990,DYNAMIC PEOPLE LTD,302.10,04/07/2023
Delivery Units,Adults and Health,Other Agencies - Third Party P,0090605993,DYNAMIC PEOPLE LTD,266.86,04/07/2023
Delivery Units,Adults and Health,Other Agencies - Third Party P,0090605994,DYNAMIC PEOPLE LTD,332.31,04/07/2023
Delivery Units,Adults and Health,Other Agencies - Third Party P,0090605997,DYNAMIC PEOPLE LTD,140.98,04/07/2023
Delivery Units,Adults and Health,Other Agencies - Third Party P,0090606009,DYNAMIC PEOPLE LTD,140.98,04/07/2023
Delivery Units,Adults and Health,Other Agencies - Third Party P,0090606015,DYNAMIC PEOPLE LTD,241.68,04/07/2023
Delivery Units,Adults and Health,Other Agencies - Third Party P,0090606016,DYNAMIC PEOPLE LTD,105.74,04/07/2023
Delivery Units,Adults and Health,Other Agencies - Third Party P,0090606026,DYNAMIC PEOPLE LTD,"1,112.74",04/07/2023
Delivery Units,Adults and Health,Other Agencies - Third Party P,0090606030,DYNAMIC PEOPLE LTD,352.45,04/07/2023
Delivery Units,Adults and Health,Other Agencies - Third Party P,0090606033,DYNAMIC PEOPLE LTD,140.98,04/07/2023
Delivery Units,Adults and Health,Other Agencies - Third Party P,0090606034,DYNAMIC PEOPLE LTD,422.94,04/07/2023
Delivery Units,Adults and Health,Other Agencies - Third Party P,0090606036,DYNAMIC PEOPLE LTD,281.96,04/07/2023
Delivery Units,Adults and Health,Other Agencies - Third Party P,0090606038,DYNAMIC PEOPLE LTD,775.39,04/07/2023
Delivery Units,Adults and Health,Other Agencies - Third Party P,0090606039,DYNAMIC PEOPLE LTD,70.49,04/07/2023
Delivery Units,Adults and Health,Other Agencies - Third Party P,0090606045,DYNAMIC PEOPLE LTD,236.65,04/07/2023
Delivery Units,Adults and Health,Other Agencies - Third Party P,0090606046,DYNAMIC PEOPLE LTD,171.19,04/07/2023
Delivery Units,Adults and Health,Other Agencies - Third Party P,0090606047,DYNAMIC PEOPLE LTD,246.72,04/07/2023
Delivery Units,Adults and Health,Other Agencies - Third Party P,0090606050,DYNAMIC PEOPLE LTD,75.53,04/07/2023
Delivery Units,Adults and Health,Other Agencies - Third Party P,0090606051,DYNAMIC PEOPLE LTD,45.32,04/07/2023
Delivery Units,Adults and Health,Other Agencies - Third Party P,0090606053,DYNAMIC PEOPLE LTD,120.84,04/07/2023
Delivery Units,Adults and Health,Other Agencies - Third Party P,0090606054,DYNAMIC PEOPLE LTD,75.53,04/07/2023
Delivery Units,Adults and Health,Other Agencies - Third Party P,0090606055,DYNAMIC PEOPLE LTD,281.96,04/07/2023
Delivery Units,Adults and Health,Other Agencies - Third Party P,0090606056,DYNAMIC PEOPLE LTD,246.72,04/07/2023
Delivery Units,Adults and Health,Other Agencies - Third Party P,0090606057,DYNAMIC PEOPLE LTD,90.63,04/07/2023
Delivery Units,Adults and Health,Other Agencies - Third Party P,0090606059,DYNAMIC PEOPLE LTD,75.53,04/07/2023
Delivery Units,Adults and Health,Other Agencies - Third Party P,0090606060,DYNAMIC PEOPLE LTD,533.71,04/07/2023
Delivery Units,Adults and Health,Other Agencies - Third Party P,0090606061,DYNAMIC PEOPLE LTD,276.93,04/07/2023
Delivery Units,Adults and Health,Other Agencies - Third Party P,0090606063,DYNAMIC PEOPLE LTD,105.74,04/07/2023
Delivery Units,Adults and Health,Other Agencies - Third Party P,0090606064,DYNAMIC PEOPLE LTD,201.40,04/07/2023
Delivery Units,Adults and Health,Other Agencies - Third Party P,0090606066,DYNAMIC PEOPLE LTD,30.21,04/07/2023
Delivery Units,Adults and Health,Other Agencies - Third Party P,0090606067,DYNAMIC PEOPLE LTD,140.98,04/07/2023
Delivery Units,Adults and Health,Other Agencies - Third Party P,0090606069,DYNAMIC PEOPLE LTD,246.72,04/07/2023
Delivery Units,Adults and Health,Other Agencies - Third Party P,0090606070,DYNAMIC PEOPLE LTD,186.30,04/07/2023
Delivery Units,Adults and Health,Other Agencies - Third Party P,0090606071,DYNAMIC PEOPLE LTD,292.03,04/07/2023
Delivery Units,Adults and Health,Other Agencies - Third Party P,0090606072,DYNAMIC PEOPLE LTD,654.55,04/07/2023
Delivery Units,Adults and Health,Other Agencies - Third Party P,0090606073,DYNAMIC PEOPLE LTD,251.75,04/07/2023
Delivery Units,Adults and Health,Other Agencies - Third Party P,0090606074,DYNAMIC PEOPLE LTD,241.68,04/07/2023
Delivery Units,Adults and Health,Other Agencies - Third Party P,0090606075,DYNAMIC PEOPLE LTD,302.10,04/07/2023
Delivery Units,Adults and Health,Other Agencies - Third Party P,0090606076,DYNAMIC PEOPLE LTD,377.63,04/07/2023
Delivery Units,Adults and Health,Other Agencies - Third Party P,0090606077,DYNAMIC PEOPLE LTD,271.89,04/07/2023
Delivery Units,Adults and Health,Other Agencies - Third Party P,0090606078,DYNAMIC PEOPLE LTD,156.09,04/07/2023
Delivery Units,Adults and Health,Other Agencies - Third Party P,0090606079,DYNAMIC PEOPLE LTD,176.23,04/07/2023
Delivery Units,Adults and Health,Other Agencies - Third Party P,0090606080,DYNAMIC PEOPLE LTD,30.21,04/07/2023
Delivery Units,Adults and Health,Other Agencies - Third Party P,0090606081,DYNAMIC PEOPLE LTD,246.72,04/07/2023
Delivery Units,Adults and Health,Other Agencies - Third Party P,0090606082,DYNAMIC PEOPLE LTD,151.05,04/07/2023
Delivery Units,Adults and Health,Other Agencies - Third Party P,0090606084,DYNAMIC PEOPLE LTD,130.91,04/07/2023
Delivery Units,Adults and Health,Other Agencies - Third Party P,0090606085,DYNAMIC PEOPLE LTD,151.05,04/07/2023
Delivery Units,Adults and Health,Other Agencies - Third Party P,0090606086,DYNAMIC PEOPLE LTD,105.74,04/07/2023
Delivery Units,Adults and Health,Other Agencies - Third Party P,0090606087,DYNAMIC PEOPLE LTD,246.72,04/07/2023
Delivery Units,Adults and Health,Other Agencies - Third Party P,0090606088,DYNAMIC PEOPLE LTD,317.21,04/07/2023
Delivery Units,Adults and Health,Other Agencies - Third Party P,0090606089,DYNAMIC PEOPLE LTD,246.72,04/07/2023
Delivery Units,Adults and Health,Other Agencies - Third Party P,0090606090,DYNAMIC PEOPLE LTD,135.95,04/07/2023
Delivery Units,Adults and Health,Other Agencies - Third Party P,0090606091,DYNAMIC PEOPLE LTD,100.70,04/07/2023
Delivery Units,Adults and Health,Other Agencies - Third Party P,0090606093,DYNAMIC PEOPLE LTD,80.56,04/07/2023
Delivery Units,Adults and Health,Other Agencies - Third Party P,0090606094,DYNAMIC PEOPLE LTD,161.12,04/07/2023
Delivery Units,Adults and Health,Other Agencies - Third Party P,0090606095,DYNAMIC PEOPLE LTD,60.42,04/07/2023
Delivery Units,Adults and Health,Other Agencies - Third Party P,0090606098,DYNAMIC PEOPLE LTD,322.24,04/07/2023
Delivery Units,Adults and Health,Other Agencies - Third Party P,0090606099,DYNAMIC PEOPLE LTD,105.74,04/07/2023
Delivery Units,Adults and Health,Other Agencies - Third Party P,0090606100,DYNAMIC PEOPLE LTD,367.56,04/07/2023
Delivery Units,Adults and Health,Other Agencies - Third Party P,0090606102,DYNAMIC PEOPLE LTD,161.12,04/07/2023
Delivery Units,Adults and Health,Other Agencies - Third Party P,0090606105,DYNAMIC PEOPLE LTD,281.96,04/07/2023
Delivery Units,Adults and Health,Other Agencies - Third Party P,0090606106,DYNAMIC PEOPLE LTD,281.96,04/07/2023
Delivery Units,Adults and Health,Other Agencies - Third Party P,0090606107,DYNAMIC PEOPLE LTD,211.47,04/07/2023
Delivery Units,Adults and Health,Other Agencies - Third Party P,0090606108,DYNAMIC PEOPLE LTD,176.23,04/07/2023
Delivery Units,Adults and Health,Other Agencies - Third Party P,0090606111,DYNAMIC PEOPLE LTD,120.84,04/07/2023
Delivery Units,Adults and Health,Other Agencies - Third Party P,0090606112,DYNAMIC PEOPLE LTD,105.74,04/07/2023
Delivery Units,Adults and Health,Other Agencies - Third Party P,0090606114,DYNAMIC PEOPLE LTD,60.42,04/07/2023
Delivery Units,Adults and Health,Other Agencies - Third Party P,0090606116,DYNAMIC PEOPLE LTD,281.96,04/07/2023
Delivery Units,Adults and Health,Other Agencies - Third Party P,0090606117,DYNAMIC PEOPLE LTD,246.72,04/07/2023
Delivery Units,Adults and Health,Other Agencies - Third Party P,0090606119,DYNAMIC PEOPLE LTD,"1,691.76",04/07/2023
Delivery Units,Adults and Health,Other Agencies - Third Party P,0090606120,DYNAMIC PEOPLE LTD,181.26,04/07/2023
Delivery Units,Adults and Health,Other Agencies - Third Party P,0090606121,DYNAMIC PEOPLE LTD,90.63,04/07/2023
Delivery Units,Adults and Health,Other Agencies - Third Party P,0090606125,DYNAMIC PEOPLE LTD,140.98,04/07/2023
Delivery Units,Adults and Health,Other Agencies - Third Party P,0090606126,DYNAMIC PEOPLE LTD,387.70,04/07/2023
Delivery Units,Adults and Health,Other Agencies - Third Party P,0090606127,DYNAMIC PEOPLE LTD,120.84,04/07/2023
Delivery Units,Adults and Health,Other Agencies - Third Party P,0090606128,DYNAMIC PEOPLE LTD,45.32,04/07/2023
Delivery Units,Adults and Health,Other Agencies - Third Party P,0090606129,DYNAMIC PEOPLE LTD,302.10,04/07/2023
Delivery Units,Adults and Health,Other Agencies - Third Party P,0090606132,DYNAMIC PEOPLE LTD,266.86,04/07/2023
Delivery Units,Adults and Health,Other Agencies - Third Party P,0090606133,DYNAMIC PEOPLE LTD,322.24,04/07/2023
Delivery Units,Adults and Health,Other Agencies - Third Party P,0090606136,DYNAMIC PEOPLE LTD,140.98,04/07/2023
Delivery Units,Adults and Health,Other Agencies - Third Party P,0090606147,DYNAMIC PEOPLE LTD,140.98,04/07/2023
Delivery Units,Adults and Health,Other Agencies - Third Party P,0090606153,DYNAMIC PEOPLE LTD,443.08,04/07/2023
Delivery Units,Adults and Health,Other Agencies - Third Party P,0090606154,DYNAMIC PEOPLE LTD,246.72,04/07/2023
Delivery Units,Adults and Health,Other Agencies - Third Party P,0090606155,DYNAMIC PEOPLE LTD,563.92,04/07/2023
Delivery Units,Adults and Health,Other Agencies - Third Party P,0090606171,DYNAMIC PEOPLE LTD,"1,112.74",04/07/2023
Delivery Units,Adults and Health,Other Agencies - Third Party P,0090606175,DYNAMIC PEOPLE LTD,352.45,04/07/2023
Delivery Units,Adults and Health,Other Agencies - Third Party P,0090606178,DYNAMIC PEOPLE LTD,100.70,04/07/2023
Delivery Units,Adults and Health,Other Agencies - Third Party P,0090606179,DYNAMIC PEOPLE LTD,397.77,04/07/2023
Delivery Units,Adults and Health,Other Agencies - Third Party P,0090606181,DYNAMIC PEOPLE LTD,281.96,04/07/2023
Delivery Units,Adults and Health,Other Agencies - Third Party P,0090606183,DYNAMIC PEOPLE LTD,775.39,04/07/2023
Delivery Units,Adults and Health,Other Agencies - Third Party P,0090606184,DYNAMIC PEOPLE LTD,70.49,04/07/2023
Delivery Units,Adults and Health,Other Agencies - Third Party P,0090606189,DYNAMIC PEOPLE LTD,236.65,04/07/2023
Delivery Units,Adults and Health,Other Agencies - Third Party P,0090606190,DYNAMIC PEOPLE LTD,171.19,04/07/2023
Delivery Units,Adults and Health,Other Agencies - Third Party P,0090606191,DYNAMIC PEOPLE LTD,246.72,04/07/2023
Delivery Units,Adults and Health,Other Agencies - Third Party P,0090606194,DYNAMIC PEOPLE LTD,75.53,04/07/2023
Delivery Units,Adults and Health,Other Agencies - Third Party P,0090606195,DYNAMIC PEOPLE LTD,45.32,04/07/2023
Delivery Units,Adults and Health,Other Agencies - Third Party P,0090606197,DYNAMIC PEOPLE LTD,120.84,04/07/2023
Delivery Units,Adults and Health,Other Agencies - Third Party P,0090606198,DYNAMIC PEOPLE LTD,60.42,04/07/2023
Delivery Units,Adults and Health,Other Agencies - Third Party P,0090606199,DYNAMIC PEOPLE LTD,281.96,04/07/2023
Delivery Units,Adults and Health,Other Agencies - Third Party P,0090606200,DYNAMIC PEOPLE LTD,246.72,04/07/2023
Delivery Units,Adults and Health,Other Agencies - Third Party P,0090606201,DYNAMIC PEOPLE LTD,90.63,04/07/2023
Delivery Units,Adults and Health,Other Agencies - Third Party P,0090606203,DYNAMIC PEOPLE LTD,75.53,04/07/2023
Delivery Units,Adults and Health,Other Agencies - Third Party P,0090606204,DYNAMIC PEOPLE LTD,533.71,04/07/2023
Delivery Units,Adults and Health,Other Agencies - Third Party P,0090606205,DYNAMIC PEOPLE LTD,276.93,04/07/2023
Delivery Units,Adults and Health,Other Agencies - Third Party P,0090606207,DYNAMIC PEOPLE LTD,105.74,04/07/2023
Delivery Units,Adults and Health,Other Agencies - Third Party P,0090606208,DYNAMIC PEOPLE LTD,201.40,04/07/2023
Delivery Units,Adults and Health,Other Agencies - Third Party P,0090606210,DYNAMIC PEOPLE LTD,60.42,04/07/2023
Delivery Units,Adults and Health,Other Agencies - Third Party P,0090606211,DYNAMIC PEOPLE LTD,140.98,04/07/2023
Delivery Units,Adults and Health,Other Agencies - Third Party P,0090606213,DYNAMIC PEOPLE LTD,246.72,04/07/2023
Delivery Units,Adults and Health,Other Agencies - Third Party P,0090606214,DYNAMIC PEOPLE LTD,186.30,04/07/2023
Delivery Units,Adults and Health,Other Agencies - Third Party P,0090606215,DYNAMIC PEOPLE LTD,292.03,04/07/2023
Delivery Units,Adults and Health,Other Agencies - Third Party P,0090606216,DYNAMIC PEOPLE LTD,654.55,04/07/2023
Delivery Units,Adults and Health,Other Agencies - Third Party P,0090606217,DYNAMIC PEOPLE LTD,251.75,04/07/2023
Delivery Units,Adults and Health,Other Agencies - Third Party P,0090606218,DYNAMIC PEOPLE LTD,241.68,04/07/2023
Delivery Units,Adults and Health,Other Agencies - Third Party P,0090606219,DYNAMIC PEOPLE LTD,352.45,04/07/2023
Delivery Units,Adults and Health,Other Agencies - Third Party P,0090606220,DYNAMIC PEOPLE LTD,362.52,04/07/2023
Delivery Units,Adults and Health,Other Agencies - Third Party P,0090606221,DYNAMIC PEOPLE LTD,226.58,04/07/2023
Delivery Units,Adults and Health,Other Agencies - Third Party P,0090606222,DYNAMIC PEOPLE LTD,156.09,04/07/2023
Delivery Units,Adults and Health,Other Agencies - Third Party P,0090606223,DYNAMIC PEOPLE LTD,176.23,04/07/2023
Delivery Units,Adults and Health,Other Agencies - Third Party P,0090606224,DYNAMIC PEOPLE LTD,30.21,04/07/2023
Delivery Units,Adults and Health,Other Agencies - Third Party P,0090606225,DYNAMIC PEOPLE LTD,246.72,04/07/2023
Delivery Units,Adults and Health,Other Agencies - Third Party P,0090606226,DYNAMIC PEOPLE LTD,151.05,04/07/2023
Delivery Units,Adults and Health,Other Agencies - Third Party P,0090606228,DYNAMIC PEOPLE LTD,130.91,04/07/2023
Delivery Units,Adults and Health,Other Agencies - Third Party P,0090606229,DYNAMIC PEOPLE LTD,151.05,04/07/2023
Delivery Units,Adults and Health,Other Agencies - Third Party P,0090606230,DYNAMIC PEOPLE LTD,105.74,04/07/2023
Delivery Units,Adults and Health,Other Agencies - Third Party P,0090606231,DYNAMIC PEOPLE LTD,246.72,04/07/2023
Delivery Units,Adults and Health,Other Agencies - Third Party P,0090606232,DYNAMIC PEOPLE LTD,317.21,04/07/2023
Delivery Units,Adults and Health,Other Agencies - Third Party P,0090606233,DYNAMIC PEOPLE LTD,246.72,04/07/2023
Delivery Units,Adults and Health,Other Agencies - Third Party P,0090606234,DYNAMIC PEOPLE LTD,135.95,04/07/2023
Delivery Units,Adults and Health,Other Agencies - Third Party P,0090606235,DYNAMIC PEOPLE LTD,100.70,04/07/2023
Delivery Units,Adults and Health,Other Agencies - Third Party P,0090606237,DYNAMIC PEOPLE LTD,80.56,04/07/2023
Delivery Units,Adults and Health,Other Agencies - Third Party P,0090606238,DYNAMIC PEOPLE LTD,161.12,04/07/2023
Delivery Units,Adults and Health,Other Agencies - Third Party P,0090606239,DYNAMIC PEOPLE LTD,60.42,04/07/2023
Delivery Units,Adults and Health,Other Agencies - Third Party P,0090606242,DYNAMIC PEOPLE LTD,322.24,04/07/2023
Delivery Units,Adults and Health,Other Agencies - Third Party P,0090606243,DYNAMIC PEOPLE LTD,105.74,04/07/2023
Delivery Units,Adults and Health,Other Agencies - Third Party P,0090606244,DYNAMIC PEOPLE LTD,367.56,04/07/2023
Delivery Units,Adults and Health,Other Agencies - Third Party P,0090606246,DYNAMIC PEOPLE LTD,181.26,04/07/2023
Delivery Units,Adults and Health,Other Agencies - Third Party P,0090606249,DYNAMIC PEOPLE LTD,271.89,04/07/2023
Delivery Units,Adults and Health,Other Agencies - Third Party P,0090606250,DYNAMIC PEOPLE LTD,281.96,04/07/2023
Delivery Units,Adults and Health,Other Agencies - Third Party P,0090606251,DYNAMIC PEOPLE LTD,211.47,04/07/2023
Delivery Units,Adults and Health,Other Agencies - Third Party P,0090606252,DYNAMIC PEOPLE LTD,176.23,04/07/2023
Delivery Units,Adults and Health,Other Agencies - Third Party P,0090606254,DYNAMIC PEOPLE LTD,362.52,04/07/2023
Delivery Units,Adults and Health,Other Agencies - Third Party P,0090606256,DYNAMIC PEOPLE LTD,140.98,04/07/2023
Delivery Units,Adults and Health,Other Agencies - Third Party P,0090606257,DYNAMIC PEOPLE LTD,105.74,04/07/2023
Delivery Units,Adults and Health,Other Agencies - Third Party P,0090606259,DYNAMIC PEOPLE LTD,60.42,04/07/2023
Delivery Units,Adults and Health,Other Agencies - Third Party P,0090606261,DYNAMIC PEOPLE LTD,281.96,04/07/2023
Delivery Units,Adults and Health,Other Agencies - Third Party P,0090606262,DYNAMIC PEOPLE LTD,246.72,04/07/2023
Delivery Units,Adults and Health,Other Agencies - Third Party P,0090606264,DYNAMIC PEOPLE LTD,"1,691.76",04/07/2023
Delivery Units,Adults and Health,Other Agencies - Third Party P,0090606265,DYNAMIC PEOPLE LTD,181.26,04/07/2023
Delivery Units,Adults and Health,Other Agencies - Third Party P,0090606266,DYNAMIC PEOPLE LTD,90.63,04/07/2023
Delivery Units,Adults and Health,Other Agencies - Third Party P,0090606270,DYNAMIC PEOPLE LTD,140.98,04/07/2023
Delivery Units,Adults and Health,Other Agencies - Third Party P,0090606271,DYNAMIC PEOPLE LTD,140.98,04/07/2023
Delivery Units,Adults and Health,Other Agencies - Third Party P,0090606272,DYNAMIC PEOPLE LTD,45.32,04/07/2023
Delivery Units,Adults and Health,Other Agencies - Third Party P,0090606273,DYNAMIC PEOPLE LTD,302.10,04/07/2023
Delivery Units,Adults and Health,Other Agencies - Third Party P,0090606276,DYNAMIC PEOPLE LTD,266.86,04/07/2023
Delivery Units,Adults and Health,Other Agencies - Third Party P,0090606277,DYNAMIC PEOPLE LTD,322.24,04/07/2023
Delivery Units,Adults and Health,Other Agencies - Third Party P,0090606280,DYNAMIC PEOPLE LTD,140.98,04/07/2023
Delivery Units,Adults and Health,Other Agencies - Third Party P,0090606291,DYNAMIC PEOPLE LTD,140.98,04/07/2023
Delivery Units,Adults and Health,Other Agencies - Third Party P,0090606296,DYNAMIC PEOPLE LTD,443.08,04/07/2023
Delivery Units,Adults and Health,Other Agencies - Third Party P,0090606297,DYNAMIC PEOPLE LTD,246.72,04/07/2023
Delivery Units,Adults and Health,Other Agencies - Third Party P,0090606299,DYNAMIC PEOPLE LTD,302.10,04/07/2023
Delivery Units,Adults and Health,Other Agencies - Third Party P,0090606305,DYNAMIC PEOPLE LTD,55.39,04/07/2023
Delivery Units,Adults and Health,Other Agencies - Third Party P,0090606317,DYNAMIC PEOPLE LTD,"1,112.74",04/07/2023
Delivery Units,Adults and Health,Other Agencies - Third Party P,0090606321,DYNAMIC PEOPLE LTD,352.45,04/07/2023
Delivery Units,Adults and Health,Other Agencies - Third Party P,0090606324,DYNAMIC PEOPLE LTD,90.63,04/07/2023
Delivery Units,Adults and Health,Other Agencies - Third Party P,0090606325,DYNAMIC PEOPLE LTD,422.94,04/07/2023
Delivery Units,Adults and Health,Other Agencies - Third Party P,0090606327,DYNAMIC PEOPLE LTD,281.96,04/07/2023
Delivery Units,Adults and Health,Other Agencies - Third Party P,0090606329,DYNAMIC PEOPLE LTD,775.39,04/07/2023
Delivery Units,Adults and Health,Other Agencies - Third Party P,0090606330,DYNAMIC PEOPLE LTD,70.49,04/07/2023
Delivery Units,Adults and Health,Other Agencies - Third Party P,0090606335,DYNAMIC PEOPLE LTD,236.65,04/07/2023
Delivery Units,Adults and Health,Other Agencies - Third Party P,0090606336,DYNAMIC PEOPLE LTD,171.19,04/07/2023
Delivery Units,Adults and Health,Other Agencies - Third Party P,0090606337,DYNAMIC PEOPLE LTD,246.72,04/07/2023
Delivery Units,Adults and Health,Other Agencies - Third Party P,0090606340,DYNAMIC PEOPLE LTD,75.53,04/07/2023
Delivery Units,Adults and Health,Other Agencies - Third Party P,0090606341,DYNAMIC PEOPLE LTD,45.32,04/07/2023
Delivery Units,Adults and Health,Other Agencies - Third Party P,0090606343,DYNAMIC PEOPLE LTD,140.98,04/07/2023
Delivery Units,Adults and Health,Other Agencies - Third Party P,0090606344,DYNAMIC PEOPLE LTD,75.53,04/07/2023
Delivery Units,Adults and Health,Other Agencies - Third Party P,0090606345,DYNAMIC PEOPLE LTD,281.96,04/07/2023
Delivery Units,Adults and Health,Other Agencies - Third Party P,0090606346,DYNAMIC PEOPLE LTD,246.72,04/07/2023
Delivery Units,Adults and Health,Other Agencies - Third Party P,0090606347,DYNAMIC PEOPLE LTD,90.63,04/07/2023
Delivery Units,Adults and Health,Other Agencies - Third Party P,0090606349,DYNAMIC PEOPLE LTD,75.53,04/07/2023
Delivery Units,Adults and Health,Other Agencies - Third Party P,0090606350,DYNAMIC PEOPLE LTD,533.71,04/07/2023
Delivery Units,Adults and Health,Other Agencies - Third Party P,0090606351,DYNAMIC PEOPLE LTD,261.82,04/07/2023
Delivery Units,Adults and Health,Other Agencies - Third Party P,0090606353,DYNAMIC PEOPLE LTD,105.74,04/07/2023
Delivery Units,Adults and Health,Other Agencies - Third Party P,0090606354,DYNAMIC PEOPLE LTD,201.40,04/07/2023
Delivery Units,Adults and Health,Other Agencies - Third Party P,0090606355,DYNAMIC PEOPLE LTD,75.53,04/07/2023
Delivery Units,Adults and Health,Other Agencies - Third Party P,0090606356,DYNAMIC PEOPLE LTD,140.98,04/07/2023
Delivery Units,Adults and Health,Other Agencies - Third Party P,0090606358,DYNAMIC PEOPLE LTD,246.72,04/07/2023
Delivery Units,Adults and Health,Other Agencies - Third Party P,0090606359,DYNAMIC PEOPLE LTD,186.30,04/07/2023
Delivery Units,Adults and Health,Other Agencies - Third Party P,0090606360,DYNAMIC PEOPLE LTD,307.14,04/07/2023
Delivery Units,Adults and Health,Other Agencies - Third Party P,0090606361,DYNAMIC PEOPLE LTD,654.55,04/07/2023
Delivery Units,Adults and Health,Other Agencies - Third Party P,0090606362,DYNAMIC PEOPLE LTD,251.75,04/07/2023
Delivery Units,Adults and Health,Other Agencies - Third Party P,0090606363,DYNAMIC PEOPLE LTD,241.68,04/07/2023
Delivery Units,Adults and Health,Other Agencies - Third Party P,0090606364,DYNAMIC PEOPLE LTD,352.45,04/07/2023
Delivery Units,Adults and Health,Other Agencies - Third Party P,0090606365,DYNAMIC PEOPLE LTD,377.63,04/07/2023
Delivery Units,Adults and Health,Other Agencies - Third Party P,0090606366,DYNAMIC PEOPLE LTD,271.89,04/07/2023
Delivery Units,Adults and Health,Other Agencies - Third Party P,0090606367,DYNAMIC PEOPLE LTD,156.09,04/07/2023
Delivery Units,Adults and Health,Other Agencies - Third Party P,0090606368,DYNAMIC PEOPLE LTD,176.23,04/07/2023
Delivery Units,Adults and Health,Other Agencies - Third Party P,0090606369,DYNAMIC PEOPLE LTD,30.21,04/07/2023
Delivery Units,Adults and Health,Other Agencies - Third Party P,0090606370,DYNAMIC PEOPLE LTD,246.72,04/07/2023
Delivery Units,Adults and Health,Other Agencies - Third Party P,0090606371,DYNAMIC PEOPLE LTD,151.05,04/07/2023
Delivery Units,Adults and Health,Other Agencies - Third Party P,0090606373,DYNAMIC PEOPLE LTD,130.91,04/07/2023
Delivery Units,Adults and Health,Other Agencies - Third Party P,0090606374,DYNAMIC PEOPLE LTD,125.88,04/07/2023
Delivery Units,Adults and Health,Other Agencies - Third Party P,0090606375,DYNAMIC PEOPLE LTD,105.74,04/07/2023
Delivery Units,Adults and Health,Other Agencies - Third Party P,0090606376,DYNAMIC PEOPLE LTD,246.72,04/07/2023
Delivery Units,Adults and Health,Other Agencies - Third Party P,0090606377,DYNAMIC PEOPLE LTD,332.31,04/07/2023
Delivery Units,Adults and Health,Other Agencies - Third Party P,0090606378,DYNAMIC PEOPLE LTD,246.72,04/07/2023
Delivery Units,Adults and Health,Other Agencies - Third Party P,0090606379,DYNAMIC PEOPLE LTD,135.95,04/07/2023
Delivery Units,Adults and Health,Other Agencies - Third Party P,0090606380,DYNAMIC PEOPLE LTD,100.70,04/07/2023
Delivery Units,Adults and Health,Other Agencies - Third Party P,0090606382,DYNAMIC PEOPLE LTD,80.56,04/07/2023
Delivery Units,Adults and Health,Other Agencies - Third Party P,0090606383,DYNAMIC PEOPLE LTD,161.12,04/07/2023
Delivery Units,Adults and Health,Other Agencies - Third Party P,0090606384,DYNAMIC PEOPLE LTD,75.53,04/07/2023
Delivery Units,Adults and Health,Other Agencies - Third Party P,0090606387,DYNAMIC PEOPLE LTD,322.24,04/07/2023
Delivery Units,Adults and Health,Other Agencies - Third Party P,0090606388,DYNAMIC PEOPLE LTD,105.74,04/07/2023
Delivery Units,Adults and Health,Other Agencies - Third Party P,0090606389,DYNAMIC PEOPLE LTD,367.56,04/07/2023
Delivery Units,Adults and Health,Other Agencies - Third Party P,0090606391,DYNAMIC PEOPLE LTD,181.26,04/07/2023
Delivery Units,Adults and Health,Other Agencies - Third Party P,0090606394,DYNAMIC PEOPLE LTD,271.89,04/07/2023
Delivery Units,Adults and Health,Other Agencies - Third Party P,0090606395,DYNAMIC PEOPLE LTD,281.96,04/07/2023
Delivery Units,Adults and Health,Other Agencies - Third Party P,0090606396,DYNAMIC PEOPLE LTD,211.47,04/07/2023
Delivery Units,Adults and Health,Other Agencies - Third Party P,0090606397,DYNAMIC PEOPLE LTD,176.23,04/07/2023
Delivery Units,Adults and Health,Other Agencies - Third Party P,0090606399,DYNAMIC PEOPLE LTD,946.58,04/07/2023
Delivery Units,Adults and Health,Other Agencies - Third Party P,0090606401,DYNAMIC PEOPLE LTD,140.98,04/07/2023
Delivery Units,Adults and Health,Other Agencies - Third Party P,0090606403,DYNAMIC PEOPLE LTD,60.42,04/07/2023
Delivery Units,Adults and Health,Other Agencies - Third Party P,0090606405,DYNAMIC PEOPLE LTD,281.96,04/07/2023
Delivery Units,Adults and Health,Other Agencies - Third Party P,0090606406,DYNAMIC PEOPLE LTD,231.61,04/07/2023
Delivery Units,Adults and Health,Other Agencies - Third Party P,0090606408,DYNAMIC PEOPLE LTD,"1,691.76",04/07/2023
Delivery Units,Adults and Health,Other Agencies - Third Party P,0090606409,DYNAMIC PEOPLE LTD,181.26,04/07/2023
Delivery Units,Adults and Health,Other Agencies - Third Party P,0090606410,DYNAMIC PEOPLE LTD,90.63,04/07/2023
Delivery Units,Adults and Health,Other Agencies - Third Party P,0090606414,DYNAMIC PEOPLE LTD,140.98,04/07/2023
Delivery Units,Adults and Health,Other Agencies - Third Party P,0090606415,DYNAMIC PEOPLE LTD,50.35,04/07/2023
Delivery Units,Adults and Health,Other Agencies - Third Party P,0090606416,DYNAMIC PEOPLE LTD,45.32,04/07/2023
Delivery Units,Adults and Health,Other Agencies - Third Party P,0090606417,DYNAMIC PEOPLE LTD,302.10,04/07/2023
Delivery Units,Adults and Health,Other Agencies - Third Party P,0090606419,DYNAMIC PEOPLE LTD,266.86,04/07/2023
Delivery Units,Adults and Health,Other Agencies - Third Party P,0090606420,DYNAMIC PEOPLE LTD,271.89,04/07/2023
Delivery Units,Adults and Health,Other Agencies - Third Party P,0090606422,DYNAMIC PEOPLE LTD,140.98,04/07/2023
Delivery Units,Adults and Health,Other Agencies - Third Party P,0090606432,DYNAMIC PEOPLE LTD,140.98,04/07/2023
Delivery Units,Adults and Health,Other Agencies - Third Party P,0090606437,DYNAMIC PEOPLE LTD,382.66,04/07/2023
Delivery Units,Adults and Health,Other Agencies - Third Party P,0090606438,DYNAMIC PEOPLE LTD,246.72,04/07/2023
Delivery Units,Adults and Health,Other Agencies - Third Party P,0090606440,DYNAMIC PEOPLE LTD,302.10,04/07/2023
Delivery Units,Adults and Health,Other Agencies - Third Party P,0090606445,DYNAMIC PEOPLE LTD,120.84,04/07/2023
Delivery Units,Adults and Health,Other Agencies - Third Party P,0090606446,DYNAMIC PEOPLE LTD,196.37,04/07/2023
Delivery Units,Adults and Health,Other Agencies - Third Party P,0090606448,DYNAMIC PEOPLE LTD,15.11,04/07/2023
Delivery Units,Adults and Health,Other Agencies - Third Party P,0090606452,DYNAMIC PEOPLE LTD,15.11,04/07/2023
Delivery Units,Adults and Health,Other Agencies - Third Party P,0090606454,DYNAMIC PEOPLE LTD,146.02,04/07/2023
Delivery Units,Adults and Health,Other Agencies - Third Party P,0090606455,DYNAMIC PEOPLE LTD,458.19,04/07/2023
Delivery Units,Adults and Health,Other Agencies - Third Party P,0090606464,DYNAMIC PEOPLE LTD,"1,112.74",04/07/2023
Delivery Units,Adults and Health,Other Agencies - Third Party P,0090606467,Kaamil Education Ltd,873.00,04/07/2023
Delivery Units,Adults and Health,Other Agencies - Third Party P,0090606475,DYNAMIC PEOPLE LTD,443.08,04/07/2023
Delivery Units,Adults and Health,Other Agencies - Third Party P,0090606476,St Georges Home Care ltd,92.12,04/07/2023
Delivery Units,Adults and Health,Other Agencies - Third Party P,0090606477,St Georges Home Care ltd,214.90,04/07/2023
Delivery Units,Adults and Health,Other Agencies - Third Party P,0090606480,St Georges Home Care ltd,13.16,04/07/2023
Delivery Units,Adults and Health,Other Agencies - Third Party P,0090606481,St Georges Home Care ltd,214.90,04/07/2023
Delivery Units,Adults and Health,Other Agencies - Third Party P,0090606483,St Georges Home Care ltd,39.47,04/07/2023
Delivery Units,Adults and Health,Other Agencies - Third Party P,0090606484,St Georges Home Care ltd,214.90,04/07/2023
Delivery Units,Adults and Health,Other Agencies - Third Party P,0090606486,St Georges Home Care ltd,214.90,04/07/2023
Delivery Units,Adults and Health,Other Agencies - Third Party P,0090606488,Bestchoice Global Ltd,138.25,04/07/2023
Delivery Units,Adults and Health,Other Agencies - Third Party P,0090606489,Bestchoice Global Ltd,104.68,04/07/2023
Delivery Units,Adults and Health,Other Agencies - Third Party P,0090606490,Bestchoice Global Ltd,345.63,04/07/2023
Delivery Units,Adults and Health,Other Agencies - Third Party P,0090606491,Bestchoice Global Ltd,88.88,04/07/2023
Delivery Units,Adults and Health,Other Agencies - Third Party P,0090606492,Bestchoice Global Ltd,19.75,04/07/2023
Delivery Units,Adults and Health,Other Agencies - Third Party P,0090606493,Bestchoice Global Ltd,553.00,04/07/2023
Delivery Units,Adults and Health,Other Agencies - Third Party P,0090606494,Bestchoice Global Ltd,790.00,04/07/2023
Delivery Units,Adults and Health,Other Agencies - Third Party P,0090606496,Bestchoice Global Ltd,74.06,04/07/2023
Delivery Units,Adults and Health,Other Agencies - Third Party P,0090606497,Bestchoice Global Ltd,19.75,04/07/2023
Delivery Units,Adults and Health,Other Agencies - Third Party P,0090606498,Bestchoice Global Ltd,276.50,04/07/2023
Delivery Units,Adults and Health,Other Agencies - Third Party P,0090606499,Bestchoice Global Ltd,553.00,04/07/2023
Delivery Units,Adults and Health,Other Agencies - Third Party P,0090606501,Bestchoice Global Ltd,103.69,04/07/2023
Delivery Units,Adults and Health,Other Agencies - Third Party P,0090606502,Bestchoice Global Ltd,172.81,04/07/2023
Delivery Units,Adults and Health,Other Agencies - Third Party P,0090606503,Bestchoice Global Ltd,169.40,04/07/2023
Delivery Units,Adults and Health,Other Agencies - Third Party P,0090606504,Bestchoice Global Ltd,340.69,04/07/2023
Delivery Units,Adults and Health,Other Agencies - Third Party P,0090606505,Bestchoice Global Ltd,622.13,04/07/2023
Delivery Units,Adults and Health,Other Agencies - Third Party P,0090606506,Bestchoice Global Ltd,138.25,04/07/2023
Delivery Units,Adults and Health,Other Agencies - Third Party P,0090606507,Bestchoice Global Ltd,103.69,04/07/2023
Delivery Units,Adults and Health,Other Agencies - Third Party P,0090606508,Bestchoice Global Ltd,345.63,04/07/2023
Delivery Units,Adults and Health,Other Agencies - Third Party P,0090606509,Bestchoice Global Ltd,553.00,04/07/2023
Delivery Units,Adults and Health,Other Agencies - Third Party P,0090606510,Bestchoice Global Ltd,790.00,04/07/2023
Delivery Units,Adults and Health,Other Agencies - Third Party P,0090606512,Bestchoice Global Ltd,74.06,04/07/2023
Delivery Units,Adults and Health,Other Agencies - Third Party P,0090606513,Bestchoice Global Ltd,19.75,04/07/2023
Delivery Units,Adults and Health,Other Agencies - Third Party P,0090606514,Bestchoice Global Ltd,276.50,04/07/2023
Delivery Units,Adults and Health,Other Agencies - Third Party P,0090606515,Bestchoice Global Ltd,553.00,04/07/2023
Delivery Units,Adults and Health,Other Agencies - Third Party P,0090606517,Bestchoice Global Ltd,103.69,04/07/2023
Delivery Units,Adults and Health,Other Agencies - Third Party P,0090606518,Bestchoice Global Ltd,172.81,04/07/2023
Delivery Units,Adults and Health,Other Agencies - Third Party P,0090606519,Bestchoice Global Ltd,172.81,04/07/2023
Delivery Units,Adults and Health,Other Agencies - Third Party P,0090606520,Bestchoice Global Ltd,409.81,04/07/2023
Delivery Units,Adults and Health,Other Agencies - Third Party P,0090606521,Bestchoice Global Ltd,444.38,04/07/2023
Delivery Units,Adults and Health,Other Agencies - Third Party P,0090606523,Bestchoice Global Ltd,138.25,04/07/2023
Delivery Units,Adults and Health,Other Agencies - Third Party P,0090606524,Bestchoice Global Ltd,103.69,04/07/2023
Delivery Units,Adults and Health,Other Agencies - Third Party P,0090606525,Bestchoice Global Ltd,345.63,04/07/2023
Delivery Units,Adults and Health,Other Agencies - Third Party P,0090606526,Bestchoice Global Ltd,553.00,04/07/2023
Delivery Units,Adults and Health,Other Agencies - Third Party P,0090606527,Bestchoice Global Ltd,790.00,04/07/2023
Delivery Units,Adults and Health,Other Agencies - Third Party P,0090606529,Bestchoice Global Ltd,74.06,04/07/2023
Delivery Units,Adults and Health,Other Agencies - Third Party P,0090606530,Bestchoice Global Ltd,19.75,04/07/2023
Delivery Units,Adults and Health,Other Agencies - Third Party P,0090606531,Bestchoice Global Ltd,276.50,04/07/2023
Delivery Units,Adults and Health,Other Agencies - Third Party P,0090606532,Bestchoice Global Ltd,553.00,04/07/2023
Delivery Units,Adults and Health,Other Agencies - Third Party P,0090606534,Bestchoice Global Ltd,103.69,04/07/2023
Delivery Units,Adults and Health,Other Agencies - Third Party P,0090606535,Bestchoice Global Ltd,162.94,04/07/2023
Delivery Units,Adults and Health,Other Agencies - Third Party P,0090606536,Bestchoice Global Ltd,172.81,04/07/2023
Delivery Units,Adults and Health,Other Agencies - Third Party P,0090606537,Bestchoice Global Ltd,241.94,04/07/2023
Delivery Units,Adults and Health,Other Agencies - Third Party P,0090606538,Bestchoice Global Ltd,340.69,04/07/2023
Delivery Units,Adults and Health,Other Agencies - Third Party P,0090606540,Bestchoice Global Ltd,138.25,04/07/2023
Delivery Units,Adults and Health,Other Agencies - Third Party P,0090606541,Bestchoice Global Ltd,103.69,04/07/2023
Delivery Units,Adults and Health,Other Agencies - Third Party P,0090606542,Bestchoice Global Ltd,345.63,04/07/2023
Delivery Units,Adults and Health,Other Agencies - Third Party P,0090606543,Bestchoice Global Ltd,553.00,04/07/2023
Delivery Units,Adults and Health,Other Agencies - Third Party P,0090606544,Bestchoice Global Ltd,790.00,04/07/2023
Delivery Units,Adults and Health,Other Agencies - Third Party P,0090606546,Bestchoice Global Ltd,74.06,04/07/2023
Delivery Units,Adults and Health,Other Agencies - Third Party P,0090606547,Bestchoice Global Ltd,19.75,04/07/2023
Delivery Units,Adults and Health,Other Agencies - Third Party P,0090606548,Bestchoice Global Ltd,553.00,04/07/2023
Delivery Units,Adults and Health,Other Agencies - Third Party P,0090606550,Bestchoice Global Ltd,103.69,04/07/2023
Delivery Units,Adults and Health,Other Agencies - Third Party P,0090606551,Bestchoice Global Ltd,172.81,04/07/2023
Delivery Units,Adults and Health,Other Agencies - Third Party P,0090606552,Bestchoice Global Ltd,172.81,04/07/2023
Delivery Units,Adults and Health,Other Agencies - Third Party P,0090606553,Bestchoice Global Ltd,241.94,04/07/2023
Delivery Units,Adults and Health,Other Agencies - Third Party P,0090606554,Bestchoice Global Ltd,340.69,04/07/2023
Delivery Units,Adults and Health,Other Agencies - Third Party P,0090606587,Carecroft Ltd,"1,100.40",04/07/2023
Delivery Units,Adults and Health,Other Agencies - Third Party P,0090606589,Swifthand Care Services Ltd,39.44,06/07/2023
Delivery Units,Adults and Health,Other Agencies - Third Party P,0090606590,Swifthand Care Services Ltd,103.53,06/07/2023
Delivery Units,Adults and Health,Other Agencies - Third Party P,0090606592,Swifthand Care Services Ltd,374.68,06/07/2023
Delivery Units,Adults and Health,Other Agencies - Third Party P,0090606593,Swifthand Care Services Ltd,621.18,06/07/2023
Delivery Units,Adults and Health,Other Agencies - Third Party P,0090606594,Swifthand Care Services Ltd,9.86,06/07/2023
Delivery Units,Adults and Health,Other Agencies - Third Party P,0090606595,Swifthand Care Services Ltd,103.53,06/07/2023
Delivery Units,Adults and Health,Other Agencies - Third Party P,0090606596,Swifthand Care Services Ltd,379.61,06/07/2023
Delivery Units,Adults and Health,Other Agencies - Third Party P,0090606597,Swifthand Care Services Ltd,241.57,06/07/2023
Delivery Units,Adults and Health,Other Agencies - Third Party P,0090606598,Swifthand Care Services Ltd,207.06,06/07/2023
Delivery Units,Adults and Health,Other Agencies - Third Party P,0090606599,Swifthand Care Services Ltd,"1,064.88",06/07/2023
Delivery Units,Adults and Health,Other Agencies - Third Party P,0090606600,Swifthand Care Services Ltd,207.06,06/07/2023
Delivery Units,Adults and Health,Other Agencies - Third Party P,0090606601,Swifthand Care Services Ltd,49.50,06/07/2023
Delivery Units,Adults and Health,Other Agencies - Third Party P,0090606602,Swifthand Care Services Ltd,138.04,06/07/2023
Delivery Units,Adults and Health,Other Agencies - Third Party P,0090606603,Swifthand Care Services Ltd,241.57,06/07/2023
Delivery Units,Adults and Health,Other Agencies - Third Party P,0090606604,Swifthand Care Services Ltd,"2,839.68",06/07/2023
Delivery Units,Adults and Health,Other Agencies - Third Party P,0090606606,Swifthand Care Services Ltd,172.55,06/07/2023
Delivery Units,Adults and Health,Other Agencies - Third Party P,0090606607,Swifthand Care Services Ltd,690.20,06/07/2023
Delivery Units,Adults and Health,Other Agencies - Third Party P,0090606608,Swifthand Care Services Ltd,29.58,06/07/2023
Delivery Units,Adults and Health,Other Agencies - Third Party P,0090606609,Swifthand Care Services Ltd,759.22,06/07/2023
Delivery Units,Adults and Health,Other Agencies - Third Party P,0090606610,Swifthand Care Services Ltd,325.38,06/07/2023
Delivery Units,Adults and Health,Other Agencies - Third Party P,0090606611,Swifthand Care Services Ltd,172.55,06/07/2023
Delivery Units,Adults and Health,Other Agencies - Third Party P,0090606613,Swifthand Care Services Ltd,315.52,06/07/2023
Delivery Units,Adults and Health,Other Agencies - Third Party P,0090606614,Swifthand Care Services Ltd,103.53,06/07/2023
Delivery Units,Adults and Health,Other Agencies - Third Party P,0090606615,Swifthand Care Services Ltd,414.12,06/07/2023
Delivery Units,Adults and Health,Other Agencies - Third Party P,0090606618,Swifthand Care Services Ltd,276.08,06/07/2023
Delivery Units,Adults and Health,Other Agencies - Third Party P,0090606619,Swifthand Care Services Ltd,621.18,06/07/2023
Delivery Units,Adults and Health,Other Agencies - Third Party P,0090606623,Swifthand Care Services Ltd,78.88,06/07/2023
Delivery Units,Adults and Health,Other Agencies - Third Party P,0090606626,Swifthand Care Services Ltd,39.44,06/07/2023
Delivery Units,Adults and Health,Other Agencies - Third Party P,0090606627,Swifthand Care Services Ltd,103.53,06/07/2023
Delivery Units,Adults and Health,Other Agencies - Third Party P,0090606629,Swifthand Care Services Ltd,374.68,06/07/2023
Delivery Units,Adults and Health,Other Agencies - Third Party P,0090606630,Swifthand Care Services Ltd,621.18,06/07/2023
Delivery Units,Adults and Health,Other Agencies - Third Party P,0090606631,Swifthand Care Services Ltd,9.86,06/07/2023
Delivery Units,Adults and Health,Other Agencies - Third Party P,0090606632,Swifthand Care Services Ltd,103.53,06/07/2023
Delivery Units,Adults and Health,Other Agencies - Third Party P,0090606633,Swifthand Care Services Ltd,379.61,06/07/2023
Delivery Units,Adults and Health,Other Agencies - Third Party P,0090606634,Swifthand Care Services Ltd,241.57,06/07/2023
Delivery Units,Adults and Health,Other Agencies - Third Party P,0090606635,Swifthand Care Services Ltd,207.06,06/07/2023
Delivery Units,Adults and Health,Other Agencies - Third Party P,0090606636,Swifthand Care Services Ltd,"1,064.88",06/07/2023
Delivery Units,Adults and Health,Other Agencies - Third Party P,0090606637,Swifthand Care Services Ltd,207.06,06/07/2023
Delivery Units,Adults and Health,Other Agencies - Third Party P,0090606638,Swifthand Care Services Ltd,49.30,06/07/2023
Delivery Units,Adults and Health,Other Agencies - Third Party P,0090606639,Swifthand Care Services Ltd,138.04,06/07/2023
Delivery Units,Adults and Health,Other Agencies - Third Party P,0090606640,Swifthand Care Services Ltd,241.57,06/07/2023
Delivery Units,Adults and Health,Other Agencies - Third Party P,0090606641,Swifthand Care Services Ltd,"2,839.68",06/07/2023
Delivery Units,Adults and Health,Other Agencies - Third Party P,0090606643,Swifthand Care Services Ltd,172.55,06/07/2023
Delivery Units,Adults and Health,Other Agencies - Third Party P,0090606644,Swifthand Care Services Ltd,690.20,06/07/2023
Delivery Units,Adults and Health,Other Agencies - Third Party P,0090606645,Swifthand Care Services Ltd,29.58,06/07/2023
Delivery Units,Adults and Health,Other Agencies - Third Party P,0090606646,Swifthand Care Services Ltd,759.22,06/07/2023
Delivery Units,Adults and Health,Other Agencies - Third Party P,0090606647,Swifthand Care Services Ltd,325.38,06/07/2023
Delivery Units,Adults and Health,Other Agencies - Third Party P,0090606648,Swifthand Care Services Ltd,172.55,06/07/2023
Delivery Units,Adults and Health,Other Agencies - Third Party P,0090606650,Swifthand Care Services Ltd,315.52,06/07/2023
Delivery Units,Adults and Health,Other Agencies - Third Party P,0090606651,Swifthand Care Services Ltd,414.12,06/07/2023
Delivery Units,Adults and Health,Other Agencies - Third Party P,0090606654,Swifthand Care Services Ltd,276.08,06/07/2023
Delivery Units,Adults and Health,Other Agencies - Third Party P,0090606655,Swifthand Care Services Ltd,621.18,06/07/2023
Delivery Units,Adults and Health,Other Agencies - Third Party P,0090606659,Swifthand Care Services Ltd,276.08,06/07/2023
Delivery Units,Adults and Health,Other Agencies - Third Party P,0090606661,Swifthand Care Services Ltd,39.44,06/07/2023
Delivery Units,Adults and Health,Other Agencies - Third Party P,0090606662,Swifthand Care Services Ltd,29.58,06/07/2023
